{"text_format":"1","workbook":"xlsx","n_sheets":40,"sheets":["START","Notes","Guidance","Configuration","Data_Project","Data_Disciplines","Cover","ProjectStages","Project","Structural","Mechanical","Electrical","Public Health","Architecture","Acoustics","Audio Visual","Aviation","Bridges","BPS","Retrofit","Civils","Cost Mgmt","Energy","Building Physics","Facades","FM","Fire","Geotechnics","Highways","Lighting","Logistics","Mgmt Consulting","Maritime","Masterplanning","Planning","Rail","Security","Tunnels","Water","Wind"],"not_rendered":{"charts":988,"images":2,"macros":1,"external_links":1,"defined_names":37,"comments":33,"pivot_tables":0},"unopened":[],"bounds":{"document_bytes":16777216,"sheet_cells":100000,"rows_first":2000,"rows_last":500,"rows_between":2000,"halvings":0,"cell_chars":16384,"cell_head_chars":4096},"cells_cut":0,"cells_raw":0,"read":"whole","date_system":"1900"}

{"sheet":"START","index":0,"n_rows":18,"n_cols":3,"rows_kept":18,"cut":false,"hidden":true,"merged":[[2,1,4,3]]}
[]
[]
[null,"(your company logo here)"]
[]
[]
[]
[]
[]
[null,null,"You must enable macros in order to access the BIM Maturity Measure"]
[]
[null,null,"Please click on 'Enable Content' above in order to do this"]
[]
[]
[null,"This files must be saved with the first six digits of the project's job number"]
[]
[null,"E.G."]
[]
[null,"Filename = ","\"LPQ909 - Meeting Centre BIM Maturity Measure\""]

{"sheet":"Notes","index":1,"n_rows":12,"n_cols":4,"rows_kept":12,"cut":false,"hidden":false,"merged":[[1,1,1,2],[7,1,7,2],[5,2,5,5],[3,2,3,7]]}
[]
[]
[null,null,"FOR FURTHER INFORMATION, VISIT:"]
[null,null,"http://www.arup.com/Services/Building_Modelling.aspx"]
[]
[null,null,"This work by Arup is a derivative of the BIM Project Execution Planning Guide by CIC Research Group, Department of Architectural Engineering, \nPennsylvania State University which, is licensed under a Creative Commons Attribution-Share Alike 3.0 United States License: \nhttp://creativecommons.org/licenses/by-sa/3.0/us/. \nCopyright © 2012. The Computer Integrated Construction Research Group, Pennsylvania State University."]
[]
[null,"Version History"]
[]
[null,"1.0.0","2014-12-02","Released on www.arup.com/Services/Building_Modelling.aspx "]
[]
[null,"2.0.0","2015-09-15","Collaboratively developed with Atkins"]

{"sheet":"Guidance","index":2,"n_rows":28,"n_cols":6,"rows_kept":28,"cut":false,"hidden":false,"merged":[[4,1,4,6]]}
[]
[]
[null,"Guidance"]
[]
[null,"The BIM Maturity Measure is:\n• A measure of maturity within different aspects of BIM\n• A tool to highlight successes and areas for improvement\n• Current capabilities not future aspirations\n• NOT an audit\n\nRemember, it is a journey to Level 2 and this tool will help you identify how far you have come and your current position.\n"]
[]
[null,"How to Create your BIM Maturity Measure"]
[null,"1. On opening the template, save the BIM Maturity Measure to your Project Location"]
[null,"2. When saving, enter the Job Number for the Maturity Measure as the first X digits of the file name."]
[null,"3. Set the number of characters for your organisation's Job Number formatting on the Configuration tab"]
[null,"4. Choose up to 4 unique Primary Disciplines via the drop down boxes provided"]
[null,"5. Choose up to 21 unique Secondary Disciplines via the drop down boxes provided"]
[null,"6. Click the \"Create Maturity Measure\" button"]
[]
[null,"How to Complete your BIM Maturity Measure"]
[null,"1. On the Cover Tab enter the required Project Information (the orange fields)"]
[null,"2. Once complete, click on the Project tab and enter Current Levels for all questions"]
[null,"3. Continue to enter Current Levels on all questions, for all of the selected Discipline tabs"]
[]
[null,"How to Submit your BIM Maturity Measure"]
[null,"1. Once all scores have been assigned, return to the Cover tab and click on the Submit button"]
[null,"2. You BIM Maturity Measure will be emailed to a chosen individual for review"]
[]
[]
[]
[null,"Useful Links"]
[]
[null,"Glossary of Terms",null,null,null,"Further guidance / information"]

{"sheet":"Configuration","index":3,"n_rows":77,"n_cols":6,"rows_kept":77,"cut":false,"hidden":false,"merged":[[2,2,2,3],[1,1,1,5]]}
[]
[null,"BIM Maturity Measure"]
[null,null,"Set the number of characters for your job number formatting (e.g. LPQ909 = 6 characters):",null,6]
[null,null,null,"Discipline Presets"]
[]
[null,"Buildings",null,"Infrastructure",null,"Consulting"]
[]
[]
[]
[]
[]
[]
[null,"Primary Disciplines"]
[]
[1,"Architecture"]
[2]
[3]
[4]
[]
[null,"Secondary Disciplines"]
[]
[null,"Row 1",null,"Row 2",null,"Row 3"]
[5,"Structural",12,null,19]
[6,"Mechanical",13,null,20]
[7,"Electrical",14,null,21]
[8,"Public Health",15,null,22]
[9,null,16,null,23]
[10,null,17,null,24]
[11,null,18,null,25]
[]
[null,"Please use this page to select the disciplines that you wish to measure using the BIM Maturity Measure"]
[]
[null,"These disciplines will then be displayed when you select 'CREATE MATURITY MEASURE' button below"]
[]
[null,"This work by Arup is a derivative of the BIM Project Execution Planning Guide by CIC Research Group, Department of Architectural Engineering,"]
[null,"Pennsylvania State University which, is licensed under a Creative Commons Attribution-Share Alike 3.0 United States License:"]
[null,"http://creativecommons.org/licenses/by-sa/3.0/us/"]
[null,"Copyright © 2012. The Computer Integrated Construction Research Group, Pennsylvania State University."]
[]
[]
[]
[]
[null,"Disciplines"]
[null,"Architecture"]
[null,"Acoustics"]
[null,"Audio Visual"]
[null,"Aviation"]
[null,"Bridges"]
[null,"BPS"]
[null,"Retrofit"]
[null,"Civils"]
[null,"Cost Mgmt"]
[null,"Energy"]
[null,"Building Physics"]
[null,"Electrical"]
[null,"Facades"]
[null,"FM"]
[null,"Fire"]
[null,"Geotechnics"]
[null,"Highways"]
[null,"Lighting"]
[null,"Logistics"]
[null,"Mgmt Consulting"]
[null,"Maritime"]
[null,"Masterplanning"]
[null,"Mechanical"]
[null,"Planning"]
[null,"Public Health"]
[null,"Rail"]
[null,"Security"]
[null,"Structural"]
[null,"Tunnels"]
[null,"Water"]
[null,"Wind"]
[]
[]
[null,{"$f":"COUNTA(B44:B74)","v":31}]

{"sheet":"Data_Project","index":4,"n_rows":14,"n_cols":358,"rows_kept":14,"cut":false,"hidden":true,"merged":[[0,293,0,305],[0,306,0,318],[0,319,0,331],[0,332,0,344],[0,345,0,357],[0,280,0,292],[0,137,0,149],[0,150,0,162],[0,163,0,175],[0,176,0,188],[0,189,0,201],[0,202,0,214],[0,215,0,227],[0,228,0,240],[0,241,0,253],[0,254,0,266],[0,267,0,279],[0,124,0,136],[0,0,0,12],[0,15,0,16],[0,17,0,19],[0,20,0,32],[0,33,0,45],[0,46,0,58],[0,59,0,71],[0,72,0,84],[0,85,0,97],[0,98,0,110],[0,111,0,123]]}
["Project Details",null,null,null,null,null,null,null,null,null,null,null,null,"DisciplinesScored",null,"Save Details",null,"ProjectTotals",null,null,"Project IM Scores",null,null,null,null,null,null,null,null,null,null,null,null,"Primary1",null,null,null,null,null,null,null,null,null,null,null,null,"Primary2",null,null,null,null,null,null,null,null,null,null,null,null,"Primary3",null,null,null,null,null,null,null,null,null,null,null,null,"Primary4",null,null,null,null,null,null,null,null,null,null,null,null,"Secondary1",null,null,null,null,null,null,null,null,null,null,null,null,"Secondary2",null,null,null,null,null,null,null,null,null,null,null,null,"Secondary3",null,null,null,null,null,null,null,null,null,null,null,null,"Secondary4",null,null,null,null,null,null,null,null,null,null,null,null,"Secondary5",null,null,null,null,null,null,null,null,null,null,null,null,"Secondary6",null,null,null,null,null,null,null,null,null,null,null,null,"Secondary7",null,null,null,null,null,null,null,null,null,null,null,null,"Secondary8",null,null,null,null,null,null,null,null,null,null,null,null,"Secondary9",null,null,null,null,null,null,null,null,null,null,null,null,"Secondary10",null,null,null,null,null,null,null,null,null,null,null,null,"Secondary11",null,null,null,null,null,null,null,null,null,null,null,null,"Secondary12",null,null,null,null,null,null,null,null,null,null,null,null,"Secondary13",null,null,null,null,null,null,null,null,null,null,null,null,"Secondary14",null,null,null,null,null,null,null,null,null,null,null,null,"Secondary15",null,null,null,null,null,null,null,null,null,null,null,null,"Secondary16",null,null,null,null,null,null,null,null,null,null,null,null,"Secondary17",null,null,null,null,null,null,null,null,null,null,null,null,"Secondary18",null,null,null,null,null,null,null,null,null,null,null,null,"Secondary19",null,null,null,null,null,null,null,null,null,null,null,null,"Secondary20",null,null,null,null,null,null,null,null,null,null,null,null,"Secondary21"]
["JobNo","Project Title","Group","Director","Manager","Project Type","Location","Client","Client Type","Architect","Start","Finish","ProjectStage","DisciplinesScored","CDE Used","LastSavedBy","LastSaved","Phase1","Primary","Primary+Secondary","IM_Disc","IM_Score","IM_EIRs","IM_BIM Data Review","IM_BEP","IM_PAS1192","IM_CDE","IM_Marketing Strategy","IM_VDRs","IM_Open Standards","IM_BIM Contract","IM_BIM Champion","IM_","P1_Disc","P1_Score","P1_3D Model","P1_Drawings","P1_LoD","P1_Reviews","P1_Data","P1_Visualisation","P1_4D (time)","P1_5D (cost)","P1_Analysis","P1_Contractor Use","P1_FM/OM Use","P2_Disc","P2_Score","P2_3D Model","P2_Drawings","P2_LoD","P2_Reviews","P2_Data","P2_Visualisation","P2_4D (time)","P2_5D (cost)","P2_Analysis","P2_Contractor Use","P2_FM/OM Use","P3_Disc","P3_Score","P3_3D Model","P3_Drawings","P3_LoD","P3_Reviews","P3_Data","P3_Visualisation","P3_4D (time)","P3_5D (cost)","P3_Analysis","P3_Contractor Use","P3_FM/OM Use","P4_Disc","P4_Score","P4_3D Model","P4_Drawings","P4_LoD","P4_Reviews","P4_Data","P4_Visualisation","P4_4D (time)","P4_5D (cost)","P4_Analysis","P4_Contractor Use","P4_FM/OM Use","S1_Disc","S1_Score","S1_3D Model","S1_Drawings","S1_LoD","S1_Reviews","S1_Data","S1_Visualisation","S1_4D (time)","S1_5D (cost)","S1_Analysis","S1_Contractor Use","S1_FM/OM Use","S2_Disc","S2_Score","S2_3D Model","S2_Drawings","S2_LoD","S2_Reviews","S2_Data","S2_Visualisation","S2_4D (time)","S2_5D (cost)","S2_Analysis","S2_Contractor Use","S2_FM/OM Use","S3_Disc","S3_Score","S3_3D Model","S3_Drawings","S3_LoD","S3_Reviews","S3_Data","S3_Visualisation","S3_4D (time)","S3_5D (cost)","S3_Analysis","S3_Contractor Use","S3_FM/OM Use","S4_Disc","S4_Score","S4_3D Model","S4_Drawings","S4_LoD","S4_Reviews","S4_Data","S4_Visualisation","S4_4D (time)","S4_5D (cost)","S4_Analysis","S4_Contractor Use","S4_FM/OM Use","S5_Disc","S5_Score","S5_3D Model","S5_Drawings","S5_LoD","S5_Reviews","S5_Data","S5_Visualisation","S5_4D (time)","S5_5D (cost)","S5_Analysis","S5_Contractor Use","S5_FM/OM Use","S6_Disc","S6_Score","S6_3D Model","S6_Drawings","S6_LoD","S6_Reviews","S6_Data","S6_Visualisation","S6_4D (time)","S6_5D (cost)","S6_Analysis","S6_Contractor Use","S6_FM/OM Use","S7_Disc","S7_Score","S7_3D Model","S7_Drawings","S7_LoD","S7_Reviews","S7_Data","S7_Visualisation","S7_4D (time)","S7_5D (cost)","S7_Analysis","S7_Contractor Use","S7_FM/OM Use","S8_Disc","S8_Score","S8_3D Model","S8_Drawings","S8_LoD","S8_Reviews","S8_Data","S8_Visualisation","S8_4D (time)","S8_5D (cost)","S8_Analysis","S8_Contractor Use","S8_FM/OM Use","S9_Disc","S9_Score","S9_3D Model","S9_Drawings","S9_LoD","S9_Reviews","S9_Data","S9_Visualisation","S9_4D (time)","S9_5D (cost)","S9_Analysis","S9_Contractor Use","S9_FM/OM Use","S10_Disc","S10_Score","S10_3D Model","S10_Drawings","S10_LoD","S10_Reviews","S10_Data","S10_Visualisation","S10_4D (time)","S10_5D (cost)","S10_Analysis","S10_Contractor Use","S10_FM/OM Use","S11_Disc","S11_Score","S11_3D Model","S11_Drawings","S11_LoD","S11_Reviews","S11_Data","S11_Visualisation","S11_4D (time)","S11_5D (cost)","S11_Analysis","S11_Contractor Use","S11_FM/OM Use","S12_Disc","S12_Score","S12_3D Model","S12_Drawings","S12_LoD","S12_Reviews","S12_Data","S12_Visualisation","S12_4D (time)","S12_5D (cost)","S12_Analysis","S12_Contractor Use","S12_FM/OM Use","S13_Disc","S13_Score","S13_3D Model","S13_Drawings","S13_LoD","S13_Reviews","S13_Data","S13_Visualisation","S13_4D (time)","S13_5D (cost)","S13_Analysis","S13_Contractor Use","S13_FM/OM Use","S14_Disc","S14_Score","S14_3D Model","S14_Drawings","S14_LoD","S14_Reviews","S14_Data","S14_Visualisation","S14_4D (time)","S14_5D (cost)","S14_Analysis","S14_Contractor Use","S14_FM/OM Use","S15_Disc","S15_Score","S15_3D Model","S15_Drawings","S15_LoD","S15_Reviews","S15_Data","S15_Visualisation","S15_4D (time)","S15_5D (cost)","S15_Analysis","S15_Contractor Use","S15_FM/OM Use","S16_Disc","S16_Score","S16_3D Model","S16_Drawings","S16_LoD","S16_Reviews","S16_Data","S16_Visualisation","S16_4D (time)","S16_5D (cost)","S16_Analysis","S16_Contractor Use","S16_FM/OM Use","S17_Disc","S17_Score","S17_3D Model","S17_Drawings","S17_LoD","S17_Reviews","S17_Data","S17_Visualisation","S17_4D (time)","S17_5D (cost)","S17_Analysis","S17_Contractor Use","S17_FM/OM Use","S18_Disc","S18_Score","S18_3D Model","S18_Drawings","S18_LoD","S18_Reviews","S18_Data","S18_Visualisation","S18_4D (time)","S18_5D (cost)","S18_Analysis","S18_Contractor Use","S18_FM/OM Use","S19_Disc","S19_Score","S19_3D Model","S19_Drawings","S19_LoD","S19_Reviews","S19_Data","S19_Visualisation","S19_4D (time)","S19_5D (cost)","S19_Analysis","S19_Contractor Use","S19_FM/OM Use","S20_Disc","S20_Score","S20_3D Model","S20_Drawings","S20_LoD","S20_Reviews","S20_Data","S20_Visualisation","S20_4D (time)","S20_5D (cost)","S20_Analysis","S20_Contractor Use","S20_FM/OM Use","S21_Disc","S21_Score","S21_3D Model","S21_Drawings","S21_LoD","S21_Reviews","S21_Data","S21_Visualisation","S21_4D (time)","S21_5D (cost)","S21_Analysis","S21_Contractor Use","S21_FM/OM Use"]
[{"$f":"Cover!$F$2","v":"123456"},{"$f":"Cover!$F$3","v":"Project XXXXXXXXXXX"},{"$f":"Cover!$D$18","v":"Structures London"},{"$f":"Cover!$D$19","v":"John Smith"},{"$f":"Cover!$D$20","v":"John Smith"},{"$f":"Cover!$D$22","v":"Office Building"},{"$f":"Cover!$D$23","v":"London"},{"$f":"Cover!$D$25","v":"BigDevelopments, Inc"},{"$f":"Cover!$D$26","v":"Contractor Client Sector"},{"$f":"Cover!$D$28","v":"Bold Architects, Inc"},{"$f":"Cover!$D$30","v":"2014-01-01"},{"$f":"Cover!$D$31","v":"2015-12-31"},{"$f":"Cover!$D$9","v":"Strategy"},{"$f":"Cover!$D$14","v":""},{"$f":"Cover!$D$15","v":"Internal Network Folder – manual process"},{"$f":"Cover!$J$2","v":"BURLEIGH_S"},{"$f":"Cover!J3","v":"2015-09-24"},{"$f":"Cover!C7","v":0},{"$f":"Cover!D7","v":0},{"$f":"Cover!E7","v":"NA"},{"$f":"Cover!$D$36","v":"Project"},{"$f":"Cover!$D$37","v":0},{"$f":"Cover!$D46","v":0},{"$f":"Cover!$D47","v":0},{"$f":"Cover!$D48","v":0},{"$f":"Cover!$D49","v":0},{"$f":"Cover!$D50","v":0},{"$f":"Cover!$D51","v":0},{"$f":"Cover!$D52","v":0},{"$f":"Cover!$D53","v":0},{"$f":"Cover!$D54","v":0},{"$f":"Cover!$D55","v":0},{"$f":"Cover!$D56","v":0},{"$f":"Cover!G36","v":"Architecture"},{"$f":"Cover!G37","v":0},{"$f":"Cover!G46","v":0},{"$f":"Cover!G47","v":0},{"$f":"Cover!G48","v":0},{"$f":"Cover!G49","v":0},{"$f":"Cover!G50","v":0},{"$f":"Cover!G51","v":0},{"$f":"Cover!G52","v":0},{"$f":"Cover!G53","v":0},{"$f":"Cover!G54","v":0},{"$f":"Cover!G55","v":0},{"$f":"Cover!G56","v":0},{"$f":"Cover!H36","v":""},{"$f":"Cover!H37","v":0},{"$f":"Cover!H46","v":""},{"$f":"Cover!H47","v":""},{"$f":"Cover!H48","v":""},{"$f":"Cover!H49","v":""},{"$f":"Cover!H50","v":""},{"$f":"Cover!H51","v":""},{"$f":"Cover!H52","v":""},{"$f":"Cover!H53","v":""},{"$f":"Cover!H54","v":""},{"$f":"Cover!H55","v":""},{"$f":"Cover!H56","v":""},{"$f":"Cover!I36","v":""},{"$f":"Cover!I37","v":0},{"$f":"Cover!I46","v":""},{"$f":"Cover!I47","v":""},{"$f":"Cover!I48","v":""},{"$f":"Cover!I49","v":""},{"$f":"Cover!I50","v":""},{"$f":"Cover!I51","v":""},{"$f":"Cover!I52","v":""},{"$f":"Cover!I53","v":""},{"$f":"Cover!I54","v":""},{"$f":"Cover!I55","v":""},{"$f":"Cover!I56","v":""},{"$f":"Cover!J36","v":""},{"$f":"Cover!J37","v":0},{"$f":"Cover!J46","v":""},{"$f":"Cover!J47","v":""},{"$f":"Cover!J48","v":""},{"$f":"Cover!J49","v":""},{"$f":"Cover!J50","v":""},{"$f":"Cover!J51","v":""},{"$f":"Cover!J52","v":""},{"$f":"Cover!J53","v":""},{"$f":"Cover!J54","v":""},{"$f":"Cover!J55","v":""},{"$f":"Cover!J56","v":""},{"$f":"Cover!D59","v":"Structural"},{"$f":"Cover!D60","v":0},{"$f":"Cover!D69","v":0},{"$f":"Cover!D70","v":0},{"$f":"Cover!D71","v":0},{"$f":"Cover!D72","v":0},{"$f":"Cover!D73","v":0},{"$f":"Cover!D74","v":0},{"$f":"Cover!D75","v":0},{"$f":"Cover!D76","v":0},{"$f":"Cover!D77","v":0},{"$f":"Cover!D78","v":0},{"$f":"Cover!D79","v":0},{"$f":"Cover!E59","v":"Mechanical"},{"$f":"Cover!E60","v":0},{"$f":"Cover!E69","v":0},{"$f":"Cover!E70","v":0},{"$f":"Cover!E71","v":0},{"$f":"Cover!E72","v":0},{"$f":"Cover!E73","v":0},{"$f":"Cover!E74","v":0},{"$f":"Cover!E75","v":0},{"$f":"Cover!E76","v":0},{"$f":"Cover!E77","v":0},{"$f":"Cover!E78","v":0},{"$f":"Cover!E79","v":0},{"$f":"Cover!F59","v":"Electrical"},{"$f":"Cover!F60","v":0},{"$f":"Cover!F69","v":0},{"$f":"Cover!F70","v":0},{"$f":"Cover!F71","v":0},{"$f":"Cover!F72","v":0},{"$f":"Cover!F73","v":0},{"$f":"Cover!F74","v":0},{"$f":"Cover!F75","v":0},{"$f":"Cover!F76","v":0},{"$f":"Cover!F77","v":0},{"$f":"Cover!F78","v":0},{"$f":"Cover!F79","v":0},{"$f":"Cover!G59","v":"Public Health"},{"$f":"Cover!G60","v":0},{"$f":"Cover!G69","v":0},{"$f":"Cover!G70","v":0},{"$f":"Cover!G71","v":0},{"$f":"Cover!G72","v":0},{"$f":"Cover!G73","v":0},{"$f":"Cover!G74","v":0},{"$f":"Cover!G75","v":0},{"$f":"Cover!G76","v":0},{"$f":"Cover!G77","v":0},{"$f":"Cover!G78","v":0},{"$f":"Cover!G79","v":0},{"$f":"Cover!H59","v":""},{"$f":"Cover!H60","v":0},{"$f":"Cover!H69","v":""},{"$f":"Cover!H70","v":""},{"$f":"Cover!H71","v":""},{"$f":"Cover!H72","v":""},{"$f":"Cover!H73","v":""},{"$f":"Cover!H74","v":""},{"$f":"Cover!H75","v":""},{"$f":"Cover!H76","v":""},{"$f":"Cover!H77","v":""},{"$f":"Cover!H78","v":""},{"$f":"Cover!H79","v":""},{"$f":"Cover!I59","v":""},{"$f":"Cover!I60","v":0},{"$f":"Cover!I69","v":""},{"$f":"Cover!I70","v":""},{"$f":"Cover!I71","v":""},{"$f":"Cover!I72","v":""},{"$f":"Cover!I73","v":""},{"$f":"Cover!I74","v":""},{"$f":"Cover!I75","v":""},{"$f":"Cover!I76","v":""},{"$f":"Cover!I77","v":""},{"$f":"Cover!I78","v":""},{"$f":"Cover!I79","v":""},{"$f":"Cover!J59","v":""},{"$f":"Cover!J60","v":0},{"$f":"Cover!J69","v":""},{"$f":"Cover!J70","v":""},{"$f":"Cover!J71","v":""},{"$f":"Cover!J72","v":""},{"$f":"Cover!J73","v":""},{"$f":"Cover!J74","v":""},{"$f":"Cover!J75","v":""},{"$f":"Cover!J76","v":""},{"$f":"Cover!J77","v":""},{"$f":"Cover!J78","v":""},{"$f":"Cover!J79","v":""},{"$f":"Cover!D82","v":""},{"$f":"Cover!D83","v":0},{"$f":"Cover!D92","v":""},{"$f":"Cover!D93","v":""},{"$f":"Cover!D94","v":""},{"$f":"Cover!D95","v":""},{"$f":"Cover!D96","v":""},{"$f":"Cover!D97","v":""},{"$f":"Cover!D98","v":""},{"$f":"Cover!D99","v":""},{"$f":"Cover!D100","v":""},{"$f":"Cover!D101","v":""},{"$f":"Cover!D102","v":""},{"$f":"Cover!E82","v":""},{"$f":"Cover!E83","v":0},{"$f":"Cover!E92","v":""},{"$f":"Cover!E93","v":""},{"$f":"Cover!E94","v":""},{"$f":"Cover!E95","v":""},{"$f":"Cover!E96","v":""},{"$f":"Cover!E97","v":""},{"$f":"Cover!E98","v":""},{"$f":"Cover!E99","v":""},{"$f":"Cover!E100","v":""},{"$f":"Cover!E101","v":""},{"$f":"Cover!E102","v":""},{"$f":"Cover!F82","v":""},{"$f":"Cover!F83","v":0},{"$f":"Cover!F92","v":""},{"$f":"Cover!F93","v":""},{"$f":"Cover!F94","v":""},{"$f":"Cover!F95","v":""},{"$f":"Cover!F96","v":""},{"$f":"Cover!F97","v":""},{"$f":"Cover!F98","v":""},{"$f":"Cover!F99","v":""},{"$f":"Cover!F100","v":""},{"$f":"Cover!F101","v":""},{"$f":"Cover!F102","v":""},{"$f":"Cover!G82","v":""},{"$f":"Cover!G83","v":0},{"$f":"Cover!G92","v":""},{"$f":"Cover!G93","v":""},{"$f":"Cover!G94","v":""},{"$f":"Cover!G95","v":""},{"$f":"Cover!G96","v":""},{"$f":"Cover!G97","v":""},{"$f":"Cover!G98","v":""},{"$f":"Cover!G99","v":""},{"$f":"Cover!G100","v":""},{"$f":"Cover!G101","v":""},{"$f":"Cover!G102","v":""},{"$f":"Cover!H82","v":""},{"$f":"Cover!H83","v":0},{"$f":"Cover!H92","v":""},{"$f":"Cover!H93","v":""},{"$f":"Cover!H94","v":""},{"$f":"Cover!H95","v":""},{"$f":"Cover!H96","v":""},{"$f":"Cover!H97","v":""},{"$f":"Cover!H98","v":""},{"$f":"Cover!H99","v":""},{"$f":"Cover!H100","v":""},{"$f":"Cover!H101","v":""},{"$f":"Cover!H102","v":""},{"$f":"Cover!I82","v":""},{"$f":"Cover!I83","v":0},{"$f":"Cover!I92","v":""},{"$f":"Cover!I93","v":""},{"$f":"Cover!I94","v":""},{"$f":"Cover!I95","v":""},{"$f":"Cover!I96","v":""},{"$f":"Cover!I97","v":""},{"$f":"Cover!I98","v":""},{"$f":"Cover!I99","v":""},{"$f":"Cover!I100","v":""},{"$f":"Cover!I101","v":""},{"$f":"Cover!I102","v":""},{"$f":"Cover!J82","v":""},{"$f":"Cover!J83","v":0},{"$f":"Cover!J92","v":""},{"$f":"Cover!J93","v":""},{"$f":"Cover!J94","v":""},{"$f":"Cover!J95","v":""},{"$f":"Cover!J96","v":""},{"$f":"Cover!J97","v":""},{"$f":"Cover!J98","v":""},{"$f":"Cover!J99","v":""},{"$f":"Cover!J100","v":""},{"$f":"Cover!J101","v":""},{"$f":"Cover!J102","v":""},{"$f":"Cover!D105","v":""},{"$f":"Cover!D106","v":0},{"$f":"Cover!D115","v":""},{"$f":"Cover!D116","v":""},{"$f":"Cover!D117","v":""},{"$f":"Cover!D118","v":""},{"$f":"Cover!D119","v":""},{"$f":"Cover!D120","v":""},{"$f":"Cover!D121","v":""},{"$f":"Cover!D122","v":""},{"$f":"Cover!D123","v":""},{"$f":"Cover!D124","v":""},{"$f":"Cover!D125","v":""},{"$f":"Cover!E105","v":""},{"$f":"Cover!E106","v":0},{"$f":"Cover!E115","v":""},{"$f":"Cover!E116","v":""},{"$f":"Cover!E117","v":""},{"$f":"Cover!E118","v":""},{"$f":"Cover!E119","v":""},{"$f":"Cover!E120","v":""},{"$f":"Cover!E121","v":""},{"$f":"Cover!E122","v":""},{"$f":"Cover!E123","v":""},{"$f":"Cover!E124","v":""},{"$f":"Cover!E125","v":""},{"$f":"Cover!F105","v":""},{"$f":"Cover!F106","v":0},{"$f":"Cover!F115","v":""},{"$f":"Cover!F116","v":""},{"$f":"Cover!F117","v":""},{"$f":"Cover!F118","v":""},{"$f":"Cover!F119","v":""},{"$f":"Cover!F120","v":""},{"$f":"Cover!F121","v":""},{"$f":"Cover!F122","v":""},{"$f":"Cover!F123","v":""},{"$f":"Cover!F124","v":""},{"$f":"Cover!F125","v":""},{"$f":"Cover!G105","v":""},{"$f":"Cover!G106","v":0},{"$f":"Cover!G115","v":""},{"$f":"Cover!G116","v":""},{"$f":"Cover!G117","v":""},{"$f":"Cover!G118","v":""},{"$f":"Cover!G119","v":""},{"$f":"Cover!G120","v":""},{"$f":"Cover!G121","v":""},{"$f":"Cover!G122","v":""},{"$f":"Cover!G123","v":""},{"$f":"Cover!G124","v":""},{"$f":"Cover!G125","v":""},{"$f":"Cover!H105","v":""},{"$f":"Cover!H106","v":0},{"$f":"Cover!H115","v":""},{"$f":"Cover!H116","v":""},{"$f":"Cover!H117","v":""},{"$f":"Cover!H118","v":""},{"$f":"Cover!H119","v":""},{"$f":"Cover!H120","v":""},{"$f":"Cover!H121","v":""},{"$f":"Cover!H122","v":""},{"$f":"Cover!H123","v":""},{"$f":"Cover!H124","v":""},{"$f":"Cover!H125","v":""},{"$f":"Cover!I105","v":""},{"$f":"Cover!I106","v":0},{"$f":"Cover!I115","v":""},{"$f":"Cover!I116","v":""},{"$f":"Cover!I117","v":""},{"$f":"Cover!I118","v":""},{"$f":"Cover!I119","v":""},{"$f":"Cover!I120","v":""},{"$f":"Cover!I121","v":""},{"$f":"Cover!I122","v":""},{"$f":"Cover!I123","v":""},{"$f":"Cover!I124","v":""},{"$f":"Cover!I125","v":""},{"$f":"Cover!J105","v":""},{"$f":"Cover!J106","v":0},{"$f":"Cover!J115","v":""},{"$f":"Cover!J116","v":""},{"$f":"Cover!J117","v":""},{"$f":"Cover!J118","v":""},{"$f":"Cover!J119","v":""},{"$f":"Cover!J120","v":""},{"$f":"Cover!J121","v":""},{"$f":"Cover!J122","v":""},{"$f":"Cover!J123","v":""},{"$f":"Cover!J124","v":""},{"$f":"Cover!J125","v":""}]
[]
[]
[null,null,null,null,null,null,null,null,null,null,null,null,null,null,null,null,null,null,null,null,null,null,null,null,null,null,null,null,null,null,null,null,null,null,null,null,null,null,null,null,null,null,null,null,null,null,null,null,null,null,null,null,null,null,null,null,null,null,null,null,null,null,null,null,null,null,null,null,null,null,null,null,null,null,null,null,null,null,null,null,null,null,null,null,null,null,null,null,null,null,null,null,null,null,null,null,null,null,null,null,null,null,null,null,null,null,null,null,null,null,null,null,null,null,null,null,null,null,null,null,null,null,null,null,null,null,null,null,null,null,null,null,null,null,null,null,null,null,null,null,null,null,null,null,null,null,null,null,null,null,null,null,null,null,null,null,null,null,null,null,null,null,null,null,null,null,null,null,null,null,null,null,null,null,null,null,null,null,null,null,null,null,null,null,null,null,null,null,null,null,null,null,null,null,null,null,null,null,null,null,null,null,null,null,null,null,null,null,null,null,null,null,null,null,null,null,null,null,null,null,null,null,null,null,null,null,null,null,null,null,null,null,null,null,null,null,null,null,null,null,null,null,null,null,null,null,null,null,null,null,null,null,null,null,null,null,null,null,null,null,null,null,null,null,null,null,null,{"$f":"Cover!D117","v":""}]
[null,null,null,null,null,null,null,null,null,null,null,null,null,null,null,null,null,null,null,null,null,null,null,null,null,null,null,null,null,null,null,null,null,null,null,null,null,null,null,null,null,null,null,null,null,null,null,null,null,null,null,null,null,null,null,null,null,null,null,null,null,null,null,null,null,null,null,null,null,null,null,null,null,null,null,null,null,null,null,null,null,null,null,null,null,null,null,null,null,null,null,null,null,null,null,null,null,null,null,null,null,null,null,null,null,null,null,null,null,null,null,null,null,null,null,null,null,null,null,null,null,null,null,null,null,null,null,null,null,null,null,null,null,null,null,null,null,null,null,null,null,null,null,null,null,null,null,null,null,null,null,null,null,null,null,null,null,null,null,null,null,null,null,null,null,null,null,null,null,null,null,null,null,null,null,null,null,null,null,null,null,null,null,null,null,null,null,null,null,null,null,null,null,null,null,null,null,null,null,null,null,null,null,null,null,null,null,null,null,null,null,null,null,null,null,null,null,null,null,null,null,null,null,null,null,null,null,null,null,null,null,null,null,null,null,null,null,null,null,null,null,null,null,null,null,null,null,null,null,null,null,null,null,null,null,null,null,null,null,null,null,null,null,null,null,null,null,{"$f":"Cover!D118","v":""}]
[null,null,null,null,null,null,null,null,null,null,null,null,null,null,null,null,null,null,null,null,null,null,null,null,null,null,null,null,null,null,null,null,null,null,null,null,null,null,null,null,null,null,null,null,null,null,null,null,null,null,null,null,null,null,null,null,null,null,null,null,null,null,null,null,null,null,null,null,null,null,null,null,null,null,null,null,null,null,null,null,null,null,null,null,null,null,null,null,null,null,null,null,null,null,null,null,null,null,null,null,null,null,null,null,null,null,null,null,null,null,null,null,null,null,null,null,null,null,null,null,null,null,null,null,null,null,null,null,null,null,null,null,null,null,null,null,null,null,null,null,null,null,null,null,null,null,null,null,null,null,null,null,null,null,null,null,null,null,null,null,null,null,null,null,null,null,null,null,null,null,null,null,null,null,null,null,null,null,null,null,null,null,null,null,null,null,null,null,null,null,null,null,null,null,null,null,null,null,null,null,null,null,null,null,null,null,null,null,null,null,null,null,null,null,null,null,null,null,null,null,null,null,null,null,null,null,null,null,null,null,null,null,null,null,null,null,null,null,null,null,null,null,null,null,null,null,null,null,null,null,null,null,null,null,null,null,null,null,null,null,null,null,null,null,null,null,null,{"$f":"Cover!D119","v":""}]
[null,null,null,null,null,null,null,null,null,null,null,null,null,null,null,null,null,null,null,null,null,null,null,null,null,null,null,null,null,null,null,null,null,null,null,null,null,null,null,null,null,null,null,null,null,null,null,null,null,null,null,null,null,null,null,null,null,null,null,null,null,null,null,null,null,null,null,null,null,null,null,null,null,null,null,null,null,null,null,null,null,null,null,null,null,null,null,null,null,null,null,null,null,null,null,null,null,null,null,null,null,null,null,null,null,null,null,null,null,null,null,null,null,null,null,null,null,null,null,null,null,null,null,null,null,null,null,null,null,null,null,null,null,null,null,null,null,null,null,null,null,null,null,null,null,null,null,null,null,null,null,null,null,null,null,null,null,null,null,null,null,null,null,null,null,null,null,null,null,null,null,null,null,null,null,null,null,null,null,null,null,null,null,null,null,null,null,null,null,null,null,null,null,null,null,null,null,null,null,null,null,null,null,null,null,null,null,null,null,null,null,null,null,null,null,null,null,null,null,null,null,null,null,null,null,null,null,null,null,null,null,null,null,null,null,null,null,null,null,null,null,null,null,null,null,null,null,null,null,null,null,null,null,null,null,null,null,null,null,null,null,null,null,null,null,null,null,{"$f":"Cover!D120","v":""}]
[null,null,null,null,null,null,null,null,null,null,null,null,null,null,null,null,null,null,null,null,null,null,null,null,null,null,null,null,null,null,null,null,null,null,null,null,null,null,null,null,null,null,null,null,null,null,null,null,null,null,null,null,null,null,null,null,null,null,null,null,null,null,null,null,null,null,null,null,null,null,null,null,null,null,null,null,null,null,null,null,null,null,null,null,null,null,null,null,null,null,null,null,null,null,null,null,null,null,null,null,null,null,null,null,null,null,null,null,null,null,null,null,null,null,null,null,null,null,null,null,null,null,null,null,null,null,null,null,null,null,null,null,null,null,null,null,null,null,null,null,null,null,null,null,null,null,null,null,null,null,null,null,null,null,null,null,null,null,null,null,null,null,null,null,null,null,null,null,null,null,null,null,null,null,null,null,null,null,null,null,null,null,null,null,null,null,null,null,null,null,null,null,null,null,null,null,null,null,null,null,null,null,null,null,null,null,null,null,null,null,null,null,null,null,null,null,null,null,null,null,null,null,null,null,null,null,null,null,null,null,null,null,null,null,null,null,null,null,null,null,null,null,null,null,null,null,null,null,null,null,null,null,null,null,null,null,null,null,null,null,null,null,null,null,null,null,null,{"$f":"Cover!D121","v":""}]
[null,null,null,null,null,null,null,null,null,null,null,null,null,null,null,null,null,null,null,null,null,null,null,null,null,null,null,null,null,null,null,null,null,null,null,null,null,null,null,null,null,null,null,null,null,null,null,null,null,null,null,null,null,null,null,null,null,null,null,null,null,null,null,null,null,null,null,null,null,null,null,null,null,null,null,null,null,null,null,null,null,null,null,null,null,null,null,null,null,null,null,null,null,null,null,null,null,null,null,null,null,null,null,null,null,null,null,null,null,null,null,null,null,null,null,null,null,null,null,null,null,null,null,null,null,null,null,null,null,null,null,null,null,null,null,null,null,null,null,null,null,null,null,null,null,null,null,null,null,null,null,null,null,null,null,null,null,null,null,null,null,null,null,null,null,null,null,null,null,null,null,null,null,null,null,null,null,null,null,null,null,null,null,null,null,null,null,null,null,null,null,null,null,null,null,null,null,null,null,null,null,null,null,null,null,null,null,null,null,null,null,null,null,null,null,null,null,null,null,null,null,null,null,null,null,null,null,null,null,null,null,null,null,null,null,null,null,null,null,null,null,null,null,null,null,null,null,null,null,null,null,null,null,null,null,null,null,null,null,null,null,null,null,null,null,null,null,{"$f":"Cover!D122","v":""}]
[null,null,null,null,null,null,null,null,null,null,null,null,null,null,null,null,null,null,null,null,null,null,null,null,null,null,null,null,null,null,null,null,null,null,null,null,null,null,null,null,null,null,null,null,null,null,null,null,null,null,null,null,null,null,null,null,null,null,null,null,null,null,null,null,null,null,null,null,null,null,null,null,null,null,null,null,null,null,null,null,null,null,null,null,null,null,null,null,null,null,null,null,null,null,null,null,null,null,null,null,null,null,null,null,null,null,null,null,null,null,null,null,null,null,null,null,null,null,null,null,null,null,null,null,null,null,null,null,null,null,null,null,null,null,null,null,null,null,null,null,null,null,null,null,null,null,null,null,null,null,null,null,null,null,null,null,null,null,null,null,null,null,null,null,null,null,null,null,null,null,null,null,null,null,null,null,null,null,null,null,null,null,null,null,null,null,null,null,null,null,null,null,null,null,null,null,null,null,null,null,null,null,null,null,null,null,null,null,null,null,null,null,null,null,null,null,null,null,null,null,null,null,null,null,null,null,null,null,null,null,null,null,null,null,null,null,null,null,null,null,null,null,null,null,null,null,null,null,null,null,null,null,null,null,null,null,null,null,null,null,null,null,null,null,null,null,null,{"$f":"Cover!D123","v":""}]
[null,null,null,null,null,null,null,null,null,null,null,null,null,null,null,null,null,null,null,null,null,null,null,null,null,null,null,null,null,null,null,null,null,null,null,null,null,null,null,null,null,null,null,null,null,null,null,null,null,null,null,null,null,null,null,null,null,null,null,null,null,null,null,null,null,null,null,null,null,null,null,null,null,null,null,null,null,null,null,null,null,null,null,null,null,null,null,null,null,null,null,null,null,null,null,null,null,null,null,null,null,null,null,null,null,null,null,null,null,null,null,null,null,null,null,null,null,null,null,null,null,null,null,null,null,null,null,null,null,null,null,null,null,null,null,null,null,null,null,null,null,null,null,null,null,null,null,null,null,null,null,null,null,null,null,null,null,null,null,null,null,null,null,null,null,null,null,null,null,null,null,null,null,null,null,null,null,null,null,null,null,null,null,null,null,null,null,null,null,null,null,null,null,null,null,null,null,null,null,null,null,null,null,null,null,null,null,null,null,null,null,null,null,null,null,null,null,null,null,null,null,null,null,null,null,null,null,null,null,null,null,null,null,null,null,null,null,null,null,null,null,null,null,null,null,null,null,null,null,null,null,null,null,null,null,null,null,null,null,null,null,null,null,null,null,null,null,{"$f":"Cover!D124","v":""}]
[null,null,null,null,null,null,null,null,null,null,null,null,null,null,null,null,null,null,null,null,null,null,null,null,null,null,null,null,null,null,null,null,null,null,null,null,null,null,null,null,null,null,null,null,null,null,null,null,null,null,null,null,null,null,null,null,null,null,null,null,null,null,null,null,null,null,null,null,null,null,null,null,null,null,null,null,null,null,null,null,null,null,null,null,null,null,null,null,null,null,null,null,null,null,null,null,null,null,null,null,null,null,null,null,null,null,null,null,null,null,null,null,null,null,null,null,null,null,null,null,null,null,null,null,null,null,null,null,null,null,null,null,null,null,null,null,null,null,null,null,null,null,null,null,null,null,null,null,null,null,null,null,null,null,null,null,null,null,null,null,null,null,null,null,null,null,null,null,null,null,null,null,null,null,null,null,null,null,null,null,null,null,null,null,null,null,null,null,null,null,null,null,null,null,null,null,null,null,null,null,null,null,null,null,null,null,null,null,null,null,null,null,null,null,null,null,null,null,null,null,null,null,null,null,null,null,null,null,null,null,null,null,null,null,null,null,null,null,null,null,null,null,null,null,null,null,null,null,null,null,null,null,null,null,null,null,null,null,null,null,null,null,null,null,null,null,null,{"$f":"Cover!D125","v":""}]

{"sheet":"Data_Disciplines","index":5,"n_rows":14,"n_cols":29,"rows_kept":14,"cut":false,"hidden":true,"merged":[]}
["JobNo","Last Saved","Discipline","IM","P1","P2","P3","P4","S1","S2","S3","S4","S5","S6","S7","S8","S9","S10","S11","S12","S13","S14","S15","S16","S17","S18","S19","S20","S21"]
[{"$f":"Cover!$F$2","v":"123456"},{"$f":"Cover!$J$3","v":"2015-09-24"},"Name",{"$f":"Cover!D36","v":"Project"},{"$f":"Cover!G36","v":"Architecture"},{"$f":"Cover!H36","v":""},{"$f":"Cover!I36","v":""},{"$f":"Cover!J36","v":""},{"$f":"Cover!D59","v":"Structural"},{"$f":"Cover!E59","v":"Mechanical"},{"$f":"Cover!F59","v":"Electrical"},{"$f":"Cover!G59","v":"Public Health"},{"$f":"Cover!H59","v":""},{"$f":"Cover!I59","v":""},{"$f":"Cover!J59","v":""},{"$f":"Cover!D82","v":""},{"$f":"Cover!E82","v":""},{"$f":"Cover!F82","v":""},{"$f":"Cover!G82","v":""},{"$f":"Cover!H82","v":""},{"$f":"Cover!I82","v":""},{"$f":"Cover!J82","v":""},{"$f":"Cover!D105","v":""},{"$f":"Cover!E105","v":""},{"$f":"Cover!F105","v":""},{"$f":"Cover!G105","v":""},{"$f":"Cover!H105","v":""},{"$f":"Cover!I105","v":""},{"$f":"Cover!J105","v":""}]
[{"$f":"Cover!$F$2","v":"123456"},{"$f":"Cover!$J$3","v":"2015-09-24"},"Score",{"$f":"Cover!D37","v":0},{"$f":"Cover!G37","v":0},{"$f":"Cover!H37","v":0},{"$f":"Cover!I37","v":0},{"$f":"Cover!J37","v":0},{"$f":"Cover!D60","v":0},{"$f":"Cover!E60","v":0},{"$f":"Cover!F60","v":0},{"$f":"Cover!G60","v":0},{"$f":"Cover!H60","v":0},{"$f":"Cover!I60","v":0},{"$f":"Cover!J60","v":0},{"$f":"Cover!D83","v":0},{"$f":"Cover!E83","v":0},{"$f":"Cover!F83","v":0},{"$f":"Cover!G83","v":0},{"$f":"Cover!H83","v":0},{"$f":"Cover!I83","v":0},{"$f":"Cover!J83","v":0},{"$f":"Cover!D106","v":0},{"$f":"Cover!E106","v":0},{"$f":"Cover!F106","v":0},{"$f":"Cover!G106","v":0},{"$f":"Cover!H106","v":0},{"$f":"Cover!I106","v":0},{"$f":"Cover!J106","v":0}]
[{"$f":"Cover!$F$2","v":"123456"},{"$f":"Cover!$J$3","v":"2015-09-24"},1,{"$f":"Cover!D46","v":0},{"$f":"Cover!G46","v":0},{"$f":"Cover!H46","v":""},{"$f":"Cover!I46","v":""},{"$f":"Cover!J46","v":""},{"$f":"Cover!D69","v":0},{"$f":"Cover!E69","v":0},{"$f":"Cover!F69","v":0},{"$f":"Cover!G69","v":0},{"$f":"Cover!H69","v":""},{"$f":"Cover!I69","v":""},{"$f":"Cover!J69","v":""},{"$f":"Cover!D92","v":""},{"$f":"Cover!E92","v":""},{"$f":"Cover!F92","v":""},{"$f":"Cover!G92","v":""},{"$f":"Cover!H92","v":""},{"$f":"Cover!I92","v":""},{"$f":"Cover!J92","v":""},{"$f":"Cover!D115","v":""},{"$f":"Cover!E115","v":""},{"$f":"Cover!F115","v":""},{"$f":"Cover!G115","v":""},{"$f":"Cover!H115","v":""},{"$f":"Cover!I115","v":""},{"$f":"Cover!J115","v":""}]
[{"$f":"Cover!$F$2","v":"123456"},{"$f":"Cover!$J$3","v":"2015-09-24"},2,{"$f":"Cover!D47","v":0},{"$f":"Cover!G47","v":0},{"$f":"Cover!H47","v":""},{"$f":"Cover!I47","v":""},{"$f":"Cover!J47","v":""},{"$f":"Cover!D70","v":0},{"$f":"Cover!E70","v":0},{"$f":"Cover!F70","v":0},{"$f":"Cover!G70","v":0},{"$f":"Cover!H70","v":""},{"$f":"Cover!I70","v":""},{"$f":"Cover!J70","v":""},{"$f":"Cover!D93","v":""},{"$f":"Cover!E93","v":""},{"$f":"Cover!F93","v":""},{"$f":"Cover!G93","v":""},{"$f":"Cover!H93","v":""},{"$f":"Cover!I93","v":""},{"$f":"Cover!J93","v":""},{"$f":"Cover!D116","v":""},{"$f":"Cover!E116","v":""},{"$f":"Cover!F116","v":""},{"$f":"Cover!G116","v":""},{"$f":"Cover!H116","v":""},{"$f":"Cover!I116","v":""},{"$f":"Cover!J116","v":""}]
[{"$f":"Cover!$F$2","v":"123456"},{"$f":"Cover!$J$3","v":"2015-09-24"},3,{"$f":"Cover!D48","v":0},{"$f":"Cover!G48","v":0},{"$f":"Cover!H48","v":""},{"$f":"Cover!I48","v":""},{"$f":"Cover!J48","v":""},{"$f":"Cover!D71","v":0},{"$f":"Cover!E71","v":0},{"$f":"Cover!F71","v":0},{"$f":"Cover!G71","v":0},{"$f":"Cover!H71","v":""},{"$f":"Cover!I71","v":""},{"$f":"Cover!J71","v":""},{"$f":"Cover!D94","v":""},{"$f":"Cover!E94","v":""},{"$f":"Cover!F94","v":""},{"$f":"Cover!G94","v":""},{"$f":"Cover!H94","v":""},{"$f":"Cover!I94","v":""},{"$f":"Cover!J94","v":""},{"$f":"Cover!D117","v":""},{"$f":"Cover!E117","v":""},{"$f":"Cover!F117","v":""},{"$f":"Cover!G117","v":""},{"$f":"Cover!H117","v":""},{"$f":"Cover!I117","v":""},{"$f":"Cover!J117","v":""}]
[{"$f":"Cover!$F$2","v":"123456"},{"$f":"Cover!$J$3","v":"2015-09-24"},4,{"$f":"Cover!D49","v":0},{"$f":"Cover!G49","v":0},{"$f":"Cover!H49","v":""},{"$f":"Cover!I49","v":""},{"$f":"Cover!J49","v":""},{"$f":"Cover!D72","v":0},{"$f":"Cover!E72","v":0},{"$f":"Cover!F72","v":0},{"$f":"Cover!G72","v":0},{"$f":"Cover!H72","v":""},{"$f":"Cover!I72","v":""},{"$f":"Cover!J72","v":""},{"$f":"Cover!D95","v":""},{"$f":"Cover!E95","v":""},{"$f":"Cover!F95","v":""},{"$f":"Cover!G95","v":""},{"$f":"Cover!H95","v":""},{"$f":"Cover!I95","v":""},{"$f":"Cover!J95","v":""},{"$f":"Cover!D118","v":""},{"$f":"Cover!E118","v":""},{"$f":"Cover!F118","v":""},{"$f":"Cover!G118","v":""},{"$f":"Cover!H118","v":""},{"$f":"Cover!I118","v":""},{"$f":"Cover!J118","v":""}]
[{"$f":"Cover!$F$2","v":"123456"},{"$f":"Cover!$J$3","v":"2015-09-24"},5,{"$f":"Cover!D50","v":0},{"$f":"Cover!G50","v":0},{"$f":"Cover!H50","v":""},{"$f":"Cover!I50","v":""},{"$f":"Cover!J50","v":""},{"$f":"Cover!D73","v":0},{"$f":"Cover!E73","v":0},{"$f":"Cover!F73","v":0},{"$f":"Cover!G73","v":0},{"$f":"Cover!H73","v":""},{"$f":"Cover!I73","v":""},{"$f":"Cover!J73","v":""},{"$f":"Cover!D96","v":""},{"$f":"Cover!E96","v":""},{"$f":"Cover!F96","v":""},{"$f":"Cover!G96","v":""},{"$f":"Cover!H96","v":""},{"$f":"Cover!I96","v":""},{"$f":"Cover!J96","v":""},{"$f":"Cover!D119","v":""},{"$f":"Cover!E119","v":""},{"$f":"Cover!F119","v":""},{"$f":"Cover!G119","v":""},{"$f":"Cover!H119","v":""},{"$f":"Cover!I119","v":""},{"$f":"Cover!J119","v":""}]
[{"$f":"Cover!$F$2","v":"123456"},{"$f":"Cover!$J$3","v":"2015-09-24"},6,{"$f":"Cover!D51","v":0},{"$f":"Cover!G51","v":0},{"$f":"Cover!H51","v":""},{"$f":"Cover!I51","v":""},{"$f":"Cover!J51","v":""},{"$f":"Cover!D74","v":0},{"$f":"Cover!E74","v":0},{"$f":"Cover!F74","v":0},{"$f":"Cover!G74","v":0},{"$f":"Cover!H74","v":""},{"$f":"Cover!I74","v":""},{"$f":"Cover!J74","v":""},{"$f":"Cover!D97","v":""},{"$f":"Cover!E97","v":""},{"$f":"Cover!F97","v":""},{"$f":"Cover!G97","v":""},{"$f":"Cover!H97","v":""},{"$f":"Cover!I97","v":""},{"$f":"Cover!J97","v":""},{"$f":"Cover!D120","v":""},{"$f":"Cover!E120","v":""},{"$f":"Cover!F120","v":""},{"$f":"Cover!G120","v":""},{"$f":"Cover!H120","v":""},{"$f":"Cover!I120","v":""},{"$f":"Cover!J120","v":""}]
[{"$f":"Cover!$F$2","v":"123456"},{"$f":"Cover!$J$3","v":"2015-09-24"},7,{"$f":"Cover!D52","v":0},{"$f":"Cover!G52","v":0},{"$f":"Cover!H52","v":""},{"$f":"Cover!I52","v":""},{"$f":"Cover!J52","v":""},{"$f":"Cover!D75","v":0},{"$f":"Cover!E75","v":0},{"$f":"Cover!F75","v":0},{"$f":"Cover!G75","v":0},{"$f":"Cover!H75","v":""},{"$f":"Cover!I75","v":""},{"$f":"Cover!J75","v":""},{"$f":"Cover!D98","v":""},{"$f":"Cover!E98","v":""},{"$f":"Cover!F98","v":""},{"$f":"Cover!G98","v":""},{"$f":"Cover!H98","v":""},{"$f":"Cover!I98","v":""},{"$f":"Cover!J98","v":""},{"$f":"Cover!D121","v":""},{"$f":"Cover!E121","v":""},{"$f":"Cover!F121","v":""},{"$f":"Cover!G121","v":""},{"$f":"Cover!H121","v":""},{"$f":"Cover!I121","v":""},{"$f":"Cover!J121","v":""}]
[{"$f":"Cover!$F$2","v":"123456"},{"$f":"Cover!$J$3","v":"2015-09-24"},8,{"$f":"Cover!D53","v":0},{"$f":"Cover!G53","v":0},{"$f":"Cover!H53","v":""},{"$f":"Cover!I53","v":""},{"$f":"Cover!J53","v":""},{"$f":"Cover!D76","v":0},{"$f":"Cover!E76","v":0},{"$f":"Cover!F76","v":0},{"$f":"Cover!G76","v":0},{"$f":"Cover!H76","v":""},{"$f":"Cover!I76","v":""},{"$f":"Cover!J76","v":""},{"$f":"Cover!D99","v":""},{"$f":"Cover!E99","v":""},{"$f":"Cover!F99","v":""},{"$f":"Cover!G99","v":""},{"$f":"Cover!H99","v":""},{"$f":"Cover!I99","v":""},{"$f":"Cover!J99","v":""},{"$f":"Cover!D122","v":""},{"$f":"Cover!E122","v":""},{"$f":"Cover!F122","v":""},{"$f":"Cover!G122","v":""},{"$f":"Cover!H122","v":""},{"$f":"Cover!I122","v":""},{"$f":"Cover!J122","v":""}]
[{"$f":"Cover!$F$2","v":"123456"},{"$f":"Cover!$J$3","v":"2015-09-24"},9,{"$f":"Cover!D54","v":0},{"$f":"Cover!G54","v":0},{"$f":"Cover!H54","v":""},{"$f":"Cover!I54","v":""},{"$f":"Cover!J54","v":""},{"$f":"Cover!D77","v":0},{"$f":"Cover!E77","v":0},{"$f":"Cover!F77","v":0},{"$f":"Cover!G77","v":0},{"$f":"Cover!H77","v":""},{"$f":"Cover!I77","v":""},{"$f":"Cover!J77","v":""},{"$f":"Cover!D100","v":""},{"$f":"Cover!E100","v":""},{"$f":"Cover!F100","v":""},{"$f":"Cover!G100","v":""},{"$f":"Cover!H100","v":""},{"$f":"Cover!I100","v":""},{"$f":"Cover!J100","v":""},{"$f":"Cover!D123","v":""},{"$f":"Cover!E123","v":""},{"$f":"Cover!F123","v":""},{"$f":"Cover!G123","v":""},{"$f":"Cover!H123","v":""},{"$f":"Cover!I123","v":""},{"$f":"Cover!J123","v":""}]
[{"$f":"Cover!$F$2","v":"123456"},{"$f":"Cover!$J$3","v":"2015-09-24"},10,{"$f":"Cover!D55","v":0},{"$f":"Cover!G55","v":0},{"$f":"Cover!H55","v":""},{"$f":"Cover!I55","v":""},{"$f":"Cover!J55","v":""},{"$f":"Cover!D78","v":0},{"$f":"Cover!E78","v":0},{"$f":"Cover!F78","v":0},{"$f":"Cover!G78","v":0},{"$f":"Cover!H78","v":""},{"$f":"Cover!I78","v":""},{"$f":"Cover!J78","v":""},{"$f":"Cover!D101","v":""},{"$f":"Cover!E101","v":""},{"$f":"Cover!F101","v":""},{"$f":"Cover!G101","v":""},{"$f":"Cover!H101","v":""},{"$f":"Cover!I101","v":""},{"$f":"Cover!J101","v":""},{"$f":"Cover!D124","v":""},{"$f":"Cover!E124","v":""},{"$f":"Cover!F124","v":""},{"$f":"Cover!G124","v":""},{"$f":"Cover!H124","v":""},{"$f":"Cover!I124","v":""},{"$f":"Cover!J124","v":""}]
[{"$f":"Cover!$F$2","v":"123456"},{"$f":"Cover!$J$3","v":"2015-09-24"},11,{"$f":"Cover!D56","v":0},{"$f":"Cover!G56","v":0},{"$f":"Cover!H56","v":""},{"$f":"Cover!I56","v":""},{"$f":"Cover!J56","v":""},{"$f":"Cover!D79","v":0},{"$f":"Cover!E79","v":0},{"$f":"Cover!F79","v":0},{"$f":"Cover!G79","v":0},{"$f":"Cover!H79","v":""},{"$f":"Cover!I79","v":""},{"$f":"Cover!J79","v":""},{"$f":"Cover!D102","v":""},{"$f":"Cover!E102","v":""},{"$f":"Cover!F102","v":""},{"$f":"Cover!G102","v":""},{"$f":"Cover!H102","v":""},{"$f":"Cover!I102","v":""},{"$f":"Cover!J102","v":""},{"$f":"Cover!D125","v":""},{"$f":"Cover!E125","v":""},{"$f":"Cover!F125","v":""},{"$f":"Cover!G125","v":""},{"$f":"Cover!H125","v":""},{"$f":"Cover!I125","v":""},{"$f":"Cover!J125","v":""}]

{"sheet":"Cover","index":6,"n_rows":125,"n_cols":23,"rows_kept":125,"cut":false,"hidden":true,"merged":[[1,2,1,3],[2,5,2,7],[30,3,30,4],[27,3,27,4],[14,3,14,4],[8,3,8,4],[21,3,21,4],[22,3,22,4],[24,3,24,4],[25,3,25,4],[29,3,29,4],[13,3,13,5],[15,2,15,3],[17,3,17,4],[18,3,18,4],[19,3,19,4]]}
[]
[null,null,"BIM MATURITY MEASURE",null,"Job No.:",{"$f":"TRIM(MID(CELL(\"Filename\",D1),1+SEARCH(\"[\",CELL(\"Filename\",D1),1),Configuration!$E$3))","v":"123456"},null,null,"Last Saved By:","BURLEIGH_S"]
[null,null,"(your company logo here)",null,"Project:","Project XXXXXXXXXXX",null,null,"Last Saved:","2015-09-24"]
[]
[]
[null,null,null,"Primary\nScore","Primary + Secondary"]
[null,null,null,{"$f":"IFERROR(SUM(D37:J37)/(N37),0)","v":0},{"$f":"IF(SUM(D60:J60,D83:J83,D106:J106)=0,\"NA\",SUM(D37:J37,D60:J60,D83:J83,D106:J106)/(N37+N60+N83+N106))","v":"NA"}]
[]
[null,null,"Project Stage:","Strategy"]
[null,null,null,"RIBA",{"$f":"IFERROR(INDIRECT(ADDRESS(1+MATCH(D$9,ProjectStages!A$2:A$9,0),1+MATCH(D10,ProjectStages!B$1:G$1,0),,,\"ProjectStages\")),\"\")","v":"Strategy Definition"}]
[null,null,null,"Rail",{"$f":"IFERROR(INDIRECT(ADDRESS(1+MATCH(D$9,ProjectStages!A$2:A$9,0),1+MATCH(D11,ProjectStages!B$1:G$1,0),,,\"ProjectStages\")),\"\")","v":"GRIP1.Output definition"}]
[null,null,null,"Highways",{"$f":"IFERROR(INDIRECT(ADDRESS(1+MATCH(D$9,ProjectStages!A$2:A$9,0),1+MATCH(D12,ProjectStages!B$1:G$1,0),,,\"ProjectStages\")),\"\")","v":"Strategy"}]
[null,null,null,"Water",{"$f":"IFERROR(INDIRECT(ADDRESS(1+MATCH(D$9,ProjectStages!A$2:A$9,0),1+MATCH(D13,ProjectStages!B$1:G$1,0),,,\"ProjectStages\")),\"\")","v":"Brief / Prep"}]
[null,null,"Disciplines Scored:",{"$f":"IF(G37>0,LEFT(G36,3),\"\")&IF(H37>0,\",\"&LEFT(H36,3),\"\")&IF(I37>0,\",\"&LEFT(I36,3),\"\")&IF(J37>0,\",\"&LEFT(J36,3),\"\")&IF(D60>0,\",\"&LEFT(D59,3),\"\")&IF(E60>0,\",\"&LEFT(E59,3),\"\")&IF(F60>0,\",\"&LEFT(F59,3),\"\")&IF(G60>0,\",\"&LEFT(G59,3),\"\")&IF(H60>0,\",\"&LEFT(H59,3),\"\")&IF(I60>0,\",\"&LEFT(I59,3),\"\")&IF(J60>0,\",\"&LEFT(J59,3),\"\")&IF(D83>0,\",\"&LEFT(D82,3),\"\")&IF(E83>0,\",\"&LEFT(E82,3),\"\")&IF(F83>0,\",\"&LEFT(F82,3),\"\")&IF(G83>0,\",\"&LEFT(G82,3),\"\")&IF(H83>0,\",\"&LEFT(H82,3),\"\")&IF(I83>0,\",\"&LEFT(I82,3),\"\")&IF(J83>0,\",\"&LEFT(J82,3),\"\")&IF(D106>0,\",\"&LEFT(D105,3),\"\")&IF(E106>0,\",\"&LEFT(E105,3),\"\")&IF(F106>0,\",\"&LEFT(F105,3),\"\")&IF(G106>0,\",\"&LEFT(G105,3),\"\")&IF(H106>0,\",\"&LEFT(H105,3),\"\")&IF(I106>0,\",\"&LEFT(I105,3),\"\")&IF(J106>0,\",\"&LEFT(J105,3),\"\")","v":""},null,null,null,null,null,null,null,null,null,"Discipline letters",4]
[null,null,"CDE:","Internal Network Folder – manual process"]
[null,null,"Project Information"]
[null,null,null,null,null,null,null,null,null,null,null,null,null,null,"Group"]
[null,null,"Company Sub-Group","Structures London",null,null,null,null,null,null,null,null,null,null,"Director"]
[null,null,"Project Director","John Smith",null,null,null,null,null,null,null,null,null,"Strategy","Manager"]
[null,null,"Project Manager","John Smith",null,null,null,null,null,null,null,null,null,"Brief"]
[null,null,null,null,null,null,null,null,null,null,null,null,null,"Concept","Project Type"]
[null,null,"Project Type","Office Building",null,null,null,null,null,null,null,null,null,"Definition","Location"]
[null,null,"Location","London",null,null,null,null,null,null,null,null,null,"Design"]
[null,null,null,null,null,null,null,null,null,null,null,null,null,"Build & Commission","Client"]
[null,null,"Client","BigDevelopments, Inc",null,null,null,null,null,null,null,null,null,"Handover & Closeout","Client Type"]
[null,null,"Client Type","Contractor Client Sector",null,null,null,null,null,null,null,null,null,"Operations & end of life"]
[null,null,null,null,null,null,null,null,null,null,null,null,null,null,"Architect"]
[null,null,"Architect","Bold Architects, Inc"]
[null,null,null,null,null,null,null,null,null,null,null,null,null,null,"Start"]
[null,null,"Project Start","2014-01-01",null,null,null,null,null,null,null,null,null,null,"Finish"]
[null,null,"Project Finish","2015-12-31"]
[]
[]
[]
[]
[null,null,null,"Project",null,null,{"$f":"IF(ISBLANK(Configuration!B15),\"\",Configuration!B15)","v":"Architecture"},{"$f":"IF(ISBLANK(Configuration!B16),\"\",Configuration!B16)","v":""},{"$f":"IF(ISBLANK(Configuration!B17),\"\",Configuration!B17)","v":""},{"$f":"IF(ISBLANK(Configuration!B18),\"\",Configuration!B18)","v":""}]
[null,null,null,{"$f":"IF(ISERROR(INDIRECT(\"'\"&D36&\"'!M5\")),0,INDIRECT(\"'\"&D36&\"'!M5\"))","v":0},null,null,{"$f":"IF(ISERROR(INDIRECT(\"'\"&G36&\"'!M5\")),0,INDIRECT(\"'\"&G36&\"'!M5\"))","v":0},{"$f":"IF(ISERROR(INDIRECT(\"'\"&H36&\"'!M5\")),0,INDIRECT(\"'\"&H36&\"'!M5\"))","v":0},{"$f":"IF(ISERROR(INDIRECT(\"'\"&I36&\"'!M5\")),0,INDIRECT(\"'\"&I36&\"'!M5\"))","v":0},{"$f":"IF(ISERROR(INDIRECT(\"'\"&J36&\"'!M5\")),0,INDIRECT(\"'\"&J36&\"'!M5\"))","v":0},null,null,null,{"$f":"COUNTIF(D37:J37,\">0\")","v":0}]
[]
[]
[]
[]
[]
[null,null,null,null,null,null,null,null,null,null,null,null,null,null,null,null,0.75]
[]
[null,null,null,null,null,null,null,null,null,null,null,null,null,null,null,null,{"$f":"$Q$43","v":0.75},null,null,{"$f":"$Q$43","v":0.75},0.75,0.75,0.75]
[null,1,"EIRs",{"$f":"Project!L8","v":0},null,"3D Model",{"$f":"IF(ISERROR(INDIRECT(\"'\"&G$36&\"'!L8\")),\"\",INDIRECT(\"'\"&G$36&\"'!L8\"))","v":0},{"$f":"IF(ISERROR(INDIRECT(\"'\"&H$36&\"'!L8\")),\"\",INDIRECT(\"'\"&H$36&\"'!L8\"))","v":""},"","",null,null,null,null,null,null,{"$f":"IF(D46=0,Q$45+D46,D46)","v":0.75},null,null,{"$f":"IF(G46=0,T$45+G46,G46)","v":0.75},{"$f":"IF(H46=0,U$45+H46,H46)","v":""},{"$f":"IF(I46=0,V$45+I46,I46)","v":""},{"$f":"IF(J46=0,W$45+J46,J46)","v":""}]
[null,2,"BIM Data Review",{"$f":"Project!L9","v":0},null,"Drawings",{"$f":"IF(ISERROR(INDIRECT(\"'\"&G$36&\"'!L9\")),\"\",INDIRECT(\"'\"&G$36&\"'!L9\"))","v":0},{"$f":"IF(ISERROR(INDIRECT(\"'\"&H$36&\"'!L9\")),\"\",INDIRECT(\"'\"&H$36&\"'!L9\"))","v":""},"","",null,null,null,null,null,null,0.75,null,null,{"$f":"IF(G47=0,T$45+G47,G47)","v":0.75},"","",""]
[null,3,"BEP",{"$f":"Project!L10","v":0},null,"LoD",{"$f":"IF(ISERROR(INDIRECT(\"'\"&G$36&\"'!L10\")),\"\",INDIRECT(\"'\"&G$36&\"'!L10\"))","v":0},{"$f":"IF(ISERROR(INDIRECT(\"'\"&H$36&\"'!L10\")),\"\",INDIRECT(\"'\"&H$36&\"'!L10\"))","v":""},"","",null,null,null,null,null,null,0.75,null,null,0.75,"","",""]
[null,4,"Procurement",{"$f":"Project!L11","v":0},null,"Reviews",{"$f":"IF(ISERROR(INDIRECT(\"'\"&G$36&\"'!L11\")),\"\",INDIRECT(\"'\"&G$36&\"'!L11\"))","v":0},{"$f":"IF(ISERROR(INDIRECT(\"'\"&H$36&\"'!L11\")),\"\",INDIRECT(\"'\"&H$36&\"'!L11\"))","v":""},"","",null,null,null,null,null,null,0.75,null,null,0.75,"","",""]
[null,5,"CDE",{"$f":"Project!L12","v":0},null,"Data",{"$f":"IF(ISERROR(INDIRECT(\"'\"&G$36&\"'!L17\")),\"\",INDIRECT(\"'\"&G$36&\"'!L17\"))","v":0},{"$f":"IF(ISERROR(INDIRECT(\"'\"&H$36&\"'!L17\")),\"\",INDIRECT(\"'\"&H$36&\"'!L17\"))","v":""},"","",null,null,null,null,null,null,0.75,null,null,0.75,"","",""]
[null,6,"Version, Status",{"$f":"Project!L13","v":0},null,"Visualisation",{"$f":"IF(ISERROR(INDIRECT(\"'\"&G$36&\"'!L18\")),\"\",INDIRECT(\"'\"&G$36&\"'!L18\"))","v":0},{"$f":"IF(ISERROR(INDIRECT(\"'\"&H$36&\"'!L18\")),\"\",INDIRECT(\"'\"&H$36&\"'!L18\"))","v":""},"","",null,null,null,null,null,null,0.75,null,null,0.75,"","",""]
[null,7,"Marketing Strategy",{"$f":"Project!L14","v":0},null,"4D (time)",{"$f":"IF(ISERROR(INDIRECT(\"'\"&G$36&\"'!L19\")),\"\",INDIRECT(\"'\"&G$36&\"'!L19\"))","v":0},{"$f":"IF(ISERROR(INDIRECT(\"'\"&H$36&\"'!L19\")),\"\",INDIRECT(\"'\"&H$36&\"'!L19\"))","v":""},"","",null,null,null,null,null,null,0.75,null,null,0.75,{"$f":"IF(H52=0,U$45+H52,H52)","v":""},"",""]
[null,8,"VDRs",{"$f":"Project!L15","v":0},null,"5D (cost)",{"$f":"IF(ISERROR(INDIRECT(\"'\"&G$36&\"'!L20\")),\"\",INDIRECT(\"'\"&G$36&\"'!L20\"))","v":0},{"$f":"IF(ISERROR(INDIRECT(\"'\"&H$36&\"'!L20\")),\"\",INDIRECT(\"'\"&H$36&\"'!L20\"))","v":""},"","",null,null,null,null,null,null,0.75,null,null,0.75,"","",""]
[null,9,"Open Standards",{"$f":"Project!L16","v":0},null,"Analysis",{"$f":"IF(ISERROR(INDIRECT(\"'\"&G$36&\"'!L21\")),\"\",INDIRECT(\"'\"&G$36&\"'!L21\"))","v":0},{"$f":"IF(ISERROR(INDIRECT(\"'\"&H$36&\"'!L21\")),\"\",INDIRECT(\"'\"&H$36&\"'!L21\"))","v":""},"","",null,null,null,null,null,null,0.75,null,null,0.75,"","",""]
[null,10,"BIM Contract",{"$f":"Project!L17","v":0},null,"Contractor Use",{"$f":"IF(ISERROR(INDIRECT(\"'\"&G$36&\"'!L22\")),\"\",INDIRECT(\"'\"&G$36&\"'!L22\"))","v":0},{"$f":"IF(ISERROR(INDIRECT(\"'\"&H$36&\"'!L22\")),\"\",INDIRECT(\"'\"&H$36&\"'!L22\"))","v":""},"","",null,null,null,null,null,null,0.75,null,null,0.75,"","",""]
[null,11,"BIM Champion",{"$f":"Project!L18","v":0},null,"FM/OM Use",{"$f":"IF(ISERROR(INDIRECT(\"'\"&G$36&\"'!L23\")),\"\",INDIRECT(\"'\"&G$36&\"'!L23\"))","v":0},{"$f":"IF(ISERROR(INDIRECT(\"'\"&H$36&\"'!L23\")),\"\",INDIRECT(\"'\"&H$36&\"'!L23\"))","v":""},"","",null,null,null,null,null,null,0.75,null,null,0.75,"","",""]
[]
[]
[null,null,null,{"$f":"IF(ISBLANK(Configuration!$B23),\"NOT USED\",Configuration!$B23)","v":"Structural"},{"$f":"IF(ISBLANK(Configuration!$B24),\"\",Configuration!$B24)","v":"Mechanical"},{"$f":"IF(ISBLANK(Configuration!B25),\"\",Configuration!B25)","v":"Electrical"},{"$f":"IF(ISBLANK(Configuration!B26),\"\",Configuration!B26)","v":"Public Health"},{"$f":"IF(ISBLANK(Configuration!B27),\"\",Configuration!B27)","v":""},{"$f":"IF(ISBLANK(Configuration!B28),\"\",Configuration!B28)","v":""},{"$f":"IF(ISBLANK(Configuration!B29),\"\",Configuration!B29)","v":""}]
[null,null,null,{"$f":"IF(ISERROR(INDIRECT(\"'\"&D59&\"'!M5\")),0,INDIRECT(\"'\"&D59&\"'!M5\"))","v":0},{"$f":"IF(ISERROR(INDIRECT(\"'\"&E59&\"'!M5\")),0,INDIRECT(\"'\"&E59&\"'!M5\"))","v":0},0,0,0,0,0,null,null,null,{"$f":"COUNTIF(D60:J60,\">0\")","v":0}]
[]
[]
[]
[]
[]
[]
[]
[null,null,null,null,null,null,null,null,null,null,null,null,null,null,null,null,{"$f":"$Q$43","v":0.75},{"$f":"$Q$43","v":0.75},0.75,0.75,0.75,0.75,0.75]
[null,1,"3D Model",{"$f":"IF(ISERROR(INDIRECT(\"'\"&D$59&\"'!L8\")),\"\",INDIRECT(\"'\"&D$59&\"'!L8\"))","v":0},{"$f":"IF(ISERROR(INDIRECT(\"'\"&E$59&\"'!L8\")),\"\",INDIRECT(\"'\"&E$59&\"'!L8\"))","v":0},0,0,"","","",null,null,null,null,null,null,{"$f":"IF(D69=0,Q$68+D69,D69)","v":0.75},{"$f":"IF(E69=0,R$68+E69,E69)","v":0.75},0.75,0.75,"","",""]
[null,2,"Drawings",{"$f":"IF(ISERROR(INDIRECT(\"'\"&D$59&\"'!L9\")),\"\",INDIRECT(\"'\"&D$59&\"'!L9\"))","v":0},{"$f":"IF(ISERROR(INDIRECT(\"'\"&E$59&\"'!L9\")),\"\",INDIRECT(\"'\"&E$59&\"'!L9\"))","v":0},0,0,"","","",null,null,null,null,null,null,0.75,0.75,0.75,0.75,"","",""]
[null,3,"LoD",{"$f":"IF(ISERROR(INDIRECT(\"'\"&D$59&\"'!L10\")),\"\",INDIRECT(\"'\"&D$59&\"'!L10\"))","v":0},{"$f":"IF(ISERROR(INDIRECT(\"'\"&E$59&\"'!L10\")),\"\",INDIRECT(\"'\"&E$59&\"'!L10\"))","v":0},0,0,"","","",null,null,null,null,null,null,0.75,0.75,0.75,0.75,"","",""]
[null,4,"Reviews",{"$f":"IF(ISERROR(INDIRECT(\"'\"&D$59&\"'!L11\")),\"\",INDIRECT(\"'\"&D$59&\"'!L11\"))","v":0},{"$f":"IF(ISERROR(INDIRECT(\"'\"&E$59&\"'!L11\")),\"\",INDIRECT(\"'\"&E$59&\"'!L11\"))","v":0},0,0,"","","",null,null,null,null,null,null,0.75,0.75,0.75,0.75,"","",""]
[null,5,"Data",{"$f":"IF(ISERROR(INDIRECT(\"'\"&D$59&\"'!L17\")),\"\",INDIRECT(\"'\"&D$59&\"'!L17\"))","v":0},{"$f":"IF(ISERROR(INDIRECT(\"'\"&E$59&\"'!L17\")),\"\",INDIRECT(\"'\"&E$59&\"'!L17\"))","v":0},0,0,"","","",null,null,null,null,null,null,0.75,0.75,0.75,0.75,"","",""]
[null,6,"Visualisation",{"$f":"IF(ISERROR(INDIRECT(\"'\"&D$59&\"'!L18\")),\"\",INDIRECT(\"'\"&D$59&\"'!L18\"))","v":0},{"$f":"IF(ISERROR(INDIRECT(\"'\"&E$59&\"'!L18\")),\"\",INDIRECT(\"'\"&E$59&\"'!L18\"))","v":0},0,0,"","","",null,null,null,null,null,null,0.75,0.75,0.75,0.75,"","",""]
[null,7,"4D",{"$f":"IF(ISERROR(INDIRECT(\"'\"&D$59&\"'!L19\")),\"\",INDIRECT(\"'\"&D$59&\"'!L19\"))","v":0},{"$f":"IF(ISERROR(INDIRECT(\"'\"&E$59&\"'!L19\")),\"\",INDIRECT(\"'\"&E$59&\"'!L19\"))","v":0},0,0,"","","",null,null,null,null,null,null,0.75,0.75,0.75,0.75,"","",""]
[null,8,"5D",{"$f":"IF(ISERROR(INDIRECT(\"'\"&D$59&\"'!L20\")),\"\",INDIRECT(\"'\"&D$59&\"'!L20\"))","v":0},{"$f":"IF(ISERROR(INDIRECT(\"'\"&E$59&\"'!L20\")),\"\",INDIRECT(\"'\"&E$59&\"'!L20\"))","v":0},0,0,"","","",null,null,null,null,null,null,0.75,0.75,0.75,0.75,"","",""]
[null,9,"Analysis",{"$f":"IF(ISERROR(INDIRECT(\"'\"&D$59&\"'!L21\")),\"\",INDIRECT(\"'\"&D$59&\"'!L21\"))","v":0},{"$f":"IF(ISERROR(INDIRECT(\"'\"&E$59&\"'!L21\")),\"\",INDIRECT(\"'\"&E$59&\"'!L21\"))","v":0},0,0,"","","",null,null,null,null,null,null,0.75,0.75,0.75,0.75,"","",""]
[null,10,"Contractor Use",{"$f":"IF(ISERROR(INDIRECT(\"'\"&D$59&\"'!L22\")),\"\",INDIRECT(\"'\"&D$59&\"'!L22\"))","v":0},{"$f":"IF(ISERROR(INDIRECT(\"'\"&E$59&\"'!L22\")),\"\",INDIRECT(\"'\"&E$59&\"'!L22\"))","v":0},0,0,"","","",null,null,null,null,null,null,0.75,0.75,0.75,0.75,"","",""]
[null,11,"FM/OM Use",{"$f":"IF(ISERROR(INDIRECT(\"'\"&D$59&\"'!L23\")),\"\",INDIRECT(\"'\"&D$59&\"'!L23\"))","v":0},{"$f":"IF(ISERROR(INDIRECT(\"'\"&E$59&\"'!L23\")),\"\",INDIRECT(\"'\"&E$59&\"'!L23\"))","v":0},0,0,"","","",null,null,null,null,null,null,0.75,0.75,0.75,0.75,"","",""]
[]
[]
[null,null,null,{"$f":"IF(ISBLANK(Configuration!$D23),\"\",Configuration!$D23)","v":""},{"$f":"IF(ISBLANK(Configuration!$D24),\"\",Configuration!$D24)","v":""},{"$f":"IF(ISBLANK(Configuration!$D25),\"\",Configuration!$D25)","v":""},{"$f":"IF(ISBLANK(Configuration!$D26),\"\",Configuration!$D26)","v":""},{"$f":"IF(ISBLANK(Configuration!$D27),\"\",Configuration!$D27)","v":""},{"$f":"IF(ISBLANK(Configuration!$D28),\"\",Configuration!$D28)","v":""},{"$f":"IF(ISBLANK(Configuration!$D29),\"\",Configuration!$D29)","v":""}]
[null,null,null,{"$f":"IF(ISERROR(INDIRECT(\"'\"&D82&\"'!M5\")),0,INDIRECT(\"'\"&D82&\"'!M5\"))","v":0},0,0,0,{"$f":"IF(ISERROR(INDIRECT(\"'\"&H82&\"'!M5\")),0,INDIRECT(\"'\"&H82&\"'!M5\"))","v":0},0,0,null,null,null,{"$f":"COUNTIF(D83:J83,\">0\")","v":0}]
[]
[]
[]
[]
[]
[]
[]
[null,null,null,null,null,null,null,null,null,null,null,null,null,null,null,null,{"$f":"$Q$43","v":0.75},{"$f":"$Q$43","v":0.75},0.75,0.75,0.75,0.75,0.75]
[null,1,"3D Model",{"$f":"IF(ISERROR(INDIRECT(\"'\"&D$82&\"'!L8\")),\"\",INDIRECT(\"'\"&D$82&\"'!L8\"))","v":""},{"$f":"IF(ISERROR(INDIRECT(\"'\"&E$82&\"'!L8\")),\"\",INDIRECT(\"'\"&E$82&\"'!L8\"))","v":""},"","","","","",null,null,null,null,null,null,{"$f":"IF(D92=0,Q$91+D92,D92)","v":""},{"$f":"IF(E92=0,R$91+E92,E92)","v":""},"","","","",""]
[null,2,"Drawings",{"$f":"IF(ISERROR(INDIRECT(\"'\"&D$82&\"'!L9\")),\"\",INDIRECT(\"'\"&D$82&\"'!L9\"))","v":""},{"$f":"IF(ISERROR(INDIRECT(\"'\"&E$82&\"'!L9\")),\"\",INDIRECT(\"'\"&E$82&\"'!L9\"))","v":""},"","","","","",null,null,null,null,null,null,"","","","","","",""]
[null,3,"LoD",{"$f":"IF(ISERROR(INDIRECT(\"'\"&D$82&\"'!L10\")),\"\",INDIRECT(\"'\"&D$82&\"'!L10\"))","v":""},{"$f":"IF(ISERROR(INDIRECT(\"'\"&E$82&\"'!L10\")),\"\",INDIRECT(\"'\"&E$82&\"'!L10\"))","v":""},"","","","","",null,null,null,null,null,null,"","","","","","",""]
[null,4,"Reviews",{"$f":"IF(ISERROR(INDIRECT(\"'\"&D$82&\"'!L11\")),\"\",INDIRECT(\"'\"&D$82&\"'!L11\"))","v":""},{"$f":"IF(ISERROR(INDIRECT(\"'\"&E$82&\"'!L11\")),\"\",INDIRECT(\"'\"&E$82&\"'!L11\"))","v":""},"","","","","",null,null,null,null,null,null,"","","","","","",""]
[null,5,"Data",{"$f":"IF(ISERROR(INDIRECT(\"'\"&D$82&\"'!L17\")),\"\",INDIRECT(\"'\"&D$82&\"'!L17\"))","v":""},{"$f":"IF(ISERROR(INDIRECT(\"'\"&E$82&\"'!L17\")),\"\",INDIRECT(\"'\"&E$82&\"'!L17\"))","v":""},"","","","","",null,null,null,null,null,null,"","","","","","",""]
[null,6,"Visualisation",{"$f":"IF(ISERROR(INDIRECT(\"'\"&D$82&\"'!L18\")),\"\",INDIRECT(\"'\"&D$82&\"'!L18\"))","v":""},{"$f":"IF(ISERROR(INDIRECT(\"'\"&E$82&\"'!L18\")),\"\",INDIRECT(\"'\"&E$82&\"'!L18\"))","v":""},"","","","","",null,null,null,null,null,null,"","","","","","",""]
[null,7,"4D",{"$f":"IF(ISERROR(INDIRECT(\"'\"&D$82&\"'!L19\")),\"\",INDIRECT(\"'\"&D$82&\"'!L19\"))","v":""},{"$f":"IF(ISERROR(INDIRECT(\"'\"&E$82&\"'!L19\")),\"\",INDIRECT(\"'\"&E$82&\"'!L19\"))","v":""},"","","","","",null,null,null,null,null,null,"","","","","","",""]
[null,8,"5D",{"$f":"IF(ISERROR(INDIRECT(\"'\"&D$82&\"'!L20\")),\"\",INDIRECT(\"'\"&D$82&\"'!L20\"))","v":""},{"$f":"IF(ISERROR(INDIRECT(\"'\"&E$82&\"'!L20\")),\"\",INDIRECT(\"'\"&E$82&\"'!L20\"))","v":""},"","","","","",null,null,null,null,null,null,"","","","","","",""]
[null,9,"Analysis",{"$f":"IF(ISERROR(INDIRECT(\"'\"&D$82&\"'!L21\")),\"\",INDIRECT(\"'\"&D$82&\"'!L21\"))","v":""},{"$f":"IF(ISERROR(INDIRECT(\"'\"&E$82&\"'!L21\")),\"\",INDIRECT(\"'\"&E$82&\"'!L21\"))","v":""},"","","","","",null,null,null,null,null,null,"","","","","","",""]
[null,10,"Contractor Use",{"$f":"IF(ISERROR(INDIRECT(\"'\"&D$82&\"'!L22\")),\"\",INDIRECT(\"'\"&D$82&\"'!L22\"))","v":""},{"$f":"IF(ISERROR(INDIRECT(\"'\"&E$82&\"'!L22\")),\"\",INDIRECT(\"'\"&E$82&\"'!L22\"))","v":""},"","","","","",null,null,null,null,null,null,"","","","","","",""]
[null,11,"FM/OM Use",{"$f":"IF(ISERROR(INDIRECT(\"'\"&D$82&\"'!L23\")),\"\",INDIRECT(\"'\"&D$82&\"'!L23\"))","v":""},{"$f":"IF(ISERROR(INDIRECT(\"'\"&E$82&\"'!L23\")),\"\",INDIRECT(\"'\"&E$82&\"'!L23\"))","v":""},"","","","","",null,null,null,null,null,null,"","","","","","",""]
[]
[]
[null,null,null,{"$f":"IF(ISBLANK(Configuration!$F23),\"\",Configuration!$F23)","v":""},{"$f":"IF(ISBLANK(Configuration!$F24),\"\",Configuration!$F24)","v":""},{"$f":"IF(ISBLANK(Configuration!$F25),\"\",Configuration!$F25)","v":""},{"$f":"IF(ISBLANK(Configuration!$F26),\"\",Configuration!$F26)","v":""},{"$f":"IF(ISBLANK(Configuration!$F27),\"\",Configuration!$F27)","v":""},{"$f":"IF(ISBLANK(Configuration!$F28),\"\",Configuration!$F28)","v":""},{"$f":"IF(ISBLANK(Configuration!$F29),\"\",Configuration!$F29)","v":""}]
[null,null,null,{"$f":"IF(ISERROR(INDIRECT(\"'\"&D105&\"'!M5\")),0,INDIRECT(\"'\"&D105&\"'!M5\"))","v":0},{"$f":"IF(ISERROR(INDIRECT(\"'\"&E105&\"'!M5\")),0,INDIRECT(\"'\"&E105&\"'!M5\"))","v":0},0,0,0,0,0,null,null,null,{"$f":"COUNTIF(D106:J106,\">0\")","v":0}]
[]
[]
[]
[]
[]
[]
[]
[null,null,null,null,null,null,null,null,null,null,null,null,null,null,null,null,{"$f":"$Q$43","v":0.75},{"$f":"$Q$43","v":0.75},0.75,0.75,0.75,0.75,0.75]
[null,1,"3D Model",{"$f":"IF(ISERROR(INDIRECT(\"'\"&D$105&\"'!L8\")),\"\",INDIRECT(\"'\"&D$105&\"'!L8\"))","v":""},{"$f":"IF(ISERROR(INDIRECT(\"'\"&E$105&\"'!L8\")),\"\",INDIRECT(\"'\"&E$105&\"'!L8\"))","v":""},"","","","","",null,null,null,null,null,null,{"$f":"IF(D115=0,Q$114+D115,D115)","v":""},{"$f":"IF(E115=0,R$114+E115,E115)","v":""},"","","","",""]
[null,2,"Drawings",{"$f":"IF(ISERROR(INDIRECT(\"'\"&D$105&\"'!L9\")),\"\",INDIRECT(\"'\"&D$105&\"'!L9\"))","v":""},{"$f":"IF(ISERROR(INDIRECT(\"'\"&E$105&\"'!L9\")),\"\",INDIRECT(\"'\"&E$105&\"'!L9\"))","v":""},"","","","","",null,null,null,null,null,null,"","","","","","",""]
[null,3,"LoD",{"$f":"IF(ISERROR(INDIRECT(\"'\"&D$105&\"'!L10\")),\"\",INDIRECT(\"'\"&D$105&\"'!L10\"))","v":""},{"$f":"IF(ISERROR(INDIRECT(\"'\"&E$105&\"'!L10\")),\"\",INDIRECT(\"'\"&E$105&\"'!L10\"))","v":""},"","","","","",null,null,null,null,null,null,"","","","","","",""]
[null,4,"Reviews",{"$f":"IF(ISERROR(INDIRECT(\"'\"&D$105&\"'!L11\")),\"\",INDIRECT(\"'\"&D$105&\"'!L11\"))","v":""},{"$f":"IF(ISERROR(INDIRECT(\"'\"&E$105&\"'!L11\")),\"\",INDIRECT(\"'\"&E$105&\"'!L11\"))","v":""},"","","","","",null,null,null,null,null,null,"","","","","","",""]
[null,5,"Data",{"$f":"IF(ISERROR(INDIRECT(\"'\"&D$105&\"'!L17\")),\"\",INDIRECT(\"'\"&D$105&\"'!L17\"))","v":""},{"$f":"IF(ISERROR(INDIRECT(\"'\"&E$105&\"'!L17\")),\"\",INDIRECT(\"'\"&E$105&\"'!L17\"))","v":""},"","","","","",null,null,null,null,null,null,"","","","","","",""]
[null,6,"Visualisation",{"$f":"IF(ISERROR(INDIRECT(\"'\"&D$105&\"'!L18\")),\"\",INDIRECT(\"'\"&D$105&\"'!L18\"))","v":""},{"$f":"IF(ISERROR(INDIRECT(\"'\"&E$105&\"'!L18\")),\"\",INDIRECT(\"'\"&E$105&\"'!L18\"))","v":""},"","","","","",null,null,null,null,null,null,"","","","","","",""]
[null,7,"4D",{"$f":"IF(ISERROR(INDIRECT(\"'\"&D$105&\"'!L19\")),\"\",INDIRECT(\"'\"&D$105&\"'!L19\"))","v":""},{"$f":"IF(ISERROR(INDIRECT(\"'\"&E$105&\"'!L19\")),\"\",INDIRECT(\"'\"&E$105&\"'!L19\"))","v":""},"","","","","",null,null,null,null,null,null,"","","","","","",""]
[null,8,"5D",{"$f":"IF(ISERROR(INDIRECT(\"'\"&D$105&\"'!L20\")),\"\",INDIRECT(\"'\"&D$105&\"'!L20\"))","v":""},{"$f":"IF(ISERROR(INDIRECT(\"'\"&E$105&\"'!L20\")),\"\",INDIRECT(\"'\"&E$105&\"'!L20\"))","v":""},"","","","","",null,null,null,null,null,null,"","","","","","",""]
[null,9,"Analysis",{"$f":"IF(ISERROR(INDIRECT(\"'\"&D$105&\"'!L21\")),\"\",INDIRECT(\"'\"&D$105&\"'!L21\"))","v":""},{"$f":"IF(ISERROR(INDIRECT(\"'\"&E$105&\"'!L21\")),\"\",INDIRECT(\"'\"&E$105&\"'!L21\"))","v":""},"","","","","",null,null,null,null,null,null,"","","","","","",""]
[null,10,"Contractor Use",{"$f":"IF(ISERROR(INDIRECT(\"'\"&D$105&\"'!L22\")),\"\",INDIRECT(\"'\"&D$105&\"'!L22\"))","v":""},{"$f":"IF(ISERROR(INDIRECT(\"'\"&E$105&\"'!L22\")),\"\",INDIRECT(\"'\"&E$105&\"'!L22\"))","v":""},"","","","","",null,null,null,null,null,null,"","","","","","",""]
[null,11,"FM/OM Use",{"$f":"IF(ISERROR(INDIRECT(\"'\"&D$105&\"'!L23\")),\"\",INDIRECT(\"'\"&D$105&\"'!L23\"))","v":""},{"$f":"IF(ISERROR(INDIRECT(\"'\"&E$105&\"'!L23\")),\"\",INDIRECT(\"'\"&E$105&\"'!L23\"))","v":""},"","","","","",null,null,null,null,null,null,"","","","","","",""]

{"sheet":"ProjectStages","index":7,"n_rows":9,"n_cols":6,"rows_kept":9,"cut":false,"hidden":true,"merged":[]}
["Project Stage","RIBA",null,"Water","Rail","Highways"]
["Strategy","Strategy Definition",null,"Brief / Prep","GRIP1.Output definition","Strategy"]
["Brief","Preparation & Brief",null,"Concept Design","GRIP2. Feasibility","Option Identification"]
["Concept","Concept Design",null,"Definition/Outline Design","GRIP 3. Option selection","Option Selection"]
["Definition","Developed Design",null,"Detailed Design","GRIP 4. Single option development","Prelim Design"]
["Design","Technical Design",null,"Construction and commissioning","GRIP 5. Detailed design","Detail Design/ statutory procedures"]
["Build & commission","Construction",null,"Handover & Close out","GRIP6. Construction test and commission","Construction Prep"]
["Handover & closeout","Handover & Close out",null,"O&M","GRIP7. Scheme hand back","Construction/Commissioning/Handover"]
["Operations & end of life","In Use",null,"Decom / demolition ","GRIP8. Project close out","Closeout"]

{"sheet":"Project","index":8,"n_rows":29,"n_cols":31,"rows_kept":29,"cut":false,"hidden":true,"merged":[[18,2,18,8]]}
[]
[null,"(your company logo here)",{"$f":"JobNumber","v":"123456"},{"$f":"IF(JOB_TITLE=\"\", \"Please return to 'Cover' to enter project name\", JOB_TITLE)","v":"Project XXXXXXXXXXX"}]
[]
[]
[null,null,null,{"$f":"CONCATENATE(RIGHT(CELL(\"Filename\",D1),LEN(CELL(\"Filename\",D1))-SEARCH(\"]\",CELL(\"Filename\",D1),1))&\" BIM Maturity\")","v":"Project BIM Maturity"},null,null,null,null,null,null,null,{"$f":"AVERAGE(L8:L18)","v":0},{"$f":"(SUM(L8:L18)/(5*SUM(M8:M18)))","v":0},null,null,null,null,null,"SUGGESTED TARGETS"]
[]
[null,null,"The Project Overview:\nMission, Vision, Goals, and Objectives, along with management support, and BIM Champions.","0\nNon-Existent","1\nInitial","2\nManaged","3\nDefined","4\nMeasured","5\nOptimizing","Target Level","Current Level","Adjusted Score","Weighting",null,null,null,0.75,null,"UK Government Level 1","UK Government Level 2","Concept","Scheme","Detailed Design","Tender","Construction","Handover","As-Built","Custom",null,null,"What CDE?\nSelect one."]
[null,"Client specifies BIM requirements e.g.  Through an Employer's Information Requirement (EIR)","Measures the extent of which client requirements for BIM have been defined and implemented.","No known client BIM-specific information requirements","Client BIM-specific information requirements discussed with Client but not resolved",null,"Complete client BIM-specific information requirements received and comments returned","Complete client BIM-specific information requirements received & implemented before Contractor procurement","Complete client BIM-specific information requirements received and reviewed regularly.",4,0,{"$f":"K8*M8","v":0},0.8,{"$f":"IF(OFFSET(D8,0,K8)=\"\",\"Score Not Allowed - Try Again!\",\"\")","v":""},null,{"$f":"IF(J8=0,$Q$7+J8,J8)","v":4},{"$f":"IF(K8=0,$Q$7+K8,K8)","v":0.75},null,5,null,null,null,null,null,null,null,null,null,null,null,"Projectwise"]
[null,"BIM Design Data Review","Measures the extent of which Pre-Bid and Post-Award reviews are undertaken to ensures client requirements are being met","No Design Data Review, pre or post award","Post-award BIM Design Data review held",null,"BIM Design Data reviewed against the BEP as part of the Design Review process",null,"BIM Design Data reviewed against the BEP as part of the Delivery process",3,0,0,0.9,"",null,{"$f":"IF(J9=0,$Q$7+J9,J9)","v":3},{"$f":"IF(K9=0,$Q$7+K9,K9)","v":0.75},null,3,null,null,null,null,null,null,null,null,null,null,null,"Sharepoint"]
[null,"BIM Execution Plan (BEP)","Measures the extent of which the Project uses a BIM Execution Plan (BEP) to formalise how information will be managed and delivered in accordance with client requirements","No BIM Execution Plan",null,"BEP exists, for internal use only, by core skills","BEP issued to, and used by whole Design Team","BEP exists for all parties, and based on client BIM-specific information requirements","Working to an agreed BEP becomes a contractual obligation and is signed up to by all parties.",2,0,0,0.9,"",null,2,0.75,null,2,null,null,null,null,null,null,null,null,null,null,null,"BIM360 (&Other Autodesk)"]
[null,"Project Procurement Route","Measures the extent consideration of BIM during procurement discussions with Contractors","No consideration of BIM during procurement","Discussion with a Contractor of implementation of an industry BIM standard","Implementation of  Corporate Standards","Design team implementation of Industry-wide BIM standard","Client imposed Implementation of recognised BIM standard","Contractor buy-in, including information manager, BEP and data drops",4,0,0,0.8,"",null,4,0.75,null,5,null,null,null,null,null,null,null,null,null,null,null,"GTeam"]
[{"$f":"Cover!D15","v":"Internal Network Folder – manual process"},"Common Data Environment (CDE)","Measures the extent of which a Common Data Environment (CDE) is used to facilitate sharing of information models","Legacy network setup; Atkins-organised folder structure ","Document management system with agreed file naming convention ",null,"Internal company using recognised CDE.","Wider Design team implementation, including single Project wide CDE","Client, Designers, Contractors using a single Project wide CDE",3,0,0,1,"",null,3,{"$f":"IF(K12=0,$Q$7+K12,K12)","v":0.75},null,3,null,null,null,null,null,null,null,null,null,null,null,"Artra"]
[null,"Document/Model Referencing, Version Control and Status","Measures the extent of which model standard method and procedure has been carried out","None Considered","Discipline level file naming, version control and status",null,"Version control and status compliant with recognised BIM standards e.g. BS1192:2007","Project wide file naming, version control and status","Project wide file naming, version control and status compliant with recognised BIM standards e.g. BS1192:2007",4,0,{"$f":"K13*M13","v":0},1,{"$f":"IF(OFFSET(D13,0,K13)=\"\",\"Score Not Allowed - Try Again!\",\"\")","v":""},null,{"$f":"IF(J13=0,$Q$7+J13,J13)","v":4},{"$f":"IF(K13=0,$Q$7+K13,K13)","v":0.75},null,3,null,null,null,null,null,null,null,null,null,null,null,"Docia"]
[null,"Marketing Strategy","Measures the extent of which BIM-specific Case Studies are prepared to showcase and share the key points","Project Case Study  exists, but no BIM credentials","Project Case Study  exists, with BIM credentials","BIM-specific Project Case Study exists, and actively marketed for own business area",null,"BIM-specific Project Case Study exists, and actively marketed internally","Case Study exists on Company website, and used in external marketing.",5,0,0,0.6,"",null,5,{"$f":"IF(K14=0,$Q$7+K14,K14)","v":0.75},null,5,null,null,null,null,null,null,null,null,null,null,null,"Aconex"]
[null,"Virtual Design Reviews (VDR)","Measures the extent of which Virtual Design Reviews are conducted prior to issuing Model, for both Coordination and QA verifcation of deliverables","None","Single Discipline Model reviews held. No formal process",null,"Internal multi-discipline Virtual Model Reviews regularly held. Formal process","Multi-Discipline VDRs conducted at all stages with design team, client and contractor ","Full QA checking and verification of model prior to issue in addition to reviews",2,0,0,1,"",null,2,0.75,null,2,null,null,null,null,null,null,null,null,null,null,null,"4Projects"]
[null,"Open Standard deliverables","Measures the extent of which Deliverables verified by open standard specifications, eg IFC, COBie","None",null,"Model exported to proprietary software (e.g. Navisworks, Solibri, GIS viewer)",null,"Successful export/re-import of IFC / COBie verified as a deliverable as part of the information exchange","Successful client handover of IFC / COBie as a deliverable",4,0,0,0.9,"",null,4,0.75,null,4,null,null,null,null,null,null,null,null,null,null,null,"Asite"]
[null,"BIM Contractual Obligations","To what extent as the Project Team agreed & signed up to Contractual Obligations, in regards to BIM.","None, or poorly-defined BIM agreement in consultant appointment",null,"Bespoke BIM contractual obligations signed by Company; other parties' contracts unknown",null,"All design teams signed up to agreed BIM contractual obligations e.g. CIC BIM Protocol ","All parties, including Contractors and the Supply Chain, signed up to agreed BIM contractual obligations e.g. CIC BIM Protocol",4,0,0,0.9,"",null,4,0.75,null,5,null,null,null,null,null,null,null,null,null,null,null,"Conject"]
[null,"BIM Champion","Measures the extent of maturity from the change team (BIM Champion and BIM Implementation Team) supporting the adoption across the organisation. ","No BIM Champion or Implementation Team in place","BIM Champion in place and trained up, but limited time committed to supporting project teams in BIM adoption.","BIM Champion with adequate time commitment on this project. Project Manager & project team starting to understand BIM and their responsibilities. ","BIM Champion supporting the project, with the Project Manager & project team having a good understanding of BIM, the processes and their responsibilities. ","BIM Champion required less on the project. Project Manager and project team empowered and evidently working on their own, delivering BIM successfully. ","No BIM Champion required. Project Manager and Project team operating BIM as BAU, successfully and efficiently. ",4,0,0,1,"",null,4,0.75,null,2,null,null,null,null,null,null,null,null,null,null,null,"Business Collaborator"]
[null,null,null,null,null,null,null,null,null,null,null,null,null,null,null,null,null,null,null,null,null,null,null,null,null,null,null,null,null,null,"Internal Network Folder – manual process"]
[null,null,null,null,null,null,null,null,null,null,null,null,null,null,null,null,null,null,null,null,null,null,null,null,null,null,null,null,null,null,"Other"]
[]
[]
[null,null,null,null,null,null,null,null,null,null,"Scores"]
[null,null,null,null,null,null,null,null,null,null,0]
[null,null,null,null,null,null,null,null,null,null,1]
[null,null,null,null,null,null,null,null,null,null,2]
[null,null,null,null,null,null,null,null,null,null,3]
[null,null,null,null,null,null,null,null,null,null,4]
[null,null,null,null,null,null,null,null,null,null,5]

{"sheet":"Structural","index":9,"n_rows":33,"n_cols":17,"rows_kept":33,"cut":false,"hidden":true,"merged":[[11,1,15,1]]}
[]
[null,"(your company logo here)",{"$f":"JobNumber","v":"123456"},{"$f":"JOB_TITLE","v":"Project XXXXXXXXXXX"}]
[]
[]
[null,null,null,{"$f":"CONCATENATE(RIGHT(CELL(\"Filename\",D1),LEN(CELL(\"Filename\",D1))-SEARCH(\"]\",CELL(\"Filename\",D1),1))&\" BIM Maturity\")","v":"Structural BIM Maturity"},null,null,null,null,null,null,null,{"$f":"AVERAGE(L8:L11,L17:L23)","v":0},{"$f":"(SUM(L8:L11,L17:L23)/(5*SUM(M8:M23)))","v":0}]
[]
[null,null,"the Mission, Vision, Goals, and Objectives, along with management support, BIM Champions.","0\nNon-Existent","1\nInitial","2\nManaged","3\nDefined","4\nMeasured","5\nOptimizing","Target Level","Current Level","Adjusted Score","Weighting",null,null,null,0.75]
["EASY WINS","3D Coordination","Measures the extent of which the Model is used as part of design coordination during Design and Construction phases","None considered",null,"Majority of Project 3D, adhoc 3D coordination","Majority of Project 3D, 3D coordination reviews held regularly & recorded",null,"Whole project 3D, all components modelled & coordinated between disciplines",2,0,{"$f":"K8*M8","v":0},0.9,null,{"$f":"IF(OFFSET(D8,0,K8)=\"\",\"Score Not Allowed - Try Again!\",\"\")","v":""},{"$f":"IF(J8=0,$Q$7+J8,J8)","v":2},{"$f":"IF(K8=0,$Q$7+K8,K8)","v":0.75}]
[null,"Drawings","Measues the extent of which documentation, including drawings are derived directly from the model.","Model not Linked to Drawings","Model partially Linked to Drawings (some 2D)","Model used for some GAs, Sections, etc.","Model Used for majority of GAs, Sections etc.","Model used for all GAs, Sections, etc.","Models used for all GAs, Sections and Schedules",4,0,0,0.9,null,"",{"$f":"IF(J9=0,$Q$7+J9,J9)","v":4},0.75]
[null,"Level of Information/Detail","Measure the extent of which design outputs are controlled to only deliver the relevant information to a defined level of detail for each project stage.","None considered","Loosely defined level of information and detail adopted by a specific discipline only. Client nominally defines requirements.",null,"Company defined and adopted Level of information and Detail aligned to a defined Digital Plan of Works (dPOW)","Delivered level of information and detail in accordance with client requirements from some but not all parties..","All parties, including design team, contractor and supply chain deliver to planned level of information and detail aligned to industry standards and in accordance with client requirements.",3,0,0,1,null,"",3,0.75]
[null,"Discipline Model Reviews","Measures the extent of which approriate checking and validation has been applied as part of the information exchange process.","No checking of models","Self-checking of models by technicians only","Engineer checking of parts of models","Engineer-led reviewing whole of models","Full checking and QA verification of models as part of the collaboration process","Full QA cross checking of model and any documentation including verification signoff",4,0,0,1,null,"",4,0.75]
[null,"Discipline Specific Target & Current Level to be\nfilledin for all lines\nLine below provides average of section","Framing Schedules linked to model",null,"Internal","Deliverable",null,null,null,2,null,{"$f":"IF(K12=\"\",\"\",K12)","v":""},null,null,null,{"$f":"IF(J17=0,$Q$7+J17,J17)","v":3},{"$f":"IF(K17=0,$Q$7+K17,K17)","v":0.75}]
[null,null,"Foundation Schedules linked to model",null,null,null,null,"Internal","Deliverable",4,null,"",null,null,null,{"$f":"IF(J18=0,$Q$7+J18,J18)","v":2},0.75]
[null,null,"Material Grades linked to model",null,null,null,"Internal","Deliverable",null,3,null,"",null,null,null,2,0.75]
[null,null,"To be determined",null,null,null,null,null,null,null,null,"",null,null,null,2,0.75]
[null,null,"To be determined",null,null,null,null,null,null,null,null,"",null,null,null,2,0.75]
[null,"Embedded Data, Schedules and Specifications","The 'I' in BIM, the ability to embed all relevant data into the model, to extract and use for all design and documentation aspects.",null,null,null,"Expand node on the left to fill in Embedded Data, Schedules and Specifications section",null,null,{"$f":"IF(ISERROR(AVERAGE(J12:J16)),0,AVERAGE(J12:J16))","v":3},{"$f":"IF(ISERROR(AVERAGE(K12:K16)),0,AVERAGE(K12:K16))","v":0},{"$f":"IF(ISERROR(AVERAGE(L12:L16)),0,AVERAGE(L12:L16))","v":0},1,null,null,3,0.75]
[null,"Visualisation","Measures the extent of which model visualisation is used as a design communication tool","None considered","Basic screenshots taken from Model for reports etc","Model used to inform Design team through basic visualisations.","Model used to inform Design team through 3D walkthroughs.","Model used to inform Client through 3D presentations","Advanced photorealistic renderings/animations taken from Model",2,0,{"$f":"K18*M18","v":0},0.7,null,"",1,0.75]
[null,"4D (Construction Sequencing)","Extent of which the model is used to facilitate construction sequencing","None considered","Model used for simplified phasing using hide/show only","Design Model used for sequencing by internal project team only","Design model prepared by the design team to enable Contractor 4D operations",null,"Fully embedded link between information model and programme manager used to track project progress",2,0,0,0.7,null,""]
[null,"5D (Quantity and Cost)","To measure the extent of which the model is used to extract cost and quantity information.","Model not suitable for costing","Model used for some internal quantity information/checking","Schedules produced from Model, and Model informally shared with QS with caveat","Design model prepared by the design team to enable Contractor 5D operations","Model formally issued to QS and cross-checked by internal project team","Cost optimisation by linking cost data directly to the model",2,0,0,0.7,null,""]
[null,"Links to Design Analysis Tools","Measures the extent of which the model is used as part of the design analysis process","None considered",null,"One way export to or from Analysis & Design Tools",null,"Whole model linked bi-directionally to Analysis & Design Tools","Full round-tripping between Model and Analysis/Design tools, to optimise design",2,0,0,1,null,""]
[null,"Handover to Contractor","Measures the extent of which the model is developed to integrate with the project construction phase.","Not possible","Model for design team internal use only","Informal issue of model to Contractor with disclaimer","Formal issue of Model to Contractor with disclaimer, or BIM protocol where possible","Formal issue of Model to Contractor aligned with project BIM Protocol","Formal handover of Model to Contractor for use in Construction and FM.",3,0,0,0.9,null,""]
["HARDER!","Use in Operations and FM","Measures the extent of which the model is developed to support the Operations and FM phase.","None considered","Client requirements not implemented",null,"Client requirements implemented but Model not used for FM",null,"Model progressively matured with embedded attributed information suitable for Client handover for use in O&M",1,0,0,0.9,null,""]
[]
[]
[]
[null,null,null,null,null,null,null,null,null,null,"Scores"]
[null,null,null,null,null,null,null,null,null,null,0]
[null,null,null,null,null,null,null,null,null,null,1]
[null,null,null,null,null,null,null,null,null,null,2]
[null,null,null,null,null,null,null,null,null,null,3]
[null,null,null,null,null,null,null,null,null,null,4]
[null,null,null,null,null,null,null,null,null,null,5]

{"sheet":"Mechanical","index":10,"n_rows":33,"n_cols":17,"rows_kept":33,"cut":false,"hidden":true,"merged":[[5,3,5,8],[11,1,15,1]]}
[]
[null,"(your company logo here)",{"$f":"JobNumber","v":"123456"},{"$f":"JOB_TITLE","v":"Project XXXXXXXXXXX"}]
[]
[]
[null,null,null,{"$f":"CONCATENATE(RIGHT(CELL(\"Filename\",D1),LEN(CELL(\"Filename\",D1))-SEARCH(\"]\",CELL(\"Filename\",D1),1))&\" BIM Maturity\")","v":"Mechanical BIM Maturity"},null,null,null,null,null,null,null,{"$f":"AVERAGE(L8:L11,L17:L23)","v":0},{"$f":"(SUM(L8:L11,L17:L23)/(5*SUM(M8:M23)))","v":0}]
[]
[null,null,"the Mission, Vision, Goals, and Objectives, along with management support, BIM Champions.","0\nNon-Existent","1\nInitial","2\nManaged","3\nDefined","4\nMeasured","5\nOptimizing","Target Level","Current Level","Adjusted Score","Weighting",null,null,null,0.75]
["EASY WINS","3D Coordination","Measures the extent of which the Model is used as part of design coordination during Design and Construction phases","None considered",null,"Majority of Project 3D, adhoc 3D coordination","Majority of Project 3D, 3D coordination reviews held regularly & recorded",null,"Whole project 3D, all components modelled & coordinated between disciplines",2,null,{"$f":"K8*M8","v":0},0.9,null,{"$f":"IF(OFFSET(D8,0,K8)=\"\",\"Score Not Allowed - Try Again!\",\"\")","v":""},{"$f":"IF(J8=0,$Q$7+J8,J8)","v":2},{"$f":"IF(K8=0,$Q$7+K8,K8)","v":0.75}]
[null,"Drawings","Measues the extent of which documentation, including drawings are derived directly from the model.","Model not Linked to Drawings","Model partially Linked to Drawings (some 2D)","Model used for some GAs, Sections, etc.","Model Used for majority of GAs, Sections etc.","Model used for all GAs, Sections, etc.","Models used for all GAs, Sections and Schedules",4,0,0,0.9,null,"",{"$f":"IF(J9=0,$Q$7+J9,J9)","v":4},{"$f":"IF(K9=0,$Q$7+K9,K9)","v":0.75}]
[null,"Level of Information/Detail","Measure the extent of which design outputs are controlled to only deliver the relevant information to a defined level of detail for each project stage.","None considered","Loosely defined level of information and detail adopted by a specific discipline only. Client nominally defines requirements.",null,"Company defined and adopted Level of information and Detail aligned to a defined Digital Plan of Works (dPOW)","Delivered level of information and detail in accordance with client requirements from some but not all parties..","All parties, including design team, contractor and supply chain deliver to planned level of information and detail aligned to industry standards and in accordance with client requirements.",3,0,0,1,null,"",3,0.75]
[null,"Discipline Model Reviews","Measures the extent of which approriate checking and validation has been applied as part of the information exchange process.","No checking of models","Self-checking of models by technicians only","Engineer checking of parts of models","Engineer-led reviewing whole of models","Full checking and QA verification of models as part of the collaboration process","Full QA cross checking of model and any documentation including verification signoff",4,0,0,1,null,"",4,0.75]
[null,"Discipline Specific Target & Current Level to be\nfilledin for all lines\nLine below provides average of section","Duct Systems","Not used","Systems for Drawings",null,"Engineered Systems",null,"Automated Systems",null,null,{"$f":"IF(K12=\"\",\"\",K12)","v":""},null,null,null,{"$f":"IF(J17=0,$Q$7+J17,J17)","v":0.75},{"$f":"IF(K17=0,$Q$7+K17,K17)","v":0.75}]
[null,null,"Pipe Systems","Not used","Systems for Drawings",null,"Engineered Systems",null,"Automated Systems",null,null,"",null,null,null,{"$f":"IF(J18=0,$Q$7+J18,J18)","v":2},{"$f":"IF(K18=0,$Q$7+K18,K18)","v":0.75}]
[null,null,"Schedules","No schedules",null,"Internal Use","Some Deliverables",null,"All Deliverables",null,null,"",null,null,null,2,0.75]
[null,null,"To be determined",null,null,null,null,null,null,null,null,"",null,null,null,2,0.75]
[null,null,"To be determined",null,null,null,null,null,null,null,null,"",null,null,null,2,0.75]
[null,"Embedded Data, Schedules and Specifications","The 'I' in BIM, the ability to embed all relevant data into the model, to extract and use for all design and documentation aspects.",null,null,null,"Expand node on the left to fill in Embedded Data, Schedules and Specifications section",null,null,{"$f":"IF(ISERROR(AVERAGE(J12:J16)),0,AVERAGE(J12:J16))","v":0},{"$f":"IF(ISERROR(AVERAGE(K12:K16)),0,AVERAGE(K12:K16))","v":0},{"$f":"IF(ISERROR(AVERAGE(L12:L16)),0,AVERAGE(L12:L16))","v":0},1,null,null,3,0.75]
[null,"Visualisation","Measures the extent of which model visualisation is used as a design communication tool","None considered","Basic screenshots taken from Model for reports etc","Model used to inform Design team through basic visualisations.","Model used to inform Design team through 3D walkthroughs.","Model used to inform Client through 3D presentations","Advanced photorealistic renderings/animations taken from Model",2,0,{"$f":"K18*M18","v":0},0.7,null,"",1,0.75]
[null,"4D (Construction Sequencing)","Extent of which the model is used to facilitate construction sequencing","None considered","Model used for simplified phasing using hide/show only","Design Model used for sequencing by internal project team only","Design model prepared by the design team to enable Contractor 4D operations",null,"Fully embedded link between information model and programme manager used to track project progress",2,0,0,0.7,null,""]
[null,"5D (Quantity and Cost)","To measure the extent of which the model is used to extract cost and quantity information.","Model not suitable for costing","Model used for some internal quantity information/checking","Schedules produced from Model, and Model informally shared with QS with caveat","Design model prepared by the design team to enable Contractor 5D operations","Model formally issued to QS and cross-checked by internal project team","Cost optimisation by linking cost data directly to the model",2,0,0,0.7,null,""]
[null,"Links to Design Analysis Tools","Measures the extent of which the model is used as part of the design analysis process","None considered",null,"One way export to or from Analysis & Design Tools",null,"Whole model linked bi-directionally to Analysis & Design Tools","Full round-tripping between Model and Analysis/Design tools, to optimise design",2,0,0,1,null,""]
[null,"Handover to Contractor","Measures the extent of which the model is developed to integrate with the project construction phase.","Not possible","Model for design team internal use only","Informal issue of model to Contractor with disclaimer","Formal issue of Model to Contractor with disclaimer, or BIM protocol where possible","Formal issue of Model to Contractor aligned with project BIM Protocol","Formal handover of Model to Contractor for use in Construction and FM.",3,0,0,0.9,null,""]
["HARDER!","Use in Operations and FM","Measures the extent of which the model is developed to support the Operations and FM phase.","None considered","Client requirements not implemented",null,"Client requirements implemented but Model not used for FM",null,"Model progressively matured with embedded attributed information suitable for Client handover for use in O&M",1,0,0,0.9,null,""]
[]
[]
[]
[null,null,null,null,null,null,null,null,null,null,"Scores"]
[null,null,null,null,null,null,null,null,null,null,0]
[null,null,null,null,null,null,null,null,null,null,1]
[null,null,null,null,null,null,null,null,null,null,2]
[null,null,null,null,null,null,null,null,null,null,3]
[null,null,null,null,null,null,null,null,null,null,4]
[null,null,null,null,null,null,null,null,null,null,5]

{"sheet":"Electrical","index":11,"n_rows":33,"n_cols":17,"rows_kept":33,"cut":false,"hidden":true,"merged":[[5,3,5,8],[11,1,15,1]]}
[]
[null,"(your company logo here)",{"$f":"JobNumber","v":"123456"},{"$f":"JOB_TITLE","v":"Project XXXXXXXXXXX"}]
[]
[]
[null,null,null,{"$f":"CONCATENATE(RIGHT(CELL(\"Filename\",D1),LEN(CELL(\"Filename\",D1))-SEARCH(\"]\",CELL(\"Filename\",D1),1))&\" BIM Maturity\")","v":"Electrical BIM Maturity"},null,null,null,null,null,null,null,{"$f":"AVERAGE(L8:L11,L17:L23)","v":0},{"$f":"(SUM(L8:L11,L17:L23)/(5*SUM(M8:M23)))","v":0}]
[]
[null,null,"the Mission, Vision, Goals, and Objectives, along with management support, BIM Champions.","0\nNon-Existent","1\nInitial","2\nManaged","3\nDefined","4\nMeasured","5\nOptimizing","Target Level","Current Level","Adjusted Score","Weighting",null,null,null,0.75]
["EASY WINS","3D Coordination","Measures the extent of which the Model is used as part of design coordination during Design and Construction phases","None considered",null,"Majority of Project 3D, adhoc 3D coordination","Majority of Project 3D, 3D coordination reviews held regularly & recorded",null,"Whole project 3D, all components modelled & coordinated between disciplines",2,0,{"$f":"K8*M8","v":0},0.9,null,{"$f":"IF(OFFSET(D8,0,K8)=\"\",\"Score Not Allowed - Try Again!\",\"\")","v":""},{"$f":"IF(J8=0,$Q$7+J8,J8)","v":2},{"$f":"IF(K8=0,$Q$7+K8,K8)","v":0.75}]
[null,"Drawings","Measues the extent of which documentation, including drawings are derived directly from the model.","Model not Linked to Drawings","Model partially Linked to Drawings (some 2D)","Model used for some GAs, Sections, etc.","Model Used for majority of GAs, Sections etc.","Model used for all GAs, Sections, etc.","Models used for all GAs, Sections and Schedules",4,0,0,0.9,null,"",{"$f":"IF(J9=0,$Q$7+J9,J9)","v":4},0.75]
[null,"Level of Information/Detail","Measure the extent of which design outputs are controlled to only deliver the relevant information to a defined level of detail for each project stage.","None considered","Loosely defined level of information and detail adopted by a specific discipline only. Client nominally defines requirements.",null,"Company defined and adopted Level of information and Detail aligned to a defined Digital Plan of Works (dPOW)","Delivered level of information and detail in accordance with client requirements from some but not all parties..","All parties, including design team, contractor and supply chain deliver to planned level of information and detail aligned to industry standards and in accordance with client requirements.",3,0,0,1,null,"",3,0.75]
[null,"Discipline Model Reviews","Measures the extent of which approriate checking and validation has been applied as part of the information exchange process.","No checking of models","Self-checking of models by technicians only","Engineer checking of parts of models","Engineer-led reviewing whole of models","Full checking and QA verification of models as part of the collaboration process","Full QA cross checking of model and any documentation including verification signoff",4,0,0,1,null,"",4,0.75]
[null,"Discipline Specific Target & Current Level to be\nfilledin for all lines\nLine below provides average of section","Electrical Circuits","Not used",null,null,"Circuit References",null,"Panel Schedules",null,null,{"$f":"IF(K12=\"\",\"\",K12)","v":""},null,null,null,{"$f":"IF(J17=0,$Q$7+J17,J17)","v":0.75},{"$f":"IF(K17=0,$Q$7+K17,K17)","v":0.75}]
[null,null,"To be determined",null,null,null,null,null,null,null,null,"",null,null,null,{"$f":"IF(J18=0,$Q$7+J18,J18)","v":2},0.75]
[null,null,"To be determined",null,null,null,null,null,null,null,null,"",null,null,null,2,0.75]
[null,null,"To be determined",null,null,null,null,null,null,null,null,"",null,null,null,2,0.75]
[null,null,"To be determined",null,null,null,null,null,null,null,null,"",null,null,null,2,0.75]
[null,"Embedded Data, Schedules and Specifications","The 'I' in BIM, the ability to embed all relevant data into the model, to extract and use for all design and documentation aspects.",null,null,null,"Expand node on the left to fill in Embedded Data, Schedules and Specifications section",null,null,{"$f":"IF(ISERROR(AVERAGE(J12:J16)),0,AVERAGE(J12:J16))","v":0},{"$f":"IF(ISERROR(AVERAGE(K12:K16)),0,AVERAGE(K12:K16))","v":0},{"$f":"IF(ISERROR(AVERAGE(L12:L16)),0,AVERAGE(L12:L16))","v":0},1,null,null,3,0.75]
[null,"Visualisation","Measures the extent of which model visualisation is used as a design communication tool","None considered","Basic screenshots taken from Model for reports etc","Model used to inform Design team through basic visualisations.","Model used to inform Design team through 3D walkthroughs.","Model used to inform Client through 3D presentations","Advanced photorealistic renderings/animations taken from Model",2,0,{"$f":"K18*M18","v":0},0.7,null,"",1,0.75]
[null,"4D (Construction Sequencing)","Extent of which the model is used to facilitate construction sequencing","None considered","Model used for simplified phasing using hide/show only","Design Model used for sequencing by internal project team only","Design model prepared by the design team to enable Contractor 4D operations",null,"Fully embedded link between information model and programme manager used to track project progress",2,0,0,0.7,null,""]
[null,"5D (Quantity and Cost)","To measure the extent of which the model is used to extract cost and quantity information.","Model not suitable for costing","Model used for some internal quantity information/checking","Schedules produced from Model, and Model informally shared with QS with caveat","Design model prepared by the design team to enable Contractor 5D operations","Model formally issued to QS and cross-checked by internal project team","Cost optimisation by linking cost data directly to the model",2,0,0,0.7,null,""]
[null,"Links to Design Analysis Tools","Measures the extent of which the model is used as part of the design analysis process","None considered",null,"One way export to or from Analysis & Design Tools",null,"Whole model linked bi-directionally to Analysis & Design Tools","Full round-tripping between Model and Analysis/Design tools, to optimise design",2,0,0,1,null,""]
[null,"Handover to Contractor","Measures the extent of which the model is developed to integrate with the project construction phase.","Not possible","Model for design team internal use only","Informal issue of model to Contractor with disclaimer","Formal issue of Model to Contractor with disclaimer, or BIM protocol where possible","Formal issue of Model to Contractor aligned with project BIM Protocol","Formal handover of Model to Contractor for use in Construction and FM.",3,0,0,0.9,null,""]
["HARDER!","Use in Operations and FM","Measures the extent of which the model is developed to support the Operations and FM phase.","None considered","Client requirements not implemented",null,"Client requirements implemented but Model not used for FM",null,"Model progressively matured with embedded attributed information suitable for Client handover for use in O&M",1,0,0,0.9,null,""]
[]
[]
[]
[null,null,null,null,null,null,null,null,null,null,"Scores"]
[null,null,null,null,null,null,null,null,null,null,0]
[null,null,null,null,null,null,null,null,null,null,1]
[null,null,null,null,null,null,null,null,null,null,2]
[null,null,null,null,null,null,null,null,null,null,3]
[null,null,null,null,null,null,null,null,null,null,4]
[null,null,null,null,null,null,null,null,null,null,5]

{"sheet":"Public Health","index":12,"n_rows":33,"n_cols":23,"rows_kept":33,"cut":false,"hidden":true,"merged":[[5,3,5,8],[11,1,15,1]]}
[]
[null,"(your company logo here)",{"$f":"JobNumber","v":"123456"},{"$f":"JOB_TITLE","v":"Project XXXXXXXXXXX"}]
[]
[]
[null,null,null,{"$f":"CONCATENATE(RIGHT(CELL(\"Filename\",D1),LEN(CELL(\"Filename\",D1))-SEARCH(\"]\",CELL(\"Filename\",D1),1))&\" BIM Maturity\")","v":"Public Health BIM Maturity"},null,null,null,null,null,null,null,{"$f":"AVERAGE(L8:L11,L17:L23)","v":0},{"$f":"(SUM(L8:L11,L17:L23)/(5*SUM(M8:M23)))","v":0}]
[]
[null,null,"the Mission, Vision, Goals, and Objectives, along with management support, BIM Champions.","0\nNon-Existent","1\nInitial","2\nManaged","3\nDefined","4\nMeasured","5\nOptimizing","Target Level","Current Level","Adjusted Score","Weighting",null,null,null,0.75]
["EASY WINS","3D Coordination","Measures the extent of which the Model is used as part of design coordination during Design and Construction phases","None considered",null,"Majority of Project 3D, adhoc 3D coordination","Majority of Project 3D, 3D coordination reviews held regularly & recorded",null,"Whole project 3D, all components modelled & coordinated between disciplines",2,0,{"$f":"K8*M8","v":0},0.9,null,{"$f":"IF(OFFSET(D8,0,K8)=\"\",\"Score Not Allowed - Try Again!\",\"\")","v":""},{"$f":"IF(J8=0,$Q$7+J8,J8)","v":2},{"$f":"IF(K8=0,$Q$7+K8,K8)","v":0.75},{"$f":"IF(D8=\"\",\"\",0)","v":0},{"$f":"IF(E8=\"\",\"\",1)","v":""},{"$f":"IF(F8=\"\",\"\",2)","v":2},{"$f":"IF(G8=\"\",\"\",3)","v":3},{"$f":"IF(H8=\"\",\"\",4)","v":""},{"$f":"IF(I8=\"\",\"\",5)","v":5}]
[null,"Drawings","Measues the extent of which documentation, including drawings are derived directly from the model.","Model not Linked to Drawings","Model partially Linked to Drawings (some 2D)","Model used for some GAs, Sections, etc.","Model Used for majority of GAs, Sections etc.","Model used for all GAs, Sections, etc.","Models used for all GAs, Sections and Schedules",4,0,0,0.9,null,"",{"$f":"IF(J9=0,$Q$7+J9,J9)","v":4},0.75,{"$f":"IF(D9=\"\",\"\",0)","v":0},{"$f":"IF(E9=\"\",\"\",1)","v":1},{"$f":"IF(F9=\"\",\"\",2)","v":2},{"$f":"IF(G9=\"\",\"\",3)","v":3},{"$f":"IF(H9=\"\",\"\",4)","v":4},{"$f":"IF(I9=\"\",\"\",5)","v":5}]
[null,"Level of Information/Detail","Measure the extent of which design outputs are controlled to only deliver the relevant information to a defined level of detail for each project stage.","None considered","Loosely defined level of information and detail adopted by a specific discipline only. Client nominally defines requirements.",null,"Company defined and adopted Level of information and Detail aligned to a defined Digital Plan of Works (dPOW)","Delivered level of information and detail in accordance with client requirements from some but not all parties..","All parties, including design team, contractor and supply chain deliver to planned level of information and detail aligned to industry standards and in accordance with client requirements.",3,0,0,1,null,"",3,0.75,0,1,"",3,4,5]
[null,"Discipline Model Reviews","Measures the extent of which approriate checking and validation has been applied as part of the information exchange process.","No checking of models","Self-checking of models by technicians only","Engineer checking of parts of models","Engineer-led reviewing whole of models","Full checking and QA verification of models as part of the collaboration process","Full QA cross checking of model and any documentation including verification signoff",4,0,0,1,null,"",4,0.75,0,1,2,3,4,5]
[null,"Discipline Specific Target & Current Level to be\nfilledin for all lines\nLine below provides average of section","Pipe Systems","Not used","Systems for Drawings",null,null,null,null,1,0,{"$f":"IF(K12=\"\",\"\",K12)","v":0},null,null,"",{"$f":"IF(J17=0,$Q$7+J17,J17)","v":1},{"$f":"IF(K17=0,$Q$7+K17,K17)","v":0.75},0,1,"","","",""]
[null,null,"To be determined",null,null,null,null,null,null,null,null,"",null,null,null,{"$f":"IF(J18=0,$Q$7+J18,J18)","v":2},0.75,"","","","","",""]
[null,null,"To be determined",null,null,null,null,null,null,null,null,"",null,null,null,2,0.75,"","","","","",""]
[null,null,"To be determined",null,null,null,null,null,null,null,null,"",null,null,null,2,0.75,"","","","","",""]
[null,null,"To be determined",null,null,null,null,null,null,null,null,"",null,null,null,2,0.75,"","","","","",""]
[null,"Embedded Data, Schedules and Specifications","The 'I' in BIM, the ability to embed all relevant data into the model, to extract and use for all design and documentation aspects.",null,null,null,"Expand node on the left to fill in Embedded Data, Schedules and Specifications section",null,null,{"$f":"IF(ISERROR(AVERAGE(J12:J16)),0,AVERAGE(J12:J16))","v":1},{"$f":"IF(ISERROR(AVERAGE(K12:K16)),0,AVERAGE(K12:K16))","v":0},{"$f":"IF(ISERROR(AVERAGE(L12:L16)),0,AVERAGE(L12:L16))","v":0},1,null,null,3,0.75,"","","",3,"",""]
[null,"Visualisation","Measures the extent of which model visualisation is used as a design communication tool","None considered","Basic screenshots taken from Model for reports etc","Model used to inform Design team through basic visualisations.","Model used to inform Design team through 3D walkthroughs.","Model used to inform Client through 3D presentations","Advanced photorealistic renderings/animations taken from Model",2,0,{"$f":"K18*M18","v":0},0.7,null,"",1,0.75,0,1,2,3,4,5]
[null,"4D (Construction Sequencing)","Extent of which the model is used to facilitate construction sequencing","None considered","Model used for simplified phasing using hide/show only","Design Model used for sequencing by internal project team only","Design model prepared by the design team to enable Contractor 4D operations",null,"Fully embedded link between information model and programme manager used to track project progress",2,0,0,0.7,null,"",null,null,0,1,2,3,"",5]
[null,"5D (Quantity and Cost)","To measure the extent of which the model is used to extract cost and quantity information.","Model not suitable for costing","Model used for some internal quantity information/checking","Schedules produced from Model, and Model informally shared with QS with caveat","Design model prepared by the design team to enable Contractor 5D operations","Model formally issued to QS and cross-checked by internal project team","Cost optimisation by linking cost data directly to the model",2,0,0,0.7,null,"",null,null,0,1,2,3,4,5]
[null,"Links to Design Analysis Tools","Measures the extent of which the model is used as part of the design analysis process","None considered",null,"One way export to or from Analysis & Design Tools",null,"Whole model linked bi-directionally to Analysis & Design Tools","Full round-tripping between Model and Analysis/Design tools, to optimise design",2,0,0,1,null,"",null,null,0,"",2,"",4,5]
[null,"Handover to Contractor","Measures the extent of which the model is developed to integrate with the project construction phase.","Not possible","Model for design team internal use only","Informal issue of model to Contractor with disclaimer","Formal issue of Model to Contractor with disclaimer, or BIM protocol where possible","Formal issue of Model to Contractor aligned with project BIM Protocol","Formal handover of Model to Contractor for use in Construction and FM.",3,0,0,0.9,null,"",null,null,0,1,2,3,4,5]
["HARDER!","Use in Operations and FM","Measures the extent of which the model is developed to support the Operations and FM phase.","None considered","Client requirements not implemented",null,"Client requirements implemented but Model not used for FM",null,"Model progressively matured with embedded attributed information suitable for Client handover for use in O&M",1,0,0,0.9,null,"",null,null,0,1,"",3,"",5]
[]
[]
[]
[null,null,null,null,null,null,null,null,null,null,"Scores"]
[null,null,null,null,null,null,null,null,null,null,0]
[null,null,null,null,null,null,null,null,null,null,1]
[null,null,null,null,null,null,null,null,null,null,2]
[null,null,null,null,null,null,null,null,null,null,3]
[null,null,null,null,null,null,null,null,null,null,4]
[null,null,null,null,null,null,null,null,null,null,5]

{"sheet":"Architecture","index":13,"n_rows":33,"n_cols":17,"rows_kept":33,"cut":false,"hidden":true,"merged":[[5,3,5,8],[11,1,15,1]]}
[]
[null,null,{"$f":"JobNumber","v":"123456"},{"$f":"JOB_TITLE","v":"Project XXXXXXXXXXX"}]
[]
[]
[null,null,null,{"$f":"CONCATENATE(RIGHT(CELL(\"Filename\",D1),LEN(CELL(\"Filename\",D1))-SEARCH(\"]\",CELL(\"Filename\",D1),1))&\" BIM Maturity\")","v":"Architecture BIM Maturity"},null,null,null,null,null,null,null,{"$f":"AVERAGE(L8:L11,L17:L23)","v":0},{"$f":"(SUM(L8:L11,L17:L23)/(5*SUM(M8:M23)))","v":0}]
[]
[null,null,"the Mission, Vision, Goals, and Objectives, along with management support, BIM Champions.","0\nNon-Existent","1\nInitial","2\nManaged","3\nDefined","4\nMeasured","5\nOptimizing","Target Level","Current Level","Adjusted Score","Weighting",null,null,null,0.75]
["EASY WINS","3D Coordination","Measures the extent of which the Model is used as part of design coordination during Design and Construction phases","None considered",null,"Majority of Project 3D, adhoc 3D coordination","Majority of Project 3D, 3D coordination reviews held regularly & recorded",null,"Whole project 3D, all components modelled & coordinated between disciplines",2,0,{"$f":"K8*M8","v":0},0.9,null,{"$f":"IF(OFFSET(D8,0,K8)=\"\",\"Score Not Allowed - Try Again!\",\"\")","v":""},{"$f":"IF(J8=0,$Q$7+J8,J8)","v":2},{"$f":"IF(K8=0,$Q$7+K8,K8)","v":0.75}]
[null,"Drawings","Measues the extent of which documentation, including drawings are derived directly from the model.","Model not Linked to Drawings","Model partially Linked to Drawings (some 2D)","Model used for some GAs, Sections, etc.","Model Used for majority of GAs, Sections etc.","Model used for all GAs, Sections, etc.","Models used for all GAs, Sections and Schedules",4,0,0,0.9,null,"",{"$f":"IF(J9=0,$Q$7+J9,J9)","v":4},0.75]
[null,"Level of Information/Detail","Measure the extent of which design outputs are controlled to only deliver the relevant information to a defined level of detail for each project stage.","None considered","Loosely defined level of information and detail adopted by a specific discipline only. Client nominally defines requirements.",null,"Company defined and adopted Level of information and Detail aligned to a defined Digital Plan of Works (dPOW)","Delivered level of information and detail in accordance with client requirements from some but not all parties..","All parties, including design team, contractor and supply chain deliver to planned level of information and detail aligned to industry standards and in accordance with client requirements.",3,0,0,1,null,"",3,0.75]
[null,"Discipline Model Reviews","Measures the extent of which approriate checking and validation has been applied as part of the information exchange process.","No checking of models","Self-checking of models by technicians only","Engineer checking of parts of models","Engineer-led reviewing whole of models","Full checking and QA verification of models as part of the collaboration process","Full QA cross checking of model and any documentation including verification signoff",4,0,0,1,null,"",4,0.75]
[null,"Discipline Specific Target & Current Level to be\nfilledin for all lines\nLine below provides average of section","To be determined","Not used","Systems for Drawings",null,null,null,null,null,null,{"$f":"IF(K12=\"\",\"\",K12)","v":""},null,null,null,0.75]
[null,null,"To be determined",null,null,null,null,null,null,null,null,"",null,null,null,{"$f":"IF(J18=0,$Q$7+J18,J18)","v":2},0.75]
[null,null,"To be determined",null,null,null,null,null,null,null,null,"",null,null,null,2,0.75]
[null,null,"To be determined",null,null,null,null,null,null,null,null,"",null,null,null,2,0.75]
[null,null,"To be determined",null,null,null,null,null,null,null,null,"",null,null,null,2,0.75]
[null,"Embedded Data, Schedules and Specifications","The 'I' in BIM, the ability to embed all relevant data into the model, to extract and use for all design and documentation aspects.",null,null,null,"Expand node on the left to fill in Embedded Data, Schedules and Specifications section",null,null,{"$f":"IF(ISERROR(AVERAGE(J12:J16)),0,AVERAGE(J12:J16))","v":0},{"$f":"IF(ISERROR(AVERAGE(K12:K16)),0,AVERAGE(K12:K16))","v":0},{"$f":"IF(ISERROR(AVERAGE(L12:L16)),0,AVERAGE(L12:L16))","v":0},1,null,null,3,0.75]
[null,"Visualisation","Measures the extent of which model visualisation is used as a design communication tool","None considered","Basic screenshots taken from Model for reports etc","Model used to inform Design team through basic visualisations.","Model used to inform Design team through 3D walkthroughs.","Model used to inform Client through 3D presentations","Advanced photorealistic renderings/animations taken from Model",2,0,{"$f":"K18*M18","v":0},0.7,null,"",1,0.75]
[null,"4D (Construction Sequencing)","Extent of which the model is used to facilitate construction sequencing","None considered","Model used for simplified phasing using hide/show only","Design Model used for sequencing by internal project team only","Design model prepared by the design team to enable Contractor 4D operations",null,"Fully embedded link between information model and programme manager used to track project progress",2,0,0,0.7,null,""]
[null,"5D (Quantity and Cost)","To measure the extent of which the model is used to extract cost and quantity information.","Model not suitable for costing","Model used for some internal quantity information/checking","Schedules produced from Model, and Model informally shared with QS with caveat","Design model prepared by the design team to enable Contractor 5D operations","Model formally issued to QS and cross-checked by internal project team","Cost optimisation by linking cost data directly to the model",2,0,0,0.7,null,""]
[null,"Links to Design Analysis Tools","Measures the extent of which the model is used as part of the design analysis process","None considered",null,"One way export to or from Analysis & Design Tools",null,"Whole model linked bi-directionally to Analysis & Design Tools","Full round-tripping between Model and Analysis/Design tools, to optimise design",2,0,0,1,null,""]
[null,"Handover to Contractor","Measures the extent of which the model is developed to integrate with the project construction phase.","Not possible","Model for design team internal use only","Informal issue of model to Contractor with disclaimer","Formal issue of Model to Contractor with disclaimer, or BIM protocol where possible","Formal issue of Model to Contractor aligned with project BIM Protocol","Formal handover of Model to Contractor for use in Construction and FM.",3,0,0,0.9,null,""]
["HARDER!","Use in Operations and FM","Measures the extent of which the model is developed to support the Operations and FM phase.","None considered","Client requirements not implemented",null,"Client requirements implemented but Model not used for FM",null,"Model progressively matured with embedded attributed information suitable for Client handover for use in O&M",1,0,0,0.9,null,""]
[]
[]
[]
[null,null,null,null,null,null,null,null,null,null,"Scores"]
[null,null,null,null,null,null,null,null,null,null,0]
[null,null,null,null,null,null,null,null,null,null,1]
[null,null,null,null,null,null,null,null,null,null,2]
[null,null,null,null,null,null,null,null,null,null,3]
[null,null,null,null,null,null,null,null,null,null,4]
[null,null,null,null,null,null,null,null,null,null,5]

{"sheet":"Acoustics","index":14,"n_rows":33,"n_cols":17,"rows_kept":33,"cut":false,"hidden":true,"merged":[[5,3,5,8],[11,1,15,1]]}
[]
[null,null,{"$f":"JobNumber","v":"123456"},{"$f":"JOB_TITLE","v":"Project XXXXXXXXXXX"}]
[]
[]
[null,null,null,{"$f":"CONCATENATE(RIGHT(CELL(\"Filename\",D1),LEN(CELL(\"Filename\",D1))-SEARCH(\"]\",CELL(\"Filename\",D1),1))&\" BIM Maturity\")","v":"Acoustics BIM Maturity"},null,null,null,null,null,null,null,{"$f":"AVERAGE(L8:L11,L17:L23)","v":0},{"$f":"(SUM(L8:L11,L17:L23)/(5*SUM(M8:M23)))","v":0}]
[]
[null,null,"the Mission, Vision, Goals, and Objectives, along with management support, BIM Champions.","0\nNon-Existent","1\nInitial","2\nManaged","3\nDefined","4\nMeasured","5\nOptimizing","Target Level","Current Level","Adjusted Score","Weighting",null,null,null,0.75]
["EASY WINS","3D Coordination","Measures the extent of which the Model is used as part of design coordination during Design and Construction phases","None considered",null,"Majority of Project 3D, adhoc 3D coordination","Majority of Project 3D, 3D coordination reviews held regularly & recorded",null,"Whole project 3D, all components modelled & coordinated between disciplines",2,0,{"$f":"K8*M8","v":0},0.9,null,{"$f":"IF(OFFSET(D8,0,K8)=\"\",\"Score Not Allowed - Try Again!\",\"\")","v":""},{"$f":"IF(J8=0,$Q$7+J8,J8)","v":2},{"$f":"IF(K8=0,$Q$7+K8,K8)","v":0.75}]
[null,"Drawings","Measues the extent of which documentation, including drawings are derived directly from the model.","Model not Linked to Drawings","Model partially Linked to Drawings (some 2D)","Model used for some GAs, Sections, etc.","Model Used for majority of GAs, Sections etc.","Model used for all GAs, Sections, etc.","Models used for all GAs, Sections and Schedules",4,0,0,0.9,null,"",{"$f":"IF(J9=0,$Q$7+J9,J9)","v":4},0.75]
[null,"Level of Information/Detail","Measure the extent of which design outputs are controlled to only deliver the relevant information to a defined level of detail for each project stage.","None considered","Loosely defined level of information and detail adopted by a specific discipline only. Client nominally defines requirements.",null,"Company defined and adopted Level of information and Detail aligned to a defined Digital Plan of Works (dPOW)","Delivered level of information and detail in accordance with client requirements from some but not all parties..","All parties, including design team, contractor and supply chain deliver to planned level of information and detail aligned to industry standards and in accordance with client requirements.",3,0,0,1,null,"",3,0.75]
[null,"Discipline Model Reviews","Measures the extent of which approriate checking and validation has been applied as part of the information exchange process.","No checking of models","Self-checking of models by technicians only","Engineer checking of parts of models","Engineer-led reviewing whole of models","Full checking and QA verification of models as part of the collaboration process","Full QA cross checking of model and any documentation including verification signoff",4,0,0,1,null,"",4,0.75]
[null,"Discipline Specific Target & Current Level to be\nfilledin for all lines\nLine below provides average of section","To be determined",null,null,null,null,null,null,null,null,{"$f":"IF(K12=\"\",\"\",K12)","v":""},null,null,null,{"$f":"IF(J17=0,$Q$7+J17,J17)","v":0.75},{"$f":"IF(K17=0,$Q$7+K17,K17)","v":0.75}]
[null,null,"To be determined",null,null,null,null,null,null,null,null,"",null,null,null,{"$f":"IF(J18=0,$Q$7+J18,J18)","v":2},0.75]
[null,null,"To be determined",null,null,null,null,null,null,null,null,"",null,null,null,2,0.75]
[null,null,"To be determined",null,null,null,null,null,null,null,null,"",null,null,null,2,0.75]
[null,null,"To be determined",null,null,null,null,null,null,null,null,"",null,null,null,2,0.75]
[null,"Embedded Data, Schedules and Specifications","The 'I' in BIM, the ability to embed all relevant data into the model, to extract and use for all design and documentation aspects.",null,null,null,"Expand node on the left to fill in Embedded Data, Schedules and Specifications section",null,null,{"$f":"IF(ISERROR(AVERAGE(J12:J16)),0,AVERAGE(J12:J16))","v":0},{"$f":"IF(ISERROR(AVERAGE(K12:K16)),0,AVERAGE(K12:K16))","v":0},{"$f":"IF(ISERROR(AVERAGE(L12:L16)),0,AVERAGE(L12:L16))","v":0},1,null,null,3,0.75]
[null,"Visualisation","Measures the extent of which model visualisation is used as a design communication tool","None considered","Basic screenshots taken from Model for reports etc","Model used to inform Design team through basic visualisations.","Model used to inform Design team through 3D walkthroughs.","Model used to inform Client through 3D presentations","Advanced photorealistic renderings/animations taken from Model",2,0,{"$f":"K18*M18","v":0},0.7,null,"",1,0.75]
[null,"4D (Construction Sequencing)","Extent of which the model is used to facilitate construction sequencing","None considered","Model used for simplified phasing using hide/show only","Design Model used for sequencing by internal project team only","Design model prepared by the design team to enable Contractor 4D operations",null,"Fully embedded link between information model and programme manager used to track project progress",2,0,0,0.7,null,""]
[null,"5D (Quantity and Cost)","To measure the extent of which the model is used to extract cost and quantity information.","Model not suitable for costing","Model used for some internal quantity information/checking","Schedules produced from Model, and Model informally shared with QS with caveat","Design model prepared by the design team to enable Contractor 5D operations","Model formally issued to QS and cross-checked by internal project team","Cost optimisation by linking cost data directly to the model",2,0,0,0.7,null,""]
[null,"Links to Design Analysis Tools","Measures the extent of which the model is used as part of the design analysis process","None considered",null,"One way export to or from Analysis & Design Tools",null,"Whole model linked bi-directionally to Analysis & Design Tools","Full round-tripping between Model and Analysis/Design tools, to optimise design",2,0,0,1,null,""]
[null,"Handover to Contractor","Measures the extent of which the model is developed to integrate with the project construction phase.","Not possible","Model for design team internal use only","Informal issue of model to Contractor with disclaimer","Formal issue of Model to Contractor with disclaimer, or BIM protocol where possible","Formal issue of Model to Contractor aligned with project BIM Protocol","Formal handover of Model to Contractor for use in Construction and FM.",3,0,0,0.9,null,""]
["HARDER!","Use in Operations and FM","Measures the extent of which the model is developed to support the Operations and FM phase.","None considered","Client requirements not implemented",null,"Client requirements implemented but Model not used for FM",null,"Model progressively matured with embedded attributed information suitable for Client handover for use in O&M",1,0,0,0.9,null,""]
[]
[]
[]
[null,null,null,null,null,null,null,null,null,null,"Scores"]
[null,null,null,null,null,null,null,null,null,null,0]
[null,null,null,null,null,null,null,null,null,null,1]
[null,null,null,null,null,null,null,null,null,null,2]
[null,null,null,null,null,null,null,null,null,null,3]
[null,null,null,null,null,null,null,null,null,null,4]
[null,null,null,null,null,null,null,null,null,null,5]

{"sheet":"Audio Visual","index":15,"n_rows":33,"n_cols":17,"rows_kept":33,"cut":false,"hidden":true,"merged":[[5,3,5,8],[11,1,15,1]]}
[null,{"$f":"IF(A1=\"\",\"\",A1)","v":""}]
[null,"",{"$f":"JobNumber","v":"123456"},{"$f":"JOB_TITLE","v":"Project XXXXXXXXXXX"}]
[]
[]
[null,null,null,{"$f":"CONCATENATE(RIGHT(CELL(\"Filename\",D1),LEN(CELL(\"Filename\",D1))-SEARCH(\"]\",CELL(\"Filename\",D1),1))&\" BIM Maturity\")","v":"Audio Visual BIM Maturity"},null,null,null,null,null,null,null,{"$f":"AVERAGE(L8:L11,L17:L23)","v":0},{"$f":"(SUM(L8:L11,L17:L23)/(5*SUM(M8:M23)))","v":0}]
[]
[null,null,"the Mission, Vision, Goals, and Objectives, along with management support, BIM Champions.","0\nNon-Existent","1\nInitial","2\nManaged","3\nDefined","4\nMeasured","5\nOptimizing","Target Level","Current Level","Adjusted Score","Weighting",null,null,null,0.75]
["EASY WINS","3D Coordination","Measures the extent of which the Model is used as part of design coordination during Design and Construction phases","None considered",null,"Majority of Project 3D, adhoc 3D coordination","Majority of Project 3D, 3D coordination reviews held regularly & recorded",null,"Whole project 3D, all components modelled & coordinated between disciplines",2,0,{"$f":"K8*M8","v":0},0.9,null,{"$f":"IF(OFFSET(D8,0,K8)=\"\",\"Score Not Allowed - Try Again!\",\"\")","v":""},{"$f":"IF(J8=0,$Q$7+J8,J8)","v":2},{"$f":"IF(K8=0,$Q$7+K8,K8)","v":0.75}]
[null,"Drawings","Measues the extent of which documentation, including drawings are derived directly from the model.","Model not Linked to Drawings","Model partially Linked to Drawings (some 2D)","Model used for some GAs, Sections, etc.","Model Used for majority of GAs, Sections etc.","Model used for all GAs, Sections, etc.","Models used for all GAs, Sections and Schedules",4,0,0,0.9,null,"",{"$f":"IF(J9=0,$Q$7+J9,J9)","v":4},0.75]
[null,"Level of Information/Detail","Measure the extent of which design outputs are controlled to only deliver the relevant information to a defined level of detail for each project stage.","None considered","Loosely defined level of information and detail adopted by a specific discipline only. Client nominally defines requirements.",null,"Company defined and adopted Level of information and Detail aligned to a defined Digital Plan of Works (dPOW)","Delivered level of information and detail in accordance with client requirements from some but not all parties..","All parties, including design team, contractor and supply chain deliver to planned level of information and detail aligned to industry standards and in accordance with client requirements.",3,0,0,1,null,"",3,0.75]
[null,"Discipline Model Reviews","Measures the extent of which approriate checking and validation has been applied as part of the information exchange process.","No checking of models","Self-checking of models by technicians only","Engineer checking of parts of models","Engineer-led reviewing whole of models","Full checking and QA verification of models as part of the collaboration process","Full QA cross checking of model and any documentation including verification signoff",4,0,0,1,null,"",4,0.75]
[null,"Discipline Specific Target & Current Level to be\nfilledin for all lines\nLine below provides average of section","To be determined",null,null,null,null,null,null,null,null,{"$f":"IF(K12=\"\",\"\",K12)","v":""},null,null,null,{"$f":"IF(J17=0,$Q$7+J17,J17)","v":0.75},{"$f":"IF(K17=0,$Q$7+K17,K17)","v":0.75}]
[null,null,"To be determined",null,null,null,null,null,null,null,null,"",null,null,null,{"$f":"IF(J18=0,$Q$7+J18,J18)","v":2},0.75]
[null,null,"To be determined",null,null,null,null,null,null,null,null,"",null,null,null,2,0.75]
[null,null,"To be determined",null,null,null,null,null,null,null,null,"",null,null,null,2,0.75]
[null,null,"To be determined",null,null,null,null,null,null,null,null,"",null,null,null,2,0.75]
[null,"Embedded Data, Schedules and Specifications","The 'I' in BIM, the ability to embed all relevant data into the model, to extract and use for all design and documentation aspects.",null,null,null,"Expand node on the left to fill in Embedded Data, Schedules and Specifications section",null,null,{"$f":"IF(ISERROR(AVERAGE(J12:J16)),0,AVERAGE(J12:J16))","v":0},{"$f":"IF(ISERROR(AVERAGE(K12:K16)),0,AVERAGE(K12:K16))","v":0},{"$f":"IF(ISERROR(AVERAGE(L12:L16)),0,AVERAGE(L12:L16))","v":0},1,null,null,3,0.75]
[null,"Visualisation","Measures the extent of which model visualisation is used as a design communication tool","None considered","Basic screenshots taken from Model for reports etc","Model used to inform Design team through basic visualisations.","Model used to inform Design team through 3D walkthroughs.","Model used to inform Client through 3D presentations","Advanced photorealistic renderings/animations taken from Model",2,0,{"$f":"K18*M18","v":0},0.7,null,"",1,0.75]
[null,"4D (Construction Sequencing)","Extent of which the model is used to facilitate construction sequencing","None considered","Model used for simplified phasing using hide/show only","Design Model used for sequencing by internal project team only","Design model prepared by the design team to enable Contractor 4D operations",null,"Fully embedded link between information model and programme manager used to track project progress",2,0,0,0.7,null,""]
[null,"5D (Quantity and Cost)","To measure the extent of which the model is used to extract cost and quantity information.","Model not suitable for costing","Model used for some internal quantity information/checking","Schedules produced from Model, and Model informally shared with QS with caveat","Design model prepared by the design team to enable Contractor 5D operations","Model formally issued to QS and cross-checked by internal project team","Cost optimisation by linking cost data directly to the model",2,0,0,0.7,null,""]
[null,"Links to Design Analysis Tools","Measures the extent of which the model is used as part of the design analysis process","None considered",null,"One way export to or from Analysis & Design Tools",null,"Whole model linked bi-directionally to Analysis & Design Tools","Full round-tripping between Model and Analysis/Design tools, to optimise design",2,0,0,1,null,""]
[null,"Handover to Contractor","Measures the extent of which the model is developed to integrate with the project construction phase.","Not possible","Model for design team internal use only","Informal issue of model to Contractor with disclaimer","Formal issue of Model to Contractor with disclaimer, or BIM protocol where possible","Formal issue of Model to Contractor aligned with project BIM Protocol","Formal handover of Model to Contractor for use in Construction and FM.",3,0,0,0.9,null,""]
["HARDER!","Use in Operations and FM","Measures the extent of which the model is developed to support the Operations and FM phase.","None considered","Client requirements not implemented",null,"Client requirements implemented but Model not used for FM",null,"Model progressively matured with embedded attributed information suitable for Client handover for use in O&M",1,0,0,0.9,null,""]
[]
[]
[]
[null,null,null,null,null,null,null,null,null,null,"Scores"]
[null,null,null,null,null,null,null,null,null,null,0]
[null,null,null,null,null,null,null,null,null,null,1]
[null,null,null,null,null,null,null,null,null,null,2]
[null,null,null,null,null,null,null,null,null,null,3]
[null,null,null,null,null,null,null,null,null,null,4]
[null,null,null,null,null,null,null,null,null,null,5]

{"sheet":"Aviation","index":16,"n_rows":33,"n_cols":17,"rows_kept":33,"cut":false,"hidden":true,"merged":[[5,3,5,8],[11,1,15,1]]}
[]
[null,null,{"$f":"JobNumber","v":"123456"},{"$f":"JOB_TITLE","v":"Project XXXXXXXXXXX"}]
[]
[]
[null,null,null,{"$f":"CONCATENATE(RIGHT(CELL(\"Filename\",D1),LEN(CELL(\"Filename\",D1))-SEARCH(\"]\",CELL(\"Filename\",D1),1))&\" BIM Maturity\")","v":"Aviation BIM Maturity"},null,null,null,null,null,null,null,{"$f":"AVERAGE(L8:L11,L17:L23)","v":0},{"$f":"(SUM(L8:L11,L17:L23)/(5*SUM(M8:M23)))","v":0}]
[]
[null,null,"the Mission, Vision, Goals, and Objectives, along with management support, BIM Champions.","0\nNon-Existent","1\nInitial","2\nManaged","3\nDefined","4\nMeasured","5\nOptimizing","Target Level","Current Level","Adjusted Score","Weighting",null,null,null,0.75]
["EASY WINS","3D Coordination","Measures the extent of which the Model is used as part of design coordination during Design and Construction phases","None considered",null,"Majority of Project 3D, adhoc 3D coordination","Majority of Project 3D, 3D coordination reviews held regularly & recorded",null,"Whole project 3D, all components modelled & coordinated between disciplines",2,0,{"$f":"K8*M8","v":0},0.9,null,{"$f":"IF(OFFSET(D8,0,K8)=\"\",\"Score Not Allowed - Try Again!\",\"\")","v":""},{"$f":"IF(J8=0,$Q$7+J8,J8)","v":2},{"$f":"IF(K8=0,$Q$7+K8,K8)","v":0.75}]
[null,"Drawings","Measues the extent of which documentation, including drawings are derived directly from the model.","Model not Linked to Drawings","Model partially Linked to Drawings (some 2D)","Model used for some GAs, Sections, etc.","Model Used for majority of GAs, Sections etc.","Model used for all GAs, Sections, etc.","Models used for all GAs, Sections and Schedules",4,0,0,0.9,null,"",{"$f":"IF(J9=0,$Q$7+J9,J9)","v":4},0.75]
[null,"Level of Information/Detail","Measure the extent of which design outputs are controlled to only deliver the relevant information to a defined level of detail for each project stage.","None considered","Loosely defined level of information and detail adopted by a specific discipline only. Client nominally defines requirements.",null,"Company defined and adopted Level of information and Detail aligned to a defined Digital Plan of Works (dPOW)","Delivered level of information and detail in accordance with client requirements from some but not all parties..","All parties, including design team, contractor and supply chain deliver to planned level of information and detail aligned to industry standards and in accordance with client requirements.",3,0,0,1,null,"",3,0.75]
[null,"Discipline Model Reviews","Measures the extent of which approriate checking and validation has been applied as part of the information exchange process.","No checking of models","Self-checking of models by technicians only","Engineer checking of parts of models","Engineer-led reviewing whole of models","Full checking and QA verification of models as part of the collaboration process","Full QA cross checking of model and any documentation including verification signoff",4,0,0,1,null,"",4,0.75]
[null,"Discipline Specific Target & Current Level to be\nfilledin for all lines\nLine below provides average of section","To be determined",null,null,null,null,null,null,null,null,{"$f":"IF(K12=\"\",\"\",K12)","v":""},null,null,null,{"$f":"IF(J17=0,$Q$7+J17,J17)","v":0.75},{"$f":"IF(K17=0,$Q$7+K17,K17)","v":0.75}]
[null,null,"To be determined",null,null,null,null,null,null,null,null,"",null,null,null,{"$f":"IF(J18=0,$Q$7+J18,J18)","v":2},0.75]
[null,null,"To be determined",null,null,null,null,null,null,null,null,"",null,null,null,{"$f":"IF(#REF!=0,$Q$7+#REF!,#REF!)","v":{"$error":"#REF!"}},0.75]
[null,null,"To be determined",null,null,null,null,null,null,null,null,"",null,null,null,{"$f":"IF(J19=0,$Q$7+J19,J19)","v":2},0.75]
[null,null,"To be determined",null,null,null,null,null,null,null,null,"",null,null,null,2,0.75]
[null,"Embedded Data, Schedules and Specifications","The 'I' in BIM, the ability to embed all relevant data into the model, to extract and use for all design and documentation aspects.",null,null,null,"Expand node on the left to fill in Embedded Data, Schedules and Specifications section",null,null,{"$f":"IF(ISERROR(AVERAGE(J12:J16)),0,AVERAGE(J12:J16))","v":0},{"$f":"IF(ISERROR(AVERAGE(K12:K16)),0,AVERAGE(K12:K16))","v":0},{"$f":"IF(ISERROR(AVERAGE(L12:L16)),0,AVERAGE(L12:L16))","v":0},1,null,null,3,0.75]
[null,"Visualisation","Measures the extent of which model visualisation is used as a design communication tool","None considered","Basic screenshots taken from Model for reports etc","Model used to inform Design team through basic visualisations.","Model used to inform Design team through 3D walkthroughs.","Model used to inform Client through 3D presentations","Advanced photorealistic renderings/animations taken from Model",2,0,{"$f":"K18*M18","v":0},0.7,null,"",1,0.75]
[null,"4D (Construction Sequencing)","Extent of which the model is used to facilitate construction sequencing","None considered","Model used for simplified phasing using hide/show only","Design Model used for sequencing by internal project team only","Design model prepared by the design team to enable Contractor 4D operations",null,"Fully embedded link between information model and programme manager used to track project progress",2,0,0,0.7,null,""]
[null,"5D (Quantity and Cost)","To measure the extent of which the model is used to extract cost and quantity information.","Model not suitable for costing","Model used for some internal quantity information/checking","Schedules produced from Model, and Model informally shared with QS with caveat","Design model prepared by the design team to enable Contractor 5D operations","Model formally issued to QS and cross-checked by internal project team","Cost optimisation by linking cost data directly to the model",2,0,0,0.7,null,""]
[null,"Links to Design Analysis Tools","Measures the extent of which the model is used as part of the design analysis process","None considered",null,"One way export to or from Analysis & Design Tools",null,"Whole model linked bi-directionally to Analysis & Design Tools","Full round-tripping between Model and Analysis/Design tools, to optimise design",2,0,0,1,null,""]
[null,"Handover to Contractor","Measures the extent of which the model is developed to integrate with the project construction phase.","Not possible","Model for design team internal use only","Informal issue of model to Contractor with disclaimer","Formal issue of Model to Contractor with disclaimer, or BIM protocol where possible","Formal issue of Model to Contractor aligned with project BIM Protocol","Formal handover of Model to Contractor for use in Construction and FM.",3,0,0,0.9,null,""]
["HARDER!","Use in Operations and FM","Measures the extent of which the model is developed to support the Operations and FM phase.","None considered","Client requirements not implemented",null,"Client requirements implemented but Model not used for FM",null,"Model progressively matured with embedded attributed information suitable for Client handover for use in O&M",1,0,0,0.9,null,""]
[]
[]
[]
[null,null,null,null,null,null,null,null,null,null,"Scores"]
[null,null,null,null,null,null,null,null,null,null,0]
[null,null,null,null,null,null,null,null,null,null,1]
[null,null,null,null,null,null,null,null,null,null,2]
[null,null,null,null,null,null,null,null,null,null,3]
[null,null,null,null,null,null,null,null,null,null,4]
[null,null,null,null,null,null,null,null,null,null,5]

{"sheet":"Bridges","index":17,"n_rows":33,"n_cols":17,"rows_kept":33,"cut":false,"hidden":true,"merged":[[5,3,5,8],[11,1,15,1]]}
[]
[null,null,{"$f":"JobNumber","v":"123456"},{"$f":"JOB_TITLE","v":"Project XXXXXXXXXXX"}]
[]
[]
[null,null,null,{"$f":"CONCATENATE(RIGHT(CELL(\"Filename\",D1),LEN(CELL(\"Filename\",D1))-SEARCH(\"]\",CELL(\"Filename\",D1),1))&\" BIM Maturity\")","v":"Bridges BIM Maturity"},null,null,null,null,null,null,null,{"$f":"AVERAGE(L8:L11,L17:L23)","v":0},{"$f":"(SUM(L8:L11,L17:L23)/(5*SUM(M8:M23)))","v":0}]
[]
[null,null,"the Mission, Vision, Goals, and Objectives, along with management support, BIM Champions.","0\nNon-Existent","1\nInitial","2\nManaged","3\nDefined","4\nMeasured","5\nOptimizing","Target Level","Current Level","Adjusted Score","Weighting",null,null,null,0.75]
["EASY WINS","3D Coordination","Measures the extent of which the Model is used as part of design coordination during Design and Construction phases","None considered",null,"Majority of Project 3D, adhoc 3D coordination","Majority of Project 3D, 3D coordination reviews held regularly & recorded",null,"Whole project 3D, all components modelled & coordinated between disciplines",2,0,{"$f":"K8*M8","v":0},0.9,null,{"$f":"IF(OFFSET(D8,0,K8)=\"\",\"Score Not Allowed - Try Again!\",\"\")","v":""},{"$f":"IF(J8=0,$Q$7+J8,J8)","v":2},{"$f":"IF(K8=0,$Q$7+K8,K8)","v":0.75}]
[null,"Drawings","Measues the extent of which documentation, including drawings are derived directly from the model.","Model not Linked to Drawings","Model partially Linked to Drawings (some 2D)","Model used for some GAs, Sections, etc.","Model Used for majority of GAs, Sections etc.","Model used for all GAs, Sections, etc.","Models used for all GAs, Sections and Schedules",4,0,0,0.9,null,"",{"$f":"IF(J9=0,$Q$7+J9,J9)","v":4},0.75]
[null,"Level of Information/Detail","Measure the extent of which design outputs are controlled to only deliver the relevant information to a defined level of detail for each project stage.","None considered","Loosely defined level of information and detail adopted by a specific discipline only. Client nominally defines requirements.",null,"Company defined and adopted Level of information and Detail aligned to a defined Digital Plan of Works (dPOW)","Delivered level of information and detail in accordance with client requirements from some but not all parties..","All parties, including design team, contractor and supply chain deliver to planned level of information and detail aligned to industry standards and in accordance with client requirements.",3,0,0,1,null,"",3,0.75]
[null,"Discipline Model Reviews","Measures the extent of which approriate checking and validation has been applied as part of the information exchange process.","No checking of models","Self-checking of models by technicians only","Engineer checking of parts of models","Engineer-led reviewing whole of models","Full checking and QA verification of models as part of the collaboration process","Full QA cross checking of model and any documentation including verification signoff",4,0,0,1,null,"",4,0.75]
[null,"Discipline Specific Target & Current Level to be\nfilledin for all lines\nLine below provides average of section","To be determined",null,null,null,null,null,null,null,null,{"$f":"IF(K12=\"\",\"\",K12)","v":""},null,null,null,{"$f":"IF(J17=0,$Q$7+J17,J17)","v":0.75},{"$f":"IF(K17=0,$Q$7+K17,K17)","v":0.75}]
[null,null,"To be determined",null,null,null,null,null,null,null,null,"",null,null,null,{"$f":"IF(J18=0,$Q$7+J18,J18)","v":2},0.75]
[null,null,"To be determined",null,null,null,null,null,null,null,null,"",null,null,null,2,0.75]
[null,null,"To be determined",null,null,null,null,null,null,null,null,"",null,null,null,2,0.75]
[null,null,"To be determined",null,null,null,null,null,null,null,null,"",null,null,null,2,0.75]
[null,"Embedded Data, Schedules and Specifications","The 'I' in BIM, the ability to embed all relevant data into the model, to extract and use for all design and documentation aspects.",null,null,null,"Expand node on the left to fill in Embedded Data, Schedules and Specifications section",null,null,{"$f":"IF(ISERROR(AVERAGE(J12:J16)),0,AVERAGE(J12:J16))","v":0},{"$f":"IF(ISERROR(AVERAGE(K12:K16)),0,AVERAGE(K12:K16))","v":0},{"$f":"IF(ISERROR(AVERAGE(L12:L16)),0,AVERAGE(L12:L16))","v":0},1,null,null,3,0.75]
[null,"Visualisation","Measures the extent of which model visualisation is used as a design communication tool","None considered","Basic screenshots taken from Model for reports etc","Model used to inform Design team through basic visualisations.","Model used to inform Design team through 3D walkthroughs.","Model used to inform Client through 3D presentations","Advanced photorealistic renderings/animations taken from Model",2,0,{"$f":"K18*M18","v":0},0.7,null,"",1,0.75]
[null,"4D (Construction Sequencing)","Extent of which the model is used to facilitate construction sequencing","None considered","Model used for simplified phasing using hide/show only","Design Model used for sequencing by internal project team only","Design model prepared by the design team to enable Contractor 4D operations",null,"Fully embedded link between information model and programme manager used to track project progress",2,0,0,0.7,null,""]
[null,"5D (Quantity and Cost)","To measure the extent of which the model is used to extract cost and quantity information.","Model not suitable for costing","Model used for some internal quantity information/checking","Schedules produced from Model, and Model informally shared with QS with caveat","Design model prepared by the design team to enable Contractor 5D operations","Model formally issued to QS and cross-checked by internal project team","Cost optimisation by linking cost data directly to the model",2,0,0,0.7,null,""]
[null,"Links to Design Analysis Tools","Measures the extent of which the model is used as part of the design analysis process","None considered",null,"One way export to or from Analysis & Design Tools",null,"Whole model linked bi-directionally to Analysis & Design Tools","Full round-tripping between Model and Analysis/Design tools, to optimise design",2,0,0,1,null,""]
[null,"Handover to Contractor","Measures the extent of which the model is developed to integrate with the project construction phase.","Not possible","Model for design team internal use only","Informal issue of model to Contractor with disclaimer","Formal issue of Model to Contractor with disclaimer, or BIM protocol where possible","Formal issue of Model to Contractor aligned with project BIM Protocol","Formal handover of Model to Contractor for use in Construction and FM.",3,0,0,0.9,null,""]
["HARDER!","Use in Operations and FM","Measures the extent of which the model is developed to support the Operations and FM phase.","None considered","Client requirements not implemented",null,"Client requirements implemented but Model not used for FM",null,"Model progressively matured with embedded attributed information suitable for Client handover for use in O&M",1,0,0,0.9,null,""]
[]
[]
[]
[null,null,null,null,null,null,null,null,null,null,"Scores"]
[null,null,null,null,null,null,null,null,null,null,0]
[null,null,null,null,null,null,null,null,null,null,1]
[null,null,null,null,null,null,null,null,null,null,2]
[null,null,null,null,null,null,null,null,null,null,3]
[null,null,null,null,null,null,null,null,null,null,4]
[null,null,null,null,null,null,null,null,null,null,5]

{"sheet":"BPS","index":18,"n_rows":33,"n_cols":17,"rows_kept":33,"cut":false,"hidden":true,"merged":[[5,3,5,8],[11,1,15,1]]}
[]
[null,null,{"$f":"JobNumber","v":"123456"},{"$f":"JOB_TITLE","v":"Project XXXXXXXXXXX"}]
[]
[]
[null,null,null,{"$f":"CONCATENATE(RIGHT(CELL(\"Filename\",D1),LEN(CELL(\"Filename\",D1))-SEARCH(\"]\",CELL(\"Filename\",D1),1))&\" BIM Maturity\")","v":"BPS BIM Maturity"},null,null,null,null,null,null,null,{"$f":"AVERAGE(L8:L11,L17:L23)","v":0},{"$f":"(SUM(L8:L11,L17:L23)/(5*SUM(M8:M23)))","v":0}]
[]
[null,null,"the Mission, Vision, Goals, and Objectives, along with management support, BIM Champions.","0\nNon-Existent","1\nInitial","2\nManaged","3\nDefined","4\nMeasured","5\nOptimizing","Target Level","Current Level","Adjusted Score","Weighting",null,null,null,0.75]
["EASY WINS","3D Coordination","Measures the extent of which the Model is used as part of design coordination during Design and Construction phases","None considered",null,"Majority of Project 3D, adhoc 3D coordination","Majority of Project 3D, 3D coordination reviews held regularly & recorded",null,"Whole project 3D, all components modelled & coordinated between disciplines",2,0,{"$f":"K8*M8","v":0},0.9,null,{"$f":"IF(OFFSET(D8,0,K8)=\"\",\"Score Not Allowed - Try Again!\",\"\")","v":""},{"$f":"IF(J8=0,$Q$7+J8,J8)","v":2},{"$f":"IF(K8=0,$Q$7+K8,K8)","v":0.75}]
[null,"Drawings","Measues the extent of which documentation, including drawings are derived directly from the model.","Model not Linked to Drawings","Model partially Linked to Drawings (some 2D)","Model used for some GAs, Sections, etc.","Model Used for majority of GAs, Sections etc.","Model used for all GAs, Sections, etc.","Models used for all GAs, Sections and Schedules",4,0,0,0.9,null,"",{"$f":"IF(J9=0,$Q$7+J9,J9)","v":4},0.75]
[null,"Level of Information/Detail","Measure the extent of which design outputs are controlled to only deliver the relevant information to a defined level of detail for each project stage.","None considered","Loosely defined level of information and detail adopted by a specific discipline only. Client nominally defines requirements.",null,"Company defined and adopted Level of information and Detail aligned to a defined Digital Plan of Works (dPOW)","Delivered level of information and detail in accordance with client requirements from some but not all parties..","All parties, including design team, contractor and supply chain deliver to planned level of information and detail aligned to industry standards and in accordance with client requirements.",3,0,0,1,null,"",3,0.75]
[null,"Discipline Model Reviews","Measures the extent of which approriate checking and validation has been applied as part of the information exchange process.","No checking of models","Self-checking of models by technicians only","Engineer checking of parts of models","Engineer-led reviewing whole of models","Full checking and QA verification of models as part of the collaboration process","Full QA cross checking of model and any documentation including verification signoff",4,0,0,1,null,"",4,0.75]
[null,"Discipline Specific Target & Current Level to be\nfilledin for all lines\nLine below provides average of section","To be determined",null,null,null,null,null,null,null,null,{"$f":"IF(K12=\"\",\"\",K12)","v":""},null,null,null,{"$f":"IF(J17=0,$Q$7+J17,J17)","v":0.75},{"$f":"IF(K17=0,$Q$7+K17,K17)","v":0.75}]
[null,null,"To be determined",null,null,null,null,null,null,null,null,"",null,null,null,{"$f":"IF(J18=0,$Q$7+J18,J18)","v":2},0.75]
[null,null,"To be determined",null,null,null,null,null,null,null,null,"",null,null,null,2,0.75]
[null,null,"To be determined",null,null,null,null,null,null,null,null,"",null,null,null,2,0.75]
[null,null,"To be determined",null,null,null,null,null,null,null,null,"",null,null,null,2,0.75]
[null,"Embedded Data, Schedules and Specifications","The 'I' in BIM, the ability to embed all relevant data into the model, to extract and use for all design and documentation aspects.",null,null,null,"Expand node on the left to fill in Embedded Data, Schedules and Specifications section",null,null,{"$f":"IF(ISERROR(AVERAGE(J12:J16)),0,AVERAGE(J12:J16))","v":0},{"$f":"IF(ISERROR(AVERAGE(K12:K16)),0,AVERAGE(K12:K16))","v":0},{"$f":"IF(ISERROR(AVERAGE(L12:L16)),0,AVERAGE(L12:L16))","v":0},1,null,null,3,0.75]
[null,"Visualisation","Measures the extent of which model visualisation is used as a design communication tool","None considered","Basic screenshots taken from Model for reports etc","Model used to inform Design team through basic visualisations.","Model used to inform Design team through 3D walkthroughs.","Model used to inform Client through 3D presentations","Advanced photorealistic renderings/animations taken from Model",2,0,{"$f":"K18*M18","v":0},0.7,null,"",1,0.75]
[null,"4D (Construction Sequencing)","Extent of which the model is used to facilitate construction sequencing","None considered","Model used for simplified phasing using hide/show only","Design Model used for sequencing by internal project team only","Design model prepared by the design team to enable Contractor 4D operations",null,"Fully embedded link between information model and programme manager used to track project progress",2,0,0,0.7,null,""]
[null,"5D (Quantity and Cost)","To measure the extent of which the model is used to extract cost and quantity information.","Model not suitable for costing","Model used for some internal quantity information/checking","Schedules produced from Model, and Model informally shared with QS with caveat","Design model prepared by the design team to enable Contractor 5D operations","Model formally issued to QS and cross-checked by internal project team","Cost optimisation by linking cost data directly to the model",2,0,0,0.7,null,""]
[null,"Links to Design Analysis Tools","Measures the extent of which the model is used as part of the design analysis process","None considered",null,"One way export to or from Analysis & Design Tools",null,"Whole model linked bi-directionally to Analysis & Design Tools","Full round-tripping between Model and Analysis/Design tools, to optimise design",2,0,0,1,null,""]
[null,"Handover to Contractor","Measures the extent of which the model is developed to integrate with the project construction phase.","Not possible","Model for design team internal use only","Informal issue of model to Contractor with disclaimer","Formal issue of Model to Contractor with disclaimer, or BIM protocol where possible","Formal issue of Model to Contractor aligned with project BIM Protocol","Formal handover of Model to Contractor for use in Construction and FM.",3,0,0,0.9,null,""]
["HARDER!","Use in Operations and FM","Measures the extent of which the model is developed to support the Operations and FM phase.","None considered","Client requirements not implemented",null,"Client requirements implemented but Model not used for FM",null,"Model progressively matured with embedded attributed information suitable for Client handover for use in O&M",1,0,0,0.9,null,""]
[]
[]
[]
[null,null,null,null,null,null,null,null,null,null,"Scores"]
[null,null,null,null,null,null,null,null,null,null,0]
[null,null,null,null,null,null,null,null,null,null,1]
[null,null,null,null,null,null,null,null,null,null,2]
[null,null,null,null,null,null,null,null,null,null,3]
[null,null,null,null,null,null,null,null,null,null,4]
[null,null,null,null,null,null,null,null,null,null,5]

{"sheet":"Retrofit","index":19,"n_rows":33,"n_cols":17,"rows_kept":33,"cut":false,"hidden":true,"merged":[[5,3,5,8],[11,1,15,1]]}
[]
[null,null,{"$f":"JobNumber","v":"123456"},{"$f":"JOB_TITLE","v":"Project XXXXXXXXXXX"}]
[]
[]
[null,null,null,{"$f":"CONCATENATE(RIGHT(CELL(\"Filename\",D1),LEN(CELL(\"Filename\",D1))-SEARCH(\"]\",CELL(\"Filename\",D1),1))&\" BIM Maturity\")","v":"Retrofit BIM Maturity"},null,null,null,null,null,null,null,{"$f":"AVERAGE(L8:L11,L17:L23)","v":0},{"$f":"(SUM(L8:L11,L17:L23)/(5*SUM(M8:M23)))","v":0}]
[]
[null,null,"the Mission, Vision, Goals, and Objectives, along with management support, BIM Champions.","0\nNon-Existent","1\nInitial","2\nManaged","3\nDefined","4\nMeasured","5\nOptimizing","Target Level","Current Level","Adjusted Score","Weighting",null,null,null,0.75]
["EASY WINS","3D Coordination","Measures the extent of which the Model is used as part of design coordination during Design and Construction phases","None considered",null,"Majority of Project 3D, adhoc 3D coordination","Majority of Project 3D, 3D coordination reviews held regularly & recorded",null,"Whole project 3D, all components modelled & coordinated between disciplines",2,0,{"$f":"K8*M8","v":0},0.9,null,{"$f":"IF(OFFSET(D8,0,K8)=\"\",\"Score Not Allowed - Try Again!\",\"\")","v":""},{"$f":"IF(J8=0,$Q$7+J8,J8)","v":2},{"$f":"IF(K8=0,$Q$7+K8,K8)","v":0.75}]
[null,"Drawings","Measues the extent of which documentation, including drawings are derived directly from the model.","Model not Linked to Drawings","Model partially Linked to Drawings (some 2D)","Model used for some GAs, Sections, etc.","Model Used for majority of GAs, Sections etc.","Model used for all GAs, Sections, etc.","Models used for all GAs, Sections and Schedules",4,0,0,0.9,null,"",{"$f":"IF(J9=0,$Q$7+J9,J9)","v":4},0.75]
[null,"Level of Information/Detail","Measure the extent of which design outputs are controlled to only deliver the relevant information to a defined level of detail for each project stage.","None considered","Loosely defined level of information and detail adopted by a specific discipline only. Client nominally defines requirements.",null,"Company defined and adopted Level of information and Detail aligned to a defined Digital Plan of Works (dPOW)","Delivered level of information and detail in accordance with client requirements from some but not all parties..","All parties, including design team, contractor and supply chain deliver to planned level of information and detail aligned to industry standards and in accordance with client requirements.",3,0,0,1,null,"",3,0.75]
[null,"Discipline Model Reviews","Measures the extent of which approriate checking and validation has been applied as part of the information exchange process.","No checking of models","Self-checking of models by technicians only","Engineer checking of parts of models","Engineer-led reviewing whole of models","Full checking and QA verification of models as part of the collaboration process","Full QA cross checking of model and any documentation including verification signoff",4,0,0,1,null,"",4,0.75]
[null,"Discipline Specific Target & Current Level to be\nfilledin for all lines\nLine below provides average of section","To be determined",null,null,null,null,null,null,null,null,{"$f":"IF(K12=\"\",\"\",K12)","v":""},null,null,null,{"$f":"IF(J17=0,$Q$7+J17,J17)","v":0.75},{"$f":"IF(K17=0,$Q$7+K17,K17)","v":0.75}]
[null,null,"To be determined",null,null,null,null,null,null,null,null,"",null,null,null,{"$f":"IF(J18=0,$Q$7+J18,J18)","v":2},0.75]
[null,null,"To be determined",null,null,null,null,null,null,null,null,"",null,null,null,2,0.75]
[null,null,"To be determined",null,null,null,null,null,null,null,null,"",null,null,null,2,0.75]
[null,null,"To be determined",null,null,null,null,null,null,null,null,"",null,null,null,2,0.75]
[null,"Embedded Data, Schedules and Specifications","The 'I' in BIM, the ability to embed all relevant data into the model, to extract and use for all design and documentation aspects.",null,null,null,"Expand node on the left to fill in Embedded Data, Schedules and Specifications section",null,null,{"$f":"IF(ISERROR(AVERAGE(J12:J16)),0,AVERAGE(J12:J16))","v":0},{"$f":"IF(ISERROR(AVERAGE(K12:K16)),0,AVERAGE(K12:K16))","v":0},{"$f":"IF(ISERROR(AVERAGE(L12:L16)),0,AVERAGE(L12:L16))","v":0},1,null,null,3,0.75]
[null,"Visualisation","Measures the extent of which model visualisation is used as a design communication tool","None considered","Basic screenshots taken from Model for reports etc","Model used to inform Design team through basic visualisations.","Model used to inform Design team through 3D walkthroughs.","Model used to inform Client through 3D presentations","Advanced photorealistic renderings/animations taken from Model",2,0,{"$f":"K18*M18","v":0},0.7,null,"",1,0.75]
[null,"4D (Construction Sequencing)","Extent of which the model is used to facilitate construction sequencing","None considered","Model used for simplified phasing using hide/show only","Design Model used for sequencing by internal project team only","Design model prepared by the design team to enable Contractor 4D operations",null,"Fully embedded link between information model and programme manager used to track project progress",2,0,0,0.7,null,""]
[null,"5D (Quantity and Cost)","To measure the extent of which the model is used to extract cost and quantity information.","Model not suitable for costing","Model used for some internal quantity information/checking","Schedules produced from Model, and Model informally shared with QS with caveat","Design model prepared by the design team to enable Contractor 5D operations","Model formally issued to QS and cross-checked by internal project team","Cost optimisation by linking cost data directly to the model",2,0,0,0.7,null,""]
[null,"Links to Design Analysis Tools","Measures the extent of which the model is used as part of the design analysis process","None considered",null,"One way export to or from Analysis & Design Tools",null,"Whole model linked bi-directionally to Analysis & Design Tools","Full round-tripping between Model and Analysis/Design tools, to optimise design",2,0,0,1,null,""]
[null,"Handover to Contractor","Measures the extent of which the model is developed to integrate with the project construction phase.","Not possible","Model for design team internal use only","Informal issue of model to Contractor with disclaimer","Formal issue of Model to Contractor with disclaimer, or BIM protocol where possible","Formal issue of Model to Contractor aligned with project BIM Protocol","Formal handover of Model to Contractor for use in Construction and FM.",3,0,0,0.9,null,""]
["HARDER!","Use in Operations and FM","Measures the extent of which the model is developed to support the Operations and FM phase.","None considered","Client requirements not implemented",null,"Client requirements implemented but Model not used for FM",null,"Model progressively matured with embedded attributed information suitable for Client handover for use in O&M",1,0,0,0.9,null,""]
[]
[]
[]
[null,null,null,null,null,null,null,null,null,null,"Scores"]
[null,null,null,null,null,null,null,null,null,null,0]
[null,null,null,null,null,null,null,null,null,null,1]
[null,null,null,null,null,null,null,null,null,null,2]
[null,null,null,null,null,null,null,null,null,null,3]
[null,null,null,null,null,null,null,null,null,null,4]
[null,null,null,null,null,null,null,null,null,null,5]

{"sheet":"Civils","index":20,"n_rows":33,"n_cols":17,"rows_kept":33,"cut":false,"hidden":true,"merged":[[5,3,5,8],[11,1,15,1]]}
[]
[null,null,{"$f":"JobNumber","v":"123456"},{"$f":"JOB_TITLE","v":"Project XXXXXXXXXXX"}]
[]
[]
[null,null,null,{"$f":"CONCATENATE(RIGHT(CELL(\"Filename\",D1),LEN(CELL(\"Filename\",D1))-SEARCH(\"]\",CELL(\"Filename\",D1),1))&\" BIM Maturity\")","v":"Civils BIM Maturity"},null,null,null,null,null,null,null,{"$f":"AVERAGE(L8:L11,L17:L23)","v":0},{"$f":"(SUM(L8:L11,L17:L23)/(5*SUM(M8:M23)))","v":0}]
[]
[null,null,"the Mission, Vision, Goals, and Objectives, along with management support, BIM Champions.","0\nNon-Existent","1\nInitial","2\nManaged","3\nDefined","4\nMeasured","5\nOptimizing","Target Level","Current Level","Adjusted Score","Weighting",null,null,null,0.75]
["EASY WINS","3D Coordination","Measures the extent of which the Model is used as part of design coordination during Design and Construction phases","None considered",null,"Majority of Project 3D, adhoc 3D coordination","Majority of Project 3D, 3D coordination reviews held regularly & recorded",null,"Whole project 3D, all components modelled & coordinated between disciplines",2,0,{"$f":"K8*M8","v":0},0.9,null,{"$f":"IF(OFFSET(D8,0,K8)=\"\",\"Score Not Allowed - Try Again!\",\"\")","v":""},{"$f":"IF(J8=0,$Q$7+J8,J8)","v":2},{"$f":"IF(K8=0,$Q$7+K8,K8)","v":0.75}]
[null,"Drawings","Measues the extent of which documentation, including drawings are derived directly from the model.","Model not Linked to Drawings","Model partially Linked to Drawings (some 2D)","Model used for some GAs, Sections, etc.","Model Used for majority of GAs, Sections etc.","Model used for all GAs, Sections, etc.","Models used for all GAs, Sections and Schedules",4,0,0,0.9,null,"",{"$f":"IF(J9=0,$Q$7+J9,J9)","v":4},0.75]
[null,"Level of Information/Detail","Measure the extent of which design outputs are controlled to only deliver the relevant information to a defined level of detail for each project stage.","None considered","Loosely defined level of information and detail adopted by a specific discipline only. Client nominally defines requirements.",null,"Company defined and adopted Level of information and Detail aligned to a defined Digital Plan of Works (dPOW)","Delivered level of information and detail in accordance with client requirements from some but not all parties..","All parties, including design team, contractor and supply chain deliver to planned level of information and detail aligned to industry standards and in accordance with client requirements.",3,0,0,1,null,"",3,0.75]
[null,"Discipline Model Reviews","Measures the extent of which approriate checking and validation has been applied as part of the information exchange process.","No checking of models","Self-checking of models by technicians only","Engineer checking of parts of models","Engineer-led reviewing whole of models","Full checking and QA verification of models as part of the collaboration process","Full QA cross checking of model and any documentation including verification signoff",4,0,0,1,null,"",4,0.75]
[null,"Discipline Specific Target & Current Level to be\nfilledin for all lines\nLine below provides average of section","Metadata (schedules and specs)","None considered",null,null,"Some components",null,"All components",null,null,{"$f":"IF(K12=\"\",\"\",K12)","v":""},null,null,"",{"$f":"IF(J17=0,$Q$7+J17,J17)","v":0.75},{"$f":"IF(K17=0,$Q$7+K17,K17)","v":0.75}]
[null,null,"To be determined",null,null,null,null,null,null,null,null,"",null,null,null,{"$f":"IF(J18=0,$Q$7+J18,J18)","v":2},0.75]
[null,null,"To be determined",null,null,null,null,null,null,null,null,"",null,null,null,2,0.75]
[null,null,"To be determined",null,null,null,null,null,null,null,null,"",null,null,null,2,0.75]
[null,null,"To be determined",null,null,null,null,null,null,null,null,"",null,null,null,2,0.75]
[null,"Embedded Data, Schedules and Specifications","The 'I' in BIM, the ability to embed all relevant data into the model, to extract and use for all design and documentation aspects.",null,null,null,"Expand node on the left to fill in Embedded Data, Schedules and Specifications section",null,null,{"$f":"IF(ISERROR(AVERAGE(J12:J16)),0,AVERAGE(J12:J16))","v":0},{"$f":"IF(ISERROR(AVERAGE(K12:K16)),0,AVERAGE(K12:K16))","v":0},{"$f":"IF(ISERROR(AVERAGE(L12:L16)),0,AVERAGE(L12:L16))","v":0},1,null,null,3,0.75]
[null,"Visualisation","Measures the extent of which model visualisation is used as a design communication tool","None considered","Basic screenshots taken from Model for reports etc","Model used to inform Design team through basic visualisations.","Model used to inform Design team through 3D walkthroughs.","Model used to inform Client through 3D presentations","Advanced photorealistic renderings/animations taken from Model",2,0,{"$f":"K18*M18","v":0},0.7,null,"",1,0.75]
[null,"4D (Construction Sequencing)","Extent of which the model is used to facilitate construction sequencing","None considered","Model used for simplified phasing using hide/show only","Design Model used for sequencing by internal project team only","Design model prepared by the design team to enable Contractor 4D operations",null,"Fully embedded link between information model and programme manager used to track project progress",2,0,0,0.7,null,""]
[null,"5D (Quantity and Cost)","To measure the extent of which the model is used to extract cost and quantity information.","Model not suitable for costing","Model used for some internal quantity information/checking","Schedules produced from Model, and Model informally shared with QS with caveat","Design model prepared by the design team to enable Contractor 5D operations","Model formally issued to QS and cross-checked by internal project team","Cost optimisation by linking cost data directly to the model",2,0,0,0.7,null,""]
[null,"Links to Design Analysis Tools","Measures the extent of which the model is used as part of the design analysis process","None considered",null,"One way export to or from Analysis & Design Tools",null,"Whole model linked bi-directionally to Analysis & Design Tools","Full round-tripping between Model and Analysis/Design tools, to optimise design",2,0,0,1,null,""]
[null,"Handover to Contractor","Measures the extent of which the model is developed to integrate with the project construction phase.","Not possible","Model for design team internal use only","Informal issue of model to Contractor with disclaimer","Formal issue of Model to Contractor with disclaimer, or BIM protocol where possible","Formal issue of Model to Contractor aligned with project BIM Protocol","Formal handover of Model to Contractor for use in Construction and FM.",3,0,0,0.9,null,""]
["HARDER!","Use in Operations and FM","Measures the extent of which the model is developed to support the Operations and FM phase.","None considered","Client requirements not implemented",null,"Client requirements implemented but Model not used for FM",null,"Model progressively matured with embedded attributed information suitable for Client handover for use in O&M",1,0,0,0.9,null,""]
[]
[]
[]
[null,null,null,null,null,null,null,null,null,null,"Scores"]
[null,null,null,null,null,null,null,null,null,null,0]
[null,null,null,null,null,null,null,null,null,null,1]
[null,null,null,null,null,null,null,null,null,null,2]
[null,null,null,null,null,null,null,null,null,null,3]
[null,null,null,null,null,null,null,null,null,null,4]
[null,null,null,null,null,null,null,null,null,null,5]

{"sheet":"Cost Mgmt","index":21,"n_rows":33,"n_cols":17,"rows_kept":33,"cut":false,"hidden":true,"merged":[[5,3,5,8],[11,1,15,1]]}
[]
[null,null,{"$f":"JobNumber","v":"123456"},{"$f":"JOB_TITLE","v":"Project XXXXXXXXXXX"}]
[]
[]
[null,null,null,{"$f":"CONCATENATE(RIGHT(CELL(\"Filename\",D1),LEN(CELL(\"Filename\",D1))-SEARCH(\"]\",CELL(\"Filename\",D1),1))&\" BIM Maturity\")","v":"Cost Mgmt BIM Maturity"},null,null,null,null,null,null,null,{"$f":"AVERAGE(L8:L11,L17:L23)","v":0},{"$f":"(SUM(L8:L11,L17:L23)/(5*SUM(M8:M23)))","v":0}]
[]
[null,null,"the Mission, Vision, Goals, and Objectives, along with management support, BIM Champions.","0\nNon-Existent","1\nInitial","2\nManaged","3\nDefined","4\nMeasured","5\nOptimizing","Target Level","Current Level","Adjusted Score","Weighting",null,null,null,0.75]
["EASY WINS","3D Coordination","Measures the extent of which the Model is used as part of design coordination during Design and Construction phases","None considered",null,"Majority of Project 3D, adhoc 3D coordination","Majority of Project 3D, 3D coordination reviews held regularly & recorded",null,"Whole project 3D, all components modelled & coordinated between disciplines",2,0,{"$f":"K8*M8","v":0},0.9,null,{"$f":"IF(OFFSET(D8,0,K8)=\"\",\"Score Not Allowed - Try Again!\",\"\")","v":""},{"$f":"IF(J8=0,$Q$7+J8,J8)","v":2},{"$f":"IF(K8=0,$Q$7+K8,K8)","v":0.75}]
[null,"Drawings","Measues the extent of which documentation, including drawings are derived directly from the model.","Model not Linked to Drawings","Model partially Linked to Drawings (some 2D)","Model used for some GAs, Sections, etc.","Model Used for majority of GAs, Sections etc.","Model used for all GAs, Sections, etc.","Models used for all GAs, Sections and Schedules",4,0,0,0.9,null,"",{"$f":"IF(J9=0,$Q$7+J9,J9)","v":4},0.75]
[null,"Level of Information/Detail","Measure the extent of which design outputs are controlled to only deliver the relevant information to a defined level of detail for each project stage.","None considered","Loosely defined level of information and detail adopted by a specific discipline only. Client nominally defines requirements.",null,"Company defined and adopted Level of information and Detail aligned to a defined Digital Plan of Works (dPOW)","Delivered level of information and detail in accordance with client requirements from some but not all parties..","All parties, including design team, contractor and supply chain deliver to planned level of information and detail aligned to industry standards and in accordance with client requirements.",3,0,0,1,null,"",3,0.75]
[null,"Discipline Model Reviews","Measures the extent of which approriate checking and validation has been applied as part of the information exchange process.","No checking of models","Self-checking of models by technicians only","Engineer checking of parts of models","Engineer-led reviewing whole of models","Full checking and QA verification of models as part of the collaboration process","Full QA cross checking of model and any documentation including verification signoff",4,0,0,1,null,"",4,0.75]
[null,"Discipline Specific Target & Current Level to be\nfilledin for all lines\nLine below provides average of section","To be determined",null,null,null,null,null,null,null,null,{"$f":"IF(K12=\"\",\"\",K12)","v":""},null,null,null,{"$f":"IF(J17=0,$Q$7+J17,J17)","v":0.75},{"$f":"IF(K17=0,$Q$7+K17,K17)","v":0.75}]
[null,null,"To be determined",null,null,null,null,null,null,null,null,"",null,null,null,{"$f":"IF(J18=0,$Q$7+J18,J18)","v":2},0.75]
[null,null,"To be determined",null,null,null,null,null,null,null,null,"",null,null,null,2,0.75]
[null,null,"To be determined",null,null,null,null,null,null,null,null,"",null,null,null,2,0.75]
[null,null,"To be determined",null,null,null,null,null,null,null,null,"",null,null,null,2,0.75]
[null,"Embedded Data, Schedules and Specifications","The 'I' in BIM, the ability to embed all relevant data into the model, to extract and use for all design and documentation aspects.",null,null,null,"Expand node on the left to fill in Embedded Data, Schedules and Specifications section",null,null,{"$f":"IF(ISERROR(AVERAGE(J12:J16)),0,AVERAGE(J12:J16))","v":0},{"$f":"IF(ISERROR(AVERAGE(K12:K16)),0,AVERAGE(K12:K16))","v":0},{"$f":"IF(ISERROR(AVERAGE(L12:L16)),0,AVERAGE(L12:L16))","v":0},1,null,null,3,0.75]
[null,"Visualisation","Measures the extent of which model visualisation is used as a design communication tool","None considered","Basic screenshots taken from Model for reports etc","Model used to inform Design team through basic visualisations.","Model used to inform Design team through 3D walkthroughs.","Model used to inform Client through 3D presentations","Advanced photorealistic renderings/animations taken from Model",2,0,{"$f":"K18*M18","v":0},0.7,null,"",1,0.75]
[null,"4D (Construction Sequencing)","Extent of which the model is used to facilitate construction sequencing","None considered","Model used for simplified phasing using hide/show only","Design Model used for sequencing by internal project team only","Design model prepared by the design team to enable Contractor 4D operations",null,"Fully embedded link between information model and programme manager used to track project progress",2,0,0,0.7,null,""]
[null,"5D (Quantity and Cost)","To measure the extent of which the model is used to extract cost and quantity information.","Model not suitable for costing","Model used for some internal quantity information/checking","Schedules produced from Model, and Model informally shared with QS with caveat","Design model prepared by the design team to enable Contractor 5D operations","Model formally issued to QS and cross-checked by internal project team","Cost optimisation by linking cost data directly to the model",2,0,0,0.7,null,""]
[null,"Links to Design Analysis Tools","Measures the extent of which the model is used as part of the design analysis process","None considered",null,"One way export to or from Analysis & Design Tools",null,"Whole model linked bi-directionally to Analysis & Design Tools","Full round-tripping between Model and Analysis/Design tools, to optimise design",2,0,0,1,null,""]
[null,"Handover to Contractor","Measures the extent of which the model is developed to integrate with the project construction phase.","Not possible","Model for design team internal use only","Informal issue of model to Contractor with disclaimer","Formal issue of Model to Contractor with disclaimer, or BIM protocol where possible","Formal issue of Model to Contractor aligned with project BIM Protocol","Formal handover of Model to Contractor for use in Construction and FM.",3,0,0,0.9,null,""]
["HARDER!","Use in Operations and FM","Measures the extent of which the model is developed to support the Operations and FM phase.","None considered","Client requirements not implemented",null,"Client requirements implemented but Model not used for FM",null,"Model progressively matured with embedded attributed information suitable for Client handover for use in O&M",1,0,0,0.9,null,""]
[]
[]
[]
[null,null,null,null,null,null,null,null,null,null,"Scores"]
[null,null,null,null,null,null,null,null,null,null,0]
[null,null,null,null,null,null,null,null,null,null,1]
[null,null,null,null,null,null,null,null,null,null,2]
[null,null,null,null,null,null,null,null,null,null,3]
[null,null,null,null,null,null,null,null,null,null,4]
[null,null,null,null,null,null,null,null,null,null,5]

{"sheet":"Energy","index":22,"n_rows":33,"n_cols":17,"rows_kept":33,"cut":false,"hidden":true,"merged":[[5,3,5,8],[11,1,15,1]]}
[]
[null,null,{"$f":"JobNumber","v":"123456"},{"$f":"JOB_TITLE","v":"Project XXXXXXXXXXX"}]
[]
[]
[null,null,null,{"$f":"CONCATENATE(RIGHT(CELL(\"Filename\",D1),LEN(CELL(\"Filename\",D1))-SEARCH(\"]\",CELL(\"Filename\",D1),1))&\" BIM Maturity\")","v":"Energy BIM Maturity"},null,null,null,null,null,null,null,{"$f":"AVERAGE(L8:L11,L17:L23)","v":0},{"$f":"(SUM(L8:L11,L17:L23)/(5*SUM(M8:M23)))","v":0}]
[]
[null,null,"the Mission, Vision, Goals, and Objectives, along with management support, BIM Champions.","0\nNon-Existent","1\nInitial","2\nManaged","3\nDefined","4\nMeasured","5\nOptimizing","Target Level","Current Level","Adjusted Score","Weighting",null,null,null,0.75]
["EASY WINS","3D Coordination","Measures the extent of which the Model is used as part of design coordination during Design and Construction phases","None considered",null,"Majority of Project 3D, adhoc 3D coordination","Majority of Project 3D, 3D coordination reviews held regularly & recorded",null,"Whole project 3D, all components modelled & coordinated between disciplines",2,0,{"$f":"K8*M8","v":0},0.9,null,{"$f":"IF(OFFSET(D8,0,K8)=\"\",\"Score Not Allowed - Try Again!\",\"\")","v":""},{"$f":"IF(J8=0,$Q$7+J8,J8)","v":2},{"$f":"IF(K8=0,$Q$7+K8,K8)","v":0.75}]
[null,"Drawings","Measues the extent of which documentation, including drawings are derived directly from the model.","Model not Linked to Drawings","Model partially Linked to Drawings (some 2D)","Model used for some GAs, Sections, etc.","Model Used for majority of GAs, Sections etc.","Model used for all GAs, Sections, etc.","Models used for all GAs, Sections and Schedules",4,0,0,0.9,null,"",{"$f":"IF(J9=0,$Q$7+J9,J9)","v":4},0.75]
[null,"Level of Information/Detail","Measure the extent of which design outputs are controlled to only deliver the relevant information to a defined level of detail for each project stage.","None considered","Loosely defined level of information and detail adopted by a specific discipline only. Client nominally defines requirements.",null,"Company defined and adopted Level of information and Detail aligned to a defined Digital Plan of Works (dPOW)","Delivered level of information and detail in accordance with client requirements from some but not all parties..","All parties, including design team, contractor and supply chain deliver to planned level of information and detail aligned to industry standards and in accordance with client requirements.",3,0,0,1,null,"",3,0.75]
[null,"Discipline Model Reviews","Measures the extent of which approriate checking and validation has been applied as part of the information exchange process.","No checking of models","Self-checking of models by technicians only","Engineer checking of parts of models","Engineer-led reviewing whole of models","Full checking and QA verification of models as part of the collaboration process","Full QA cross checking of model and any documentation including verification signoff",4,0,0,1,null,"",4,0.75]
[null,"Discipline Specific Target & Current Level to be\nfilledin for all lines\nLine below provides average of section","To be determined",null,null,null,null,null,null,null,null,{"$f":"IF(K12=\"\",\"\",K12)","v":""},null,null,null,{"$f":"IF(J17=0,$Q$7+J17,J17)","v":0.75},{"$f":"IF(K17=0,$Q$7+K17,K17)","v":0.75}]
[null,null,"To be determined",null,null,null,null,null,null,null,null,"",null,null,null,{"$f":"IF(J18=0,$Q$7+J18,J18)","v":2},0.75]
[null,null,"To be determined",null,null,null,null,null,null,null,null,"",null,null,null,2,0.75]
[null,null,"To be determined",null,null,null,null,null,null,null,null,"",null,null,null,2,0.75]
[null,null,"To be determined",null,null,null,null,null,null,null,null,"",null,null,null,2,0.75]
[null,"Embedded Data, Schedules and Specifications","The 'I' in BIM, the ability to embed all relevant data into the model, to extract and use for all design and documentation aspects.",null,null,null,"Expand node on the left to fill in Embedded Data, Schedules and Specifications section",null,null,{"$f":"IF(ISERROR(AVERAGE(J12:J16)),0,AVERAGE(J12:J16))","v":0},{"$f":"IF(ISERROR(AVERAGE(K12:K16)),0,AVERAGE(K12:K16))","v":0},{"$f":"IF(ISERROR(AVERAGE(L12:L16)),0,AVERAGE(L12:L16))","v":0},1,null,null,3,0.75]
[null,"Visualisation","Measures the extent of which model visualisation is used as a design communication tool","None considered","Basic screenshots taken from Model for reports etc","Model used to inform Design team through basic visualisations.","Model used to inform Design team through 3D walkthroughs.","Model used to inform Client through 3D presentations","Advanced photorealistic renderings/animations taken from Model",2,0,{"$f":"K18*M18","v":0},0.7,null,"",1,0.75]
[null,"4D (Construction Sequencing)","Extent of which the model is used to facilitate construction sequencing","None considered","Model used for simplified phasing using hide/show only","Design Model used for sequencing by internal project team only","Design model prepared by the design team to enable Contractor 4D operations",null,"Fully embedded link between information model and programme manager used to track project progress",2,0,0,0.7,null,""]
[null,"5D (Quantity and Cost)","To measure the extent of which the model is used to extract cost and quantity information.","Model not suitable for costing","Model used for some internal quantity information/checking","Schedules produced from Model, and Model informally shared with QS with caveat","Design model prepared by the design team to enable Contractor 5D operations","Model formally issued to QS and cross-checked by internal project team","Cost optimisation by linking cost data directly to the model",2,0,0,0.7,null,""]
[null,"Links to Design Analysis Tools","Measures the extent of which the model is used as part of the design analysis process","None considered",null,"One way export to or from Analysis & Design Tools",null,"Whole model linked bi-directionally to Analysis & Design Tools","Full round-tripping between Model and Analysis/Design tools, to optimise design",2,0,0,1,null,""]
[null,"Handover to Contractor","Measures the extent of which the model is developed to integrate with the project construction phase.","Not possible","Model for design team internal use only","Informal issue of model to Contractor with disclaimer","Formal issue of Model to Contractor with disclaimer, or BIM protocol where possible","Formal issue of Model to Contractor aligned with project BIM Protocol","Formal handover of Model to Contractor for use in Construction and FM.",3,0,0,0.9,null,""]
["HARDER!","Use in Operations and FM","Measures the extent of which the model is developed to support the Operations and FM phase.","None considered","Client requirements not implemented",null,"Client requirements implemented but Model not used for FM",null,"Model progressively matured with embedded attributed information suitable for Client handover for use in O&M",1,0,0,0.9,null,""]
[]
[]
[]
[null,null,null,null,null,null,null,null,null,null,"Scores"]
[null,null,null,null,null,null,null,null,null,null,0]
[null,null,null,null,null,null,null,null,null,null,1]
[null,null,null,null,null,null,null,null,null,null,2]
[null,null,null,null,null,null,null,null,null,null,3]
[null,null,null,null,null,null,null,null,null,null,4]
[null,null,null,null,null,null,null,null,null,null,5]

{"sheet":"Building Physics","index":23,"n_rows":33,"n_cols":17,"rows_kept":33,"cut":false,"hidden":true,"merged":[[5,3,5,8],[11,1,15,1]]}
[]
[null,null,{"$f":"JobNumber","v":"123456"},{"$f":"JOB_TITLE","v":"Project XXXXXXXXXXX"}]
[]
[]
[null,null,null,{"$f":"CONCATENATE(RIGHT(CELL(\"Filename\",D1),LEN(CELL(\"Filename\",D1))-SEARCH(\"]\",CELL(\"Filename\",D1),1))&\" BIM Maturity\")","v":"Building Physics BIM Maturity"},null,null,null,null,null,null,null,{"$f":"AVERAGE(L8:L11,L17:L23)","v":0},{"$f":"(SUM(L8:L11,L17:L23)/(5*SUM(M8:M23)))","v":0}]
[]
[null,null,"the Mission, Vision, Goals, and Objectives, along with management support, BIM Champions.","0\nNon-Existent","1\nInitial","2\nManaged","3\nDefined","4\nMeasured","5\nOptimizing","Target Level","Current Level","Adjusted Score","Weighting",null,null,null,0.75]
["EASY WINS","3D Coordination","Measures the extent of which the Model is used as part of design coordination during Design and Construction phases","None considered",null,"Majority of Project 3D, adhoc 3D coordination","Majority of Project 3D, 3D coordination reviews held regularly & recorded",null,"Whole project 3D, all components modelled & coordinated between disciplines",2,0,{"$f":"K8*M8","v":0},0.9,null,{"$f":"IF(OFFSET(D8,0,K8)=\"\",\"Score Not Allowed - Try Again!\",\"\")","v":""},{"$f":"IF(J8=0,$Q$7+J8,J8)","v":2},{"$f":"IF(K8=0,$Q$7+K8,K8)","v":0.75}]
[null,"Drawings","Measues the extent of which documentation, including drawings are derived directly from the model.","Model not Linked to Drawings","Model partially Linked to Drawings (some 2D)","Model used for some GAs, Sections, etc.","Model Used for majority of GAs, Sections etc.","Model used for all GAs, Sections, etc.","Models used for all GAs, Sections and Schedules",4,0,0,0.9,null,"",{"$f":"IF(J9=0,$Q$7+J9,J9)","v":4},0.75]
[null,"Level of Information/Detail","Measure the extent of which design outputs are controlled to only deliver the relevant information to a defined level of detail for each project stage.","None considered","Loosely defined level of information and detail adopted by a specific discipline only. Client nominally defines requirements.",null,"Company defined and adopted Level of information and Detail aligned to a defined Digital Plan of Works (dPOW)","Delivered level of information and detail in accordance with client requirements from some but not all parties..","All parties, including design team, contractor and supply chain deliver to planned level of information and detail aligned to industry standards and in accordance with client requirements.",3,0,0,1,null,"",3,0.75]
[null,"Discipline Model Reviews","Measures the extent of which approriate checking and validation has been applied as part of the information exchange process.","No checking of models","Self-checking of models by technicians only","Engineer checking of parts of models","Engineer-led reviewing whole of models","Full checking and QA verification of models as part of the collaboration process","Full QA cross checking of model and any documentation including verification signoff",4,0,0,1,null,"",4,0.75]
[null,"Discipline Specific Target & Current Level to be\nfilledin for all lines\nLine below provides average of section","To be determined",null,null,null,null,null,null,null,null,{"$f":"IF(K12=\"\",\"\",K12)","v":""},null,null,null,{"$f":"IF(J17=0,$Q$7+J17,J17)","v":0.75},{"$f":"IF(K17=0,$Q$7+K17,K17)","v":0.75}]
[null,null,"To be determined",null,null,null,null,null,null,null,null,"",null,null,null,{"$f":"IF(J18=0,$Q$7+J18,J18)","v":2},0.75]
[null,null,"To be determined",null,null,null,null,null,null,null,null,"",null,null,null,2,0.75]
[null,null,"To be determined",null,null,null,null,null,null,null,null,"",null,null,null,2,0.75]
[null,null,"To be determined",null,null,null,null,null,null,null,null,"",null,null,null,2,0.75]
[null,"Embedded Data, Schedules and Specifications","The 'I' in BIM, the ability to embed all relevant data into the model, to extract and use for all design and documentation aspects.",null,null,null,"Expand node on the left to fill in Embedded Data, Schedules and Specifications section",null,null,{"$f":"IF(ISERROR(AVERAGE(J12:J16)),0,AVERAGE(J12:J16))","v":0},{"$f":"IF(ISERROR(AVERAGE(K12:K16)),0,AVERAGE(K12:K16))","v":0},{"$f":"IF(ISERROR(AVERAGE(L12:L16)),0,AVERAGE(L12:L16))","v":0},1,null,null,3,0.75]
[null,"Visualisation","Measures the extent of which model visualisation is used as a design communication tool","None considered","Basic screenshots taken from Model for reports etc","Model used to inform Design team through basic visualisations.","Model used to inform Design team through 3D walkthroughs.","Model used to inform Client through 3D presentations","Advanced photorealistic renderings/animations taken from Model",2,0,{"$f":"K18*M18","v":0},0.7,null,"",1,0.75]
[null,"4D (Construction Sequencing)","Extent of which the model is used to facilitate construction sequencing","None considered","Model used for simplified phasing using hide/show only","Design Model used for sequencing by internal project team only","Design model prepared by the design team to enable Contractor 4D operations",null,"Fully embedded link between information model and programme manager used to track project progress",2,0,0,0.7,null,""]
[null,"5D (Quantity and Cost)","To measure the extent of which the model is used to extract cost and quantity information.","Model not suitable for costing","Model used for some internal quantity information/checking","Schedules produced from Model, and Model informally shared with QS with caveat","Design model prepared by the design team to enable Contractor 5D operations","Model formally issued to QS and cross-checked by internal project team","Cost optimisation by linking cost data directly to the model",2,0,0,0.7,null,""]
[null,"Links to Design Analysis Tools","Measures the extent of which the model is used as part of the design analysis process","None considered",null,"One way export to or from Analysis & Design Tools",null,"Whole model linked bi-directionally to Analysis & Design Tools","Full round-tripping between Model and Analysis/Design tools, to optimise design",2,0,0,1,null,""]
[null,"Handover to Contractor","Measures the extent of which the model is developed to integrate with the project construction phase.","Not possible","Model for design team internal use only","Informal issue of model to Contractor with disclaimer","Formal issue of Model to Contractor with disclaimer, or BIM protocol where possible","Formal issue of Model to Contractor aligned with project BIM Protocol","Formal handover of Model to Contractor for use in Construction and FM.",3,0,0,0.9,null,""]
["HARDER!","Use in Operations and FM","Measures the extent of which the model is developed to support the Operations and FM phase.","None considered","Client requirements not implemented",null,"Client requirements implemented but Model not used for FM",null,"Model progressively matured with embedded attributed information suitable for Client handover for use in O&M",1,0,0,0.9,null,""]
[]
[]
[]
[null,null,null,null,null,null,null,null,null,null,"Scores"]
[null,null,null,null,null,null,null,null,null,null,0]
[null,null,null,null,null,null,null,null,null,null,1]
[null,null,null,null,null,null,null,null,null,null,2]
[null,null,null,null,null,null,null,null,null,null,3]
[null,null,null,null,null,null,null,null,null,null,4]
[null,null,null,null,null,null,null,null,null,null,5]

{"sheet":"Facades","index":24,"n_rows":33,"n_cols":17,"rows_kept":33,"cut":false,"hidden":true,"merged":[[5,3,5,8],[11,1,15,1]]}
[]
[null,null,{"$f":"JobNumber","v":"123456"},{"$f":"JOB_TITLE","v":"Project XXXXXXXXXXX"}]
[]
[]
[null,null,null,{"$f":"CONCATENATE(RIGHT(CELL(\"Filename\",D1),LEN(CELL(\"Filename\",D1))-SEARCH(\"]\",CELL(\"Filename\",D1),1))&\" BIM Maturity\")","v":"Facades BIM Maturity"},null,null,null,null,null,null,null,{"$f":"AVERAGE(L8:L11,L17:L23)","v":0},{"$f":"(SUM(L8:L11,L17:L23)/(5*SUM(M8:M23)))","v":0}]
[]
[null,null,"the Mission, Vision, Goals, and Objectives, along with management support, BIM Champions.","0\nNon-Existent","1\nInitial","2\nManaged","3\nDefined","4\nMeasured","5\nOptimizing","Target Level","Current Level","Adjusted Score","Weighting",null,null,null,0.75]
["EASY WINS","3D Coordination","Measures the extent of which the Model is used as part of design coordination during Design and Construction phases","None considered",null,"Majority of Project 3D, adhoc 3D coordination","Majority of Project 3D, 3D coordination reviews held regularly & recorded",null,"Whole project 3D, all components modelled & coordinated between disciplines",2,0,{"$f":"K8*M8","v":0},0.9,null,{"$f":"IF(OFFSET(D8,0,K8)=\"\",\"Score Not Allowed - Try Again!\",\"\")","v":""},{"$f":"IF(J8=0,$Q$7+J8,J8)","v":2},{"$f":"IF(K8=0,$Q$7+K8,K8)","v":0.75}]
[null,"Drawings","Measues the extent of which documentation, including drawings are derived directly from the model.","Model not Linked to Drawings","Model partially Linked to Drawings (some 2D)","Model used for some GAs, Sections, etc.","Model Used for majority of GAs, Sections etc.","Model used for all GAs, Sections, etc.","Models used for all GAs, Sections and Schedules",4,0,0,0.9,null,"",{"$f":"IF(J9=0,$Q$7+J9,J9)","v":4},0.75]
[null,"Level of Information/Detail","Measure the extent of which design outputs are controlled to only deliver the relevant information to a defined level of detail for each project stage.","None considered","Loosely defined level of information and detail adopted by a specific discipline only. Client nominally defines requirements.",null,"Company defined and adopted Level of information and Detail aligned to a defined Digital Plan of Works (dPOW)","Delivered level of information and detail in accordance with client requirements from some but not all parties..","All parties, including design team, contractor and supply chain deliver to planned level of information and detail aligned to industry standards and in accordance with client requirements.",3,0,0,1,null,"",3,0.75]
[null,"Discipline Model Reviews","Measures the extent of which approriate checking and validation has been applied as part of the information exchange process.","No checking of models","Self-checking of models by technicians only","Engineer checking of parts of models","Engineer-led reviewing whole of models","Full checking and QA verification of models as part of the collaboration process","Full QA cross checking of model and any documentation including verification signoff",4,0,0,1,null,"",4,0.75]
[null,"Discipline Specific Target & Current Level to be\nfilledin for all lines\nLine below provides average of section","To be determined",null,null,null,null,null,null,null,null,{"$f":"IF(K12=\"\",\"\",K12)","v":""},null,null,null,{"$f":"IF(J17=0,$Q$7+J17,J17)","v":0.75},{"$f":"IF(K17=0,$Q$7+K17,K17)","v":0.75}]
[null,null,"To be determined",null,null,null,null,null,null,null,null,"",null,null,null,{"$f":"IF(J18=0,$Q$7+J18,J18)","v":2},0.75]
[null,null,"To be determined",null,null,null,null,null,null,null,null,"",null,null,null,2,0.75]
[null,null,"To be determined",null,null,null,null,null,null,null,null,"",null,null,null,2,0.75]
[null,null,"To be determined",null,null,null,null,null,null,null,null,"",null,null,null,2,0.75]
[null,"Embedded Data, Schedules and Specifications","The 'I' in BIM, the ability to embed all relevant data into the model, to extract and use for all design and documentation aspects.",null,null,null,"Expand node on the left to fill in Embedded Data, Schedules and Specifications section",null,null,{"$f":"IF(ISERROR(AVERAGE(J12:J16)),0,AVERAGE(J12:J16))","v":0},{"$f":"IF(ISERROR(AVERAGE(K12:K16)),0,AVERAGE(K12:K16))","v":0},{"$f":"IF(ISERROR(AVERAGE(L12:L16)),0,AVERAGE(L12:L16))","v":0},1,null,null,3,0.75]
[null,"Visualisation","Measures the extent of which model visualisation is used as a design communication tool","None considered","Basic screenshots taken from Model for reports etc","Model used to inform Design team through basic visualisations.","Model used to inform Design team through 3D walkthroughs.","Model used to inform Client through 3D presentations","Advanced photorealistic renderings/animations taken from Model",2,0,{"$f":"K18*M18","v":0},0.7,null,"",1,0.75]
[null,"4D (Construction Sequencing)","Extent of which the model is used to facilitate construction sequencing","None considered","Model used for simplified phasing using hide/show only","Design Model used for sequencing by internal project team only","Design model prepared by the design team to enable Contractor 4D operations",null,"Fully embedded link between information model and programme manager used to track project progress",2,0,0,0.7,null,""]
[null,"5D (Quantity and Cost)","To measure the extent of which the model is used to extract cost and quantity information.","Model not suitable for costing","Model used for some internal quantity information/checking","Schedules produced from Model, and Model informally shared with QS with caveat","Design model prepared by the design team to enable Contractor 5D operations","Model formally issued to QS and cross-checked by internal project team","Cost optimisation by linking cost data directly to the model",2,0,0,0.7,null,""]
[null,"Links to Design Analysis Tools","Measures the extent of which the model is used as part of the design analysis process","None considered",null,"One way export to or from Analysis & Design Tools",null,"Whole model linked bi-directionally to Analysis & Design Tools","Full round-tripping between Model and Analysis/Design tools, to optimise design",2,0,0,1,null,""]
[null,"Handover to Contractor","Measures the extent of which the model is developed to integrate with the project construction phase.","Not possible","Model for design team internal use only","Informal issue of model to Contractor with disclaimer","Formal issue of Model to Contractor with disclaimer, or BIM protocol where possible","Formal issue of Model to Contractor aligned with project BIM Protocol","Formal handover of Model to Contractor for use in Construction and FM.",3,0,0,0.9,null,""]
["HARDER!","Use in Operations and FM","Measures the extent of which the model is developed to support the Operations and FM phase.","None considered","Client requirements not implemented",null,"Client requirements implemented but Model not used for FM",null,"Model progressively matured with embedded attributed information suitable for Client handover for use in O&M",1,0,0,0.9,null,""]
[]
[]
[]
[null,null,null,null,null,null,null,null,null,null,"Scores"]
[null,null,null,null,null,null,null,null,null,null,0]
[null,null,null,null,null,null,null,null,null,null,1]
[null,null,null,null,null,null,null,null,null,null,2]
[null,null,null,null,null,null,null,null,null,null,3]
[null,null,null,null,null,null,null,null,null,null,4]
[null,null,null,null,null,null,null,null,null,null,5]

{"sheet":"FM","index":25,"n_rows":33,"n_cols":17,"rows_kept":33,"cut":false,"hidden":true,"merged":[[5,3,5,8],[11,1,15,1]]}
[]
[null,null,{"$f":"JobNumber","v":"123456"},{"$f":"JOB_TITLE","v":"Project XXXXXXXXXXX"}]
[]
[]
[null,null,null,{"$f":"CONCATENATE(RIGHT(CELL(\"Filename\",D1),LEN(CELL(\"Filename\",D1))-SEARCH(\"]\",CELL(\"Filename\",D1),1))&\" BIM Maturity\")","v":"FM BIM Maturity"},null,null,null,null,null,null,null,{"$f":"AVERAGE(L8:L11,L17:L23)","v":0},{"$f":"(SUM(L8:L11,L17:L23)/(5*SUM(M8:M23)))","v":0}]
[]
[null,null,"the Mission, Vision, Goals, and Objectives, along with management support, BIM Champions.","0\nNon-Existent","1\nInitial","2\nManaged","3\nDefined","4\nMeasured","5\nOptimizing","Target Level","Current Level","Adjusted Score","Weighting",null,null,null,0.75]
["EASY WINS","3D Coordination","Measures the extent of which the Model is used as part of design coordination during Design and Construction phases","None considered",null,"Majority of Project 3D, adhoc 3D coordination","Majority of Project 3D, 3D coordination reviews held regularly & recorded",null,"Whole project 3D, all components modelled & coordinated between disciplines",2,0,{"$f":"K8*M8","v":0},0.9,null,{"$f":"IF(OFFSET(D8,0,K8)=\"\",\"Score Not Allowed - Try Again!\",\"\")","v":""},{"$f":"IF(J8=0,$Q$7+J8,J8)","v":2},{"$f":"IF(K8=0,$Q$7+K8,K8)","v":0.75}]
[null,"Drawings","Measues the extent of which documentation, including drawings are derived directly from the model.","Model not Linked to Drawings","Model partially Linked to Drawings (some 2D)","Model used for some GAs, Sections, etc.","Model Used for majority of GAs, Sections etc.","Model used for all GAs, Sections, etc.","Models used for all GAs, Sections and Schedules",4,0,0,0.9,null,"",{"$f":"IF(J9=0,$Q$7+J9,J9)","v":4},0.75]
[null,"Level of Information/Detail","Measure the extent of which design outputs are controlled to only deliver the relevant information to a defined level of detail for each project stage.","None considered","Loosely defined level of information and detail adopted by a specific discipline only. Client nominally defines requirements.",null,"Company defined and adopted Level of information and Detail aligned to a defined Digital Plan of Works (dPOW)","Delivered level of information and detail in accordance with client requirements from some but not all parties..","All parties, including design team, contractor and supply chain deliver to planned level of information and detail aligned to industry standards and in accordance with client requirements.",3,0,0,1,null,"",3,0.75]
[null,"Discipline Model Reviews","Measures the extent of which approriate checking and validation has been applied as part of the information exchange process.","No checking of models","Self-checking of models by technicians only","Engineer checking of parts of models","Engineer-led reviewing whole of models","Full checking and QA verification of models as part of the collaboration process","Full QA cross checking of model and any documentation including verification signoff",4,0,0,1,null,"",4,0.75]
[null,"Discipline Specific Target & Current Level to be\nfilledin for all lines\nLine below provides average of section","To be determined",null,null,null,null,null,null,null,null,{"$f":"IF(K12=\"\",\"\",K12)","v":""},null,null,null,{"$f":"IF(J17=0,$Q$7+J17,J17)","v":0.75},{"$f":"IF(K17=0,$Q$7+K17,K17)","v":0.75}]
[null,null,"To be determined",null,null,null,null,null,null,null,null,"",null,null,null,{"$f":"IF(J18=0,$Q$7+J18,J18)","v":2},0.75]
[null,null,"To be determined",null,null,null,null,null,null,null,null,"",null,null,null,2,0.75]
[null,null,"To be determined",null,null,null,null,null,null,null,null,"",null,null,null,2,0.75]
[null,null,"To be determined",null,null,null,null,null,null,null,null,"",null,null,null,2,0.75]
[null,"Embedded Data, Schedules and Specifications","The 'I' in BIM, the ability to embed all relevant data into the model, to extract and use for all design and documentation aspects.",null,null,null,"Expand node on the left to fill in Embedded Data, Schedules and Specifications section",null,null,{"$f":"IF(ISERROR(AVERAGE(J12:J16)),0,AVERAGE(J12:J16))","v":0},{"$f":"IF(ISERROR(AVERAGE(K12:K16)),0,AVERAGE(K12:K16))","v":0},{"$f":"IF(ISERROR(AVERAGE(L12:L16)),0,AVERAGE(L12:L16))","v":0},1,null,null,3,0.75]
[null,"Visualisation","Measures the extent of which model visualisation is used as a design communication tool","None considered","Basic screenshots taken from Model for reports etc","Model used to inform Design team through basic visualisations.","Model used to inform Design team through 3D walkthroughs.","Model used to inform Client through 3D presentations","Advanced photorealistic renderings/animations taken from Model",2,0,{"$f":"K18*M18","v":0},0.7,null,"",1,0.75]
[null,"4D (Construction Sequencing)","Extent of which the model is used to facilitate construction sequencing","None considered","Model used for simplified phasing using hide/show only","Design Model used for sequencing by internal project team only","Design model prepared by the design team to enable Contractor 4D operations",null,"Fully embedded link between information model and programme manager used to track project progress",2,0,0,0.7,null,""]
[null,"5D (Quantity and Cost)","To measure the extent of which the model is used to extract cost and quantity information.","Model not suitable for costing","Model used for some internal quantity information/checking","Schedules produced from Model, and Model informally shared with QS with caveat","Design model prepared by the design team to enable Contractor 5D operations","Model formally issued to QS and cross-checked by internal project team","Cost optimisation by linking cost data directly to the model",2,0,0,0.7,null,""]
[null,"Links to Design Analysis Tools","Measures the extent of which the model is used as part of the design analysis process","None considered",null,"One way export to or from Analysis & Design Tools",null,"Whole model linked bi-directionally to Analysis & Design Tools","Full round-tripping between Model and Analysis/Design tools, to optimise design",2,0,0,1,null,""]
[null,"Handover to Contractor","Measures the extent of which the model is developed to integrate with the project construction phase.","Not possible","Model for design team internal use only","Informal issue of model to Contractor with disclaimer","Formal issue of Model to Contractor with disclaimer, or BIM protocol where possible","Formal issue of Model to Contractor aligned with project BIM Protocol","Formal handover of Model to Contractor for use in Construction and FM.",3,0,0,0.9,null,""]
["HARDER!","Use in Operations and FM","Measures the extent of which the model is developed to support the Operations and FM phase.","None considered","Client requirements not implemented",null,"Client requirements implemented but Model not used for FM",null,"Model progressively matured with embedded attributed information suitable for Client handover for use in O&M",1,0,0,0.9,null,""]
[]
[]
[]
[null,null,null,null,null,null,null,null,null,null,"Scores"]
[null,null,null,null,null,null,null,null,null,null,0]
[null,null,null,null,null,null,null,null,null,null,1]
[null,null,null,null,null,null,null,null,null,null,2]
[null,null,null,null,null,null,null,null,null,null,3]
[null,null,null,null,null,null,null,null,null,null,4]
[null,null,null,null,null,null,null,null,null,null,5]

{"sheet":"Fire","index":26,"n_rows":33,"n_cols":17,"rows_kept":33,"cut":false,"hidden":true,"merged":[[5,3,5,8],[11,1,15,1]]}
[]
[null,null,{"$f":"JobNumber","v":"123456"},{"$f":"JOB_TITLE","v":"Project XXXXXXXXXXX"}]
[]
[]
[null,null,null,{"$f":"CONCATENATE(RIGHT(CELL(\"Filename\",D1),LEN(CELL(\"Filename\",D1))-SEARCH(\"]\",CELL(\"Filename\",D1),1))&\" BIM Maturity\")","v":"Fire BIM Maturity"},null,null,null,null,null,null,null,{"$f":"AVERAGE(L8:L11,L17:L23)","v":0},{"$f":"(SUM(L8:L11,L17:L23)/(5*SUM(M8:M23)))","v":0}]
[]
[null,null,"the Mission, Vision, Goals, and Objectives, along with management support, BIM Champions.","0\nNon-Existent","1\nInitial","2\nManaged","3\nDefined","4\nMeasured","5\nOptimizing","Target Level","Current Level","Adjusted Score","Weighting",null,null,null,0.75]
["EASY WINS","3D Coordination","Measures the extent of which the Model is used as part of design coordination during Design and Construction phases","None considered",null,"Majority of Project 3D, adhoc 3D coordination","Majority of Project 3D, 3D coordination reviews held regularly & recorded",null,"Whole project 3D, all components modelled & coordinated between disciplines",2,0,{"$f":"K8*M8","v":0},0.9,null,{"$f":"IF(OFFSET(D8,0,K8)=\"\",\"Score Not Allowed - Try Again!\",\"\")","v":""},{"$f":"IF(J8=0,$Q$7+J8,J8)","v":2},{"$f":"IF(K8=0,$Q$7+K8,K8)","v":0.75}]
[null,"Drawings","Measues the extent of which documentation, including drawings are derived directly from the model.","Model not Linked to Drawings","Model partially Linked to Drawings (some 2D)","Model used for some GAs, Sections, etc.","Model Used for majority of GAs, Sections etc.","Model used for all GAs, Sections, etc.","Models used for all GAs, Sections and Schedules",4,0,0,0.9,null,"",{"$f":"IF(J9=0,$Q$7+J9,J9)","v":4},0.75]
[null,"Level of Information/Detail","Measure the extent of which design outputs are controlled to only deliver the relevant information to a defined level of detail for each project stage.","None considered","Loosely defined level of information and detail adopted by a specific discipline only. Client nominally defines requirements.",null,"Company defined and adopted Level of information and Detail aligned to a defined Digital Plan of Works (dPOW)","Delivered level of information and detail in accordance with client requirements from some but not all parties..","All parties, including design team, contractor and supply chain deliver to planned level of information and detail aligned to industry standards and in accordance with client requirements.",3,0,0,1,null,"",3,0.75]
[null,"Discipline Model Reviews","Measures the extent of which approriate checking and validation has been applied as part of the information exchange process.","No checking of models","Self-checking of models by technicians only","Engineer checking of parts of models","Engineer-led reviewing whole of models","Full checking and QA verification of models as part of the collaboration process","Full QA cross checking of model and any documentation including verification signoff",4,0,0,1,null,"",4,0.75]
[null,"Discipline Specific Target & Current Level to be\nfilledin for all lines\nLine below provides average of section","To be determined",null,null,null,null,null,null,null,null,{"$f":"IF(K12=\"\",\"\",K12)","v":""},null,null,null,{"$f":"IF(J17=0,$Q$7+J17,J17)","v":0.75},{"$f":"IF(K17=0,$Q$7+K17,K17)","v":0.75}]
[null,null,"To be determined",null,null,null,null,null,null,null,null,"",null,null,null,{"$f":"IF(J18=0,$Q$7+J18,J18)","v":2},0.75]
[null,null,"To be determined",null,null,null,null,null,null,null,null,"",null,null,null,2,0.75]
[null,null,"To be determined",null,null,null,null,null,null,null,null,"",null,null,null,2,0.75]
[null,null,"To be determined",null,null,null,null,null,null,null,null,"",null,null,null,2,0.75]
[null,"Embedded Data, Schedules and Specifications","The 'I' in BIM, the ability to embed all relevant data into the model, to extract and use for all design and documentation aspects.",null,null,null,"Expand node on the left to fill in Embedded Data, Schedules and Specifications section",null,null,{"$f":"IF(ISERROR(AVERAGE(J12:J16)),0,AVERAGE(J12:J16))","v":0},{"$f":"IF(ISERROR(AVERAGE(K12:K16)),0,AVERAGE(K12:K16))","v":0},{"$f":"IF(ISERROR(AVERAGE(L12:L16)),0,AVERAGE(L12:L16))","v":0},1,null,null,3,0.75]
[null,"Visualisation","Measures the extent of which model visualisation is used as a design communication tool","None considered","Basic screenshots taken from Model for reports etc","Model used to inform Design team through basic visualisations.","Model used to inform Design team through 3D walkthroughs.","Model used to inform Client through 3D presentations","Advanced photorealistic renderings/animations taken from Model",2,0,{"$f":"K18*M18","v":0},0.7,null,"",1,0.75]
[null,"4D (Construction Sequencing)","Extent of which the model is used to facilitate construction sequencing","None considered","Model used for simplified phasing using hide/show only","Design Model used for sequencing by internal project team only","Design model prepared by the design team to enable Contractor 4D operations",null,"Fully embedded link between information model and programme manager used to track project progress",2,0,0,0.7,null,""]
[null,"5D (Quantity and Cost)","To measure the extent of which the model is used to extract cost and quantity information.","Model not suitable for costing","Model used for some internal quantity information/checking","Schedules produced from Model, and Model informally shared with QS with caveat","Design model prepared by the design team to enable Contractor 5D operations","Model formally issued to QS and cross-checked by internal project team","Cost optimisation by linking cost data directly to the model",2,0,0,0.7,null,""]
[null,"Links to Design Analysis Tools","Measures the extent of which the model is used as part of the design analysis process","None considered",null,"One way export to or from Analysis & Design Tools",null,"Whole model linked bi-directionally to Analysis & Design Tools","Full round-tripping between Model and Analysis/Design tools, to optimise design",2,0,0,1,null,""]
[null,"Handover to Contractor","Measures the extent of which the model is developed to integrate with the project construction phase.","Not possible","Model for design team internal use only","Informal issue of model to Contractor with disclaimer","Formal issue of Model to Contractor with disclaimer, or BIM protocol where possible","Formal issue of Model to Contractor aligned with project BIM Protocol","Formal handover of Model to Contractor for use in Construction and FM.",3,0,0,0.9,null,""]
["HARDER!","Use in Operations and FM","Measures the extent of which the model is developed to support the Operations and FM phase.","None considered","Client requirements not implemented",null,"Client requirements implemented but Model not used for FM",null,"Model progressively matured with embedded attributed information suitable for Client handover for use in O&M",1,0,0,0.9,null,""]
[]
[]
[]
[null,null,null,null,null,null,null,null,null,null,"Scores"]
[null,null,null,null,null,null,null,null,null,null,0]
[null,null,null,null,null,null,null,null,null,null,1]
[null,null,null,null,null,null,null,null,null,null,2]
[null,null,null,null,null,null,null,null,null,null,3]
[null,null,null,null,null,null,null,null,null,null,4]
[null,null,null,null,null,null,null,null,null,null,5]

{"sheet":"Geotechnics","index":27,"n_rows":33,"n_cols":17,"rows_kept":33,"cut":false,"hidden":true,"merged":[[5,3,5,8],[11,1,15,1]]}
[]
[null,null,{"$f":"JobNumber","v":"123456"},{"$f":"JOB_TITLE","v":"Project XXXXXXXXXXX"}]
[]
[]
[null,null,null,{"$f":"CONCATENATE(RIGHT(CELL(\"Filename\",D1),LEN(CELL(\"Filename\",D1))-SEARCH(\"]\",CELL(\"Filename\",D1),1))&\" BIM Maturity\")","v":"Geotechnics BIM Maturity"},null,null,null,null,null,null,null,{"$f":"AVERAGE(L8:L11,L17:L23)","v":0},{"$f":"(SUM(L8:L11,L17:L23)/(5*SUM(M8:M23)))","v":0}]
[]
[null,null,"the Mission, Vision, Goals, and Objectives, along with management support, BIM Champions.","0\nNon-Existent","1\nInitial","2\nManaged","3\nDefined","4\nMeasured","5\nOptimizing","Target Level","Current Level","Adjusted Score","Weighting",null,null,null,0.75]
["EASY WINS","3D Coordination","Measures the extent of which the Model is used as part of design coordination during Design and Construction phases","None considered",null,"Majority of Project 3D, adhoc 3D coordination","Majority of Project 3D, 3D coordination reviews held regularly & recorded",null,"Whole project 3D, all components modelled & coordinated between disciplines",2,0,{"$f":"K8*M8","v":0},0.9,null,{"$f":"IF(OFFSET(D8,0,K8)=\"\",\"Score Not Allowed - Try Again!\",\"\")","v":""},{"$f":"IF(J8=0,$Q$7+J8,J8)","v":2},{"$f":"IF(K8=0,$Q$7+K8,K8)","v":0.75}]
[null,"Drawings","Measues the extent of which documentation, including drawings are derived directly from the model.","Model not Linked to Drawings","Model partially Linked to Drawings (some 2D)","Model used for some GAs, Sections, etc.","Model Used for majority of GAs, Sections etc.","Model used for all GAs, Sections, etc.","Models used for all GAs, Sections and Schedules",4,0,0,0.9,null,"",{"$f":"IF(J9=0,$Q$7+J9,J9)","v":4},0.75]
[null,"Level of Information/Detail","Measure the extent of which design outputs are controlled to only deliver the relevant information to a defined level of detail for each project stage.","None considered","Loosely defined level of information and detail adopted by a specific discipline only. Client nominally defines requirements.",null,"Company defined and adopted Level of information and Detail aligned to a defined Digital Plan of Works (dPOW)","Delivered level of information and detail in accordance with client requirements from some but not all parties..","All parties, including design team, contractor and supply chain deliver to planned level of information and detail aligned to industry standards and in accordance with client requirements.",3,0,0,1,null,"",3,0.75]
[null,"Discipline Model Reviews","Measures the extent of which approriate checking and validation has been applied as part of the information exchange process.","No checking of models","Self-checking of models by technicians only","Engineer checking of parts of models","Engineer-led reviewing whole of models","Full checking and QA verification of models as part of the collaboration process","Full QA cross checking of model and any documentation including verification signoff",4,0,0,1,null,"",4,0.75]
[null,"Discipline Specific Target & Current Level to be\nfilledin for all lines\nLine below provides average of section","To be determined",null,null,null,null,null,null,null,null,{"$f":"IF(K12=\"\",\"\",K12)","v":""},null,null,null,{"$f":"IF(J17=0,$Q$7+J17,J17)","v":0.75},{"$f":"IF(K17=0,$Q$7+K17,K17)","v":0.75}]
[null,null,"To be determined",null,null,null,null,null,null,null,null,"",null,null,null,{"$f":"IF(J18=0,$Q$7+J18,J18)","v":2},0.75]
[null,null,"To be determined",null,null,null,null,null,null,null,null,"",null,null,null,2,0.75]
[null,null,"To be determined",null,null,null,null,null,null,null,null,"",null,null,null,2,0.75]
[null,null,"To be determined",null,null,null,null,null,null,null,null,"",null,null,null,2,0.75]
[null,"Embedded Data, Schedules and Specifications","The 'I' in BIM, the ability to embed all relevant data into the model, to extract and use for all design and documentation aspects.",null,null,null,"Expand node on the left to fill in Embedded Data, Schedules and Specifications section",null,null,{"$f":"IF(ISERROR(AVERAGE(J12:J16)),0,AVERAGE(J12:J16))","v":0},{"$f":"IF(ISERROR(AVERAGE(K12:K16)),0,AVERAGE(K12:K16))","v":0},{"$f":"IF(ISERROR(AVERAGE(L12:L16)),0,AVERAGE(L12:L16))","v":0},1,null,null,3,0.75]
[null,"Visualisation","Measures the extent of which model visualisation is used as a design communication tool","None considered","Basic screenshots taken from Model for reports etc","Model used to inform Design team through basic visualisations.","Model used to inform Design team through 3D walkthroughs.","Model used to inform Client through 3D presentations","Advanced photorealistic renderings/animations taken from Model",2,0,{"$f":"K18*M18","v":0},0.7,null,"",1,0.75]
[null,"4D (Construction Sequencing)","Extent of which the model is used to facilitate construction sequencing","None considered","Model used for simplified phasing using hide/show only","Design Model used for sequencing by internal project team only","Design model prepared by the design team to enable Contractor 4D operations",null,"Fully embedded link between information model and programme manager used to track project progress",2,0,0,0.7,null,""]
[null,"5D (Quantity and Cost)","To measure the extent of which the model is used to extract cost and quantity information.","Model not suitable for costing","Model used for some internal quantity information/checking","Schedules produced from Model, and Model informally shared with QS with caveat","Design model prepared by the design team to enable Contractor 5D operations","Model formally issued to QS and cross-checked by internal project team","Cost optimisation by linking cost data directly to the model",2,0,0,0.7,null,""]
[null,"Links to Design Analysis Tools","Measures the extent of which the model is used as part of the design analysis process","None considered",null,"One way export to or from Analysis & Design Tools",null,"Whole model linked bi-directionally to Analysis & Design Tools","Full round-tripping between Model and Analysis/Design tools, to optimise design",2,0,0,1,null,""]
[null,"Handover to Contractor","Measures the extent of which the model is developed to integrate with the project construction phase.","Not possible","Model for design team internal use only","Informal issue of model to Contractor with disclaimer","Formal issue of Model to Contractor with disclaimer, or BIM protocol where possible","Formal issue of Model to Contractor aligned with project BIM Protocol","Formal handover of Model to Contractor for use in Construction and FM.",3,0,0,0.9,null,""]
["HARDER!","Use in Operations and FM","Measures the extent of which the model is developed to support the Operations and FM phase.","None considered","Client requirements not implemented",null,"Client requirements implemented but Model not used for FM",null,"Model progressively matured with embedded attributed information suitable for Client handover for use in O&M",1,0,0,0.9,null,""]
[]
[]
[]
[null,null,null,null,null,null,null,null,null,null,"Scores"]
[null,null,null,null,null,null,null,null,null,null,0]
[null,null,null,null,null,null,null,null,null,null,1]
[null,null,null,null,null,null,null,null,null,null,2]
[null,null,null,null,null,null,null,null,null,null,3]
[null,null,null,null,null,null,null,null,null,null,4]
[null,null,null,null,null,null,null,null,null,null,5]

{"sheet":"Highways","index":28,"n_rows":33,"n_cols":17,"rows_kept":33,"cut":false,"hidden":true,"merged":[[5,3,5,8],[11,1,15,1]]}
[]
[null,null,{"$f":"JobNumber","v":"123456"},{"$f":"JOB_TITLE","v":"Project XXXXXXXXXXX"}]
[]
[]
[null,null,null,{"$f":"CONCATENATE(RIGHT(CELL(\"Filename\",D1),LEN(CELL(\"Filename\",D1))-SEARCH(\"]\",CELL(\"Filename\",D1),1))&\" BIM Maturity\")","v":"Highways BIM Maturity"},null,null,null,null,null,null,null,{"$f":"AVERAGE(L8:L11,L17:L23)","v":0},{"$f":"(SUM(L8:L11,L17:L23)/(5*SUM(M8:M23)))","v":0}]
[]
[null,null,"the Mission, Vision, Goals, and Objectives, along with management support, BIM Champions.","0\nNon-Existent","1\nInitial","2\nManaged","3\nDefined","4\nMeasured","5\nOptimizing","Target Level","Current Level","Adjusted Score","Weighting",null,null,null,0.75]
["EASY WINS","3D Coordination","Measures the extent of which the Model is used as part of design coordination during Design and Construction phases","None considered",null,"Majority of Project 3D, adhoc 3D coordination","Majority of Project 3D, 3D coordination reviews held regularly & recorded",null,"Whole project 3D, all components modelled & coordinated between disciplines",2,0,{"$f":"K8*M8","v":0},0.9,null,{"$f":"IF(OFFSET(D8,0,K8)=\"\",\"Score Not Allowed - Try Again!\",\"\")","v":""},{"$f":"IF(J8=0,$Q$7+J8,J8)","v":2},{"$f":"IF(K8=0,$Q$7+K8,K8)","v":0.75}]
[null,"Drawings","Measues the extent of which documentation, including drawings are derived directly from the model.","Model not Linked to Drawings","Model partially Linked to Drawings (some 2D)","Model used for some GAs, Sections, etc.","Model Used for majority of GAs, Sections etc.","Model used for all GAs, Sections, etc.","Models used for all GAs, Sections and Schedules",4,0,0,0.9,null,"",{"$f":"IF(J9=0,$Q$7+J9,J9)","v":4},0.75]
[null,"Level of Information/Detail","Measure the extent of which design outputs are controlled to only deliver the relevant information to a defined level of detail for each project stage.","None considered","Loosely defined level of information and detail adopted by a specific discipline only. Client nominally defines requirements.",null,"Company defined and adopted Level of information and Detail aligned to a defined Digital Plan of Works (dPOW)","Delivered level of information and detail in accordance with client requirements from some but not all parties..","All parties, including design team, contractor and supply chain deliver to planned level of information and detail aligned to industry standards and in accordance with client requirements.",3,0,0,1,null,"",3,0.75]
[null,"Discipline Model Reviews","Measures the extent of which approriate checking and validation has been applied as part of the information exchange process.","No checking of models","Self-checking of models by technicians only","Engineer checking of parts of models","Engineer-led reviewing whole of models","Full checking and QA verification of models as part of the collaboration process","Full QA cross checking of model and any documentation including verification signoff",4,0,0,1,null,"",4,0.75]
[null,"Discipline Specific Target & Current Level to be\nfilledin for all lines\nLine below provides average of section","To be determined",null,null,null,null,null,null,null,null,{"$f":"IF(K12=\"\",\"\",K12)","v":""},null,null,null,{"$f":"IF(J17=0,$Q$7+J17,J17)","v":0.75},{"$f":"IF(K17=0,$Q$7+K17,K17)","v":0.75}]
[null,null,"To be determined",null,null,null,null,null,null,null,null,"",null,null,null,{"$f":"IF(J18=0,$Q$7+J18,J18)","v":2},0.75]
[null,null,"To be determined",null,null,null,null,null,null,null,null,"",null,null,null,2,0.75]
[null,null,"To be determined",null,null,null,null,null,null,null,null,"",null,null,null,2,0.75]
[null,null,"To be determined",null,null,null,null,null,null,null,null,"",null,null,null,2,0.75]
[null,"Embedded Data, Schedules and Specifications","The 'I' in BIM, the ability to embed all relevant data into the model, to extract and use for all design and documentation aspects.",null,null,null,"Expand node on the left to fill in Embedded Data, Schedules and Specifications section",null,null,{"$f":"IF(ISERROR(AVERAGE(J12:J16)),0,AVERAGE(J12:J16))","v":0},{"$f":"IF(ISERROR(AVERAGE(K12:K16)),0,AVERAGE(K12:K16))","v":0},{"$f":"IF(ISERROR(AVERAGE(L12:L16)),0,AVERAGE(L12:L16))","v":0},1,null,null,3,0.75]
[null,"Visualisation","Measures the extent of which model visualisation is used as a design communication tool","None considered","Basic screenshots taken from Model for reports etc","Model used to inform Design team through basic visualisations.","Model used to inform Design team through 3D walkthroughs.","Model used to inform Client through 3D presentations","Advanced photorealistic renderings/animations taken from Model",2,0,{"$f":"K18*M18","v":0},0.7,null,"",1,0.75]
[null,"4D (Construction Sequencing)","Extent of which the model is used to facilitate construction sequencing","None considered","Model used for simplified phasing using hide/show only","Design Model used for sequencing by internal project team only","Design model prepared by the design team to enable Contractor 4D operations",null,"Fully embedded link between information model and programme manager used to track project progress",2,0,0,0.7,null,""]
[null,"5D (Quantity and Cost)","To measure the extent of which the model is used to extract cost and quantity information.","Model not suitable for costing","Model used for some internal quantity information/checking","Schedules produced from Model, and Model informally shared with QS with caveat","Design model prepared by the design team to enable Contractor 5D operations","Model formally issued to QS and cross-checked by internal project team","Cost optimisation by linking cost data directly to the model",2,0,0,0.7,null,""]
[null,"Links to Design Analysis Tools","Measures the extent of which the model is used as part of the design analysis process","None considered",null,"One way export to or from Analysis & Design Tools",null,"Whole model linked bi-directionally to Analysis & Design Tools","Full round-tripping between Model and Analysis/Design tools, to optimise design",2,0,0,1,null,""]
[null,"Handover to Contractor","Measures the extent of which the model is developed to integrate with the project construction phase.","Not possible","Model for design team internal use only","Informal issue of model to Contractor with disclaimer","Formal issue of Model to Contractor with disclaimer, or BIM protocol where possible","Formal issue of Model to Contractor aligned with project BIM Protocol","Formal handover of Model to Contractor for use in Construction and FM.",3,0,0,0.9,null,""]
["HARDER!","Use in Operations and FM","Measures the extent of which the model is developed to support the Operations and FM phase.","None considered","Client requirements not implemented",null,"Client requirements implemented but Model not used for FM",null,"Model progressively matured with embedded attributed information suitable for Client handover for use in O&M",1,0,0,0.9,null,""]
[]
[]
[]
[null,null,null,null,null,null,null,null,null,null,"Scores"]
[null,null,null,null,null,null,null,null,null,null,0]
[null,null,null,null,null,null,null,null,null,null,1]
[null,null,null,null,null,null,null,null,null,null,2]
[null,null,null,null,null,null,null,null,null,null,3]
[null,null,null,null,null,null,null,null,null,null,4]
[null,null,null,null,null,null,null,null,null,null,5]

{"sheet":"Lighting","index":29,"n_rows":33,"n_cols":17,"rows_kept":33,"cut":false,"hidden":true,"merged":[[5,3,5,8],[11,1,15,1]]}
[]
[null,null,{"$f":"JobNumber","v":"123456"},{"$f":"JOB_TITLE","v":"Project XXXXXXXXXXX"}]
[]
[]
[null,null,null,{"$f":"CONCATENATE(RIGHT(CELL(\"Filename\",D1),LEN(CELL(\"Filename\",D1))-SEARCH(\"]\",CELL(\"Filename\",D1),1))&\" BIM Maturity\")","v":"Lighting BIM Maturity"},null,null,null,null,null,null,null,{"$f":"AVERAGE(L8:L11,L17:L23)","v":0},{"$f":"(SUM(L8:L11,L17:L23)/(5*SUM(M8:M23)))","v":0}]
[]
[null,null,"the Mission, Vision, Goals, and Objectives, along with management support, BIM Champions.","0\nNon-Existent","1\nInitial","2\nManaged","3\nDefined","4\nMeasured","5\nOptimizing","Target Level","Current Level","Adjusted Score","Weighting",null,null,null,0.75]
["EASY WINS","3D Coordination","Measures the extent of which the Model is used as part of design coordination during Design and Construction phases","None considered",null,"Majority of Project 3D, adhoc 3D coordination","Majority of Project 3D, 3D coordination reviews held regularly & recorded",null,"Whole project 3D, all components modelled & coordinated between disciplines",2,0,{"$f":"K8*M8","v":0},0.9,null,{"$f":"IF(OFFSET(D8,0,K8)=\"\",\"Score Not Allowed - Try Again!\",\"\")","v":""},{"$f":"IF(J8=0,$Q$7+J8,J8)","v":2},{"$f":"IF(K8=0,$Q$7+K8,K8)","v":0.75}]
[null,"Drawings","Measues the extent of which documentation, including drawings are derived directly from the model.","Model not Linked to Drawings","Model partially Linked to Drawings (some 2D)","Model used for some GAs, Sections, etc.","Model Used for majority of GAs, Sections etc.","Model used for all GAs, Sections, etc.","Models used for all GAs, Sections and Schedules",4,0,0,0.9,null,"",{"$f":"IF(J9=0,$Q$7+J9,J9)","v":4},0.75]
[null,"Level of Information/Detail","Measure the extent of which design outputs are controlled to only deliver the relevant information to a defined level of detail for each project stage.","None considered","Loosely defined level of information and detail adopted by a specific discipline only. Client nominally defines requirements.",null,"Company defined and adopted Level of information and Detail aligned to a defined Digital Plan of Works (dPOW)","Delivered level of information and detail in accordance with client requirements from some but not all parties..","All parties, including design team, contractor and supply chain deliver to planned level of information and detail aligned to industry standards and in accordance with client requirements.",3,0,0,1,null,"",3,0.75]
[null,"Discipline Model Reviews","Measures the extent of which approriate checking and validation has been applied as part of the information exchange process.","No checking of models","Self-checking of models by technicians only","Engineer checking of parts of models","Engineer-led reviewing whole of models","Full checking and QA verification of models as part of the collaboration process","Full QA cross checking of model and any documentation including verification signoff",4,0,0,1,null,"",4,0.75]
[null,"Discipline Specific Target & Current Level to be\nfilledin for all lines\nLine below provides average of section","To be determined",null,null,null,null,null,null,null,null,{"$f":"IF(K12=\"\",\"\",K12)","v":""},null,null,null,{"$f":"IF(J17=0,$Q$7+J17,J17)","v":0.75},{"$f":"IF(K17=0,$Q$7+K17,K17)","v":0.75}]
[null,null,"To be determined",null,null,null,null,null,null,null,null,"",null,null,null,{"$f":"IF(J18=0,$Q$7+J18,J18)","v":2},0.75]
[null,null,"To be determined",null,null,null,null,null,null,null,null,"",null,null,null,2,0.75]
[null,null,"To be determined",null,null,null,null,null,null,null,null,"",null,null,null,2,0.75]
[null,null,"To be determined",null,null,null,null,null,null,null,null,"",null,null,null,2,0.75]
[null,"Embedded Data, Schedules and Specifications","The 'I' in BIM, the ability to embed all relevant data into the model, to extract and use for all design and documentation aspects.",null,null,null,"Expand node on the left to fill in Embedded Data, Schedules and Specifications section",null,null,{"$f":"IF(ISERROR(AVERAGE(J12:J16)),0,AVERAGE(J12:J16))","v":0},{"$f":"IF(ISERROR(AVERAGE(K12:K16)),0,AVERAGE(K12:K16))","v":0},{"$f":"IF(ISERROR(AVERAGE(L12:L16)),0,AVERAGE(L12:L16))","v":0},1,null,null,3,0.75]
[null,"Visualisation","Measures the extent of which model visualisation is used as a design communication tool","None considered","Basic screenshots taken from Model for reports etc","Model used to inform Design team through basic visualisations.","Model used to inform Design team through 3D walkthroughs.","Model used to inform Client through 3D presentations","Advanced photorealistic renderings/animations taken from Model",2,0,{"$f":"K18*M18","v":0},0.7,null,"",1,0.75]
[null,"4D (Construction Sequencing)","Extent of which the model is used to facilitate construction sequencing","None considered","Model used for simplified phasing using hide/show only","Design Model used for sequencing by internal project team only","Design model prepared by the design team to enable Contractor 4D operations",null,"Fully embedded link between information model and programme manager used to track project progress",2,0,0,0.7,null,""]
[null,"5D (Quantity and Cost)","To measure the extent of which the model is used to extract cost and quantity information.","Model not suitable for costing","Model used for some internal quantity information/checking","Schedules produced from Model, and Model informally shared with QS with caveat","Design model prepared by the design team to enable Contractor 5D operations","Model formally issued to QS and cross-checked by internal project team","Cost optimisation by linking cost data directly to the model",2,0,0,0.7,null,""]
[null,"Links to Design Analysis Tools","Measures the extent of which the model is used as part of the design analysis process","None considered",null,"One way export to or from Analysis & Design Tools",null,"Whole model linked bi-directionally to Analysis & Design Tools","Full round-tripping between Model and Analysis/Design tools, to optimise design",2,0,0,1,null,""]
[null,"Handover to Contractor","Measures the extent of which the model is developed to integrate with the project construction phase.","Not possible","Model for design team internal use only","Informal issue of model to Contractor with disclaimer","Formal issue of Model to Contractor with disclaimer, or BIM protocol where possible","Formal issue of Model to Contractor aligned with project BIM Protocol","Formal handover of Model to Contractor for use in Construction and FM.",3,0,0,0.9,null,""]
["HARDER!","Use in Operations and FM","Measures the extent of which the model is developed to support the Operations and FM phase.","None considered","Client requirements not implemented",null,"Client requirements implemented but Model not used for FM",null,"Model progressively matured with embedded attributed information suitable for Client handover for use in O&M",1,0,0,0.9,null,""]
[]
[]
[]
[null,null,null,null,null,null,null,null,null,null,"Scores"]
[null,null,null,null,null,null,null,null,null,null,0]
[null,null,null,null,null,null,null,null,null,null,1]
[null,null,null,null,null,null,null,null,null,null,2]
[null,null,null,null,null,null,null,null,null,null,3]
[null,null,null,null,null,null,null,null,null,null,4]
[null,null,null,null,null,null,null,null,null,null,5]

{"sheet":"Logistics","index":30,"n_rows":33,"n_cols":17,"rows_kept":33,"cut":false,"hidden":true,"merged":[[5,3,5,8],[11,1,15,1]]}
[]
[null,null,{"$f":"JobNumber","v":"123456"},{"$f":"JOB_TITLE","v":"Project XXXXXXXXXXX"}]
[]
[]
[null,null,null,{"$f":"CONCATENATE(RIGHT(CELL(\"Filename\",D1),LEN(CELL(\"Filename\",D1))-SEARCH(\"]\",CELL(\"Filename\",D1),1))&\" BIM Maturity\")","v":"Logistics BIM Maturity"},null,null,null,null,null,null,null,{"$f":"AVERAGE(L8:L11,L17:L23)","v":0},{"$f":"(SUM(L8:L11,L17:L23)/(5*SUM(M8:M23)))","v":0}]
[]
[null,null,"the Mission, Vision, Goals, and Objectives, along with management support, BIM Champions.","0\nNon-Existent","1\nInitial","2\nManaged","3\nDefined","4\nMeasured","5\nOptimizing","Target Level","Current Level","Adjusted Score","Weighting",null,null,null,0.75]
["EASY WINS","3D Coordination","Measures the extent of which the Model is used as part of design coordination during Design and Construction phases","None considered",null,"Majority of Project 3D, adhoc 3D coordination","Majority of Project 3D, 3D coordination reviews held regularly & recorded",null,"Whole project 3D, all components modelled & coordinated between disciplines",2,0,{"$f":"K8*M8","v":0},0.9,null,{"$f":"IF(OFFSET(D8,0,K8)=\"\",\"Score Not Allowed - Try Again!\",\"\")","v":""},{"$f":"IF(J8=0,$Q$7+J8,J8)","v":2},{"$f":"IF(K8=0,$Q$7+K8,K8)","v":0.75}]
[null,"Drawings","Measues the extent of which documentation, including drawings are derived directly from the model.","Model not Linked to Drawings","Model partially Linked to Drawings (some 2D)","Model used for some GAs, Sections, etc.","Model Used for majority of GAs, Sections etc.","Model used for all GAs, Sections, etc.","Models used for all GAs, Sections and Schedules",4,0,0,0.9,null,"",{"$f":"IF(J9=0,$Q$7+J9,J9)","v":4},0.75]
[null,"Level of Information/Detail","Measure the extent of which design outputs are controlled to only deliver the relevant information to a defined level of detail for each project stage.","None considered","Loosely defined level of information and detail adopted by a specific discipline only. Client nominally defines requirements.",null,"Company defined and adopted Level of information and Detail aligned to a defined Digital Plan of Works (dPOW)","Delivered level of information and detail in accordance with client requirements from some but not all parties..","All parties, including design team, contractor and supply chain deliver to planned level of information and detail aligned to industry standards and in accordance with client requirements.",3,0,0,1,null,"",3,0.75]
[null,"Discipline Model Reviews","Measures the extent of which approriate checking and validation has been applied as part of the information exchange process.","No checking of models","Self-checking of models by technicians only","Engineer checking of parts of models","Engineer-led reviewing whole of models","Full checking and QA verification of models as part of the collaboration process","Full QA cross checking of model and any documentation including verification signoff",4,0,0,1,null,"",4,0.75]
[null,"Discipline Specific Target & Current Level to be\nfilledin for all lines\nLine below provides average of section","To be determined",null,null,null,null,null,null,null,null,{"$f":"IF(K12=\"\",\"\",K12)","v":""},null,null,null,{"$f":"IF(J17=0,$Q$7+J17,J17)","v":0.75},{"$f":"IF(K17=0,$Q$7+K17,K17)","v":0.75}]
[null,null,"To be determined",null,null,null,null,null,null,null,null,"",null,null,null,{"$f":"IF(J18=0,$Q$7+J18,J18)","v":2},0.75]
[null,null,"To be determined",null,null,null,null,null,null,null,null,"",null,null,null,2,0.75]
[null,null,"To be determined",null,null,null,null,null,null,null,null,"",null,null,null,2,0.75]
[null,null,"To be determined",null,null,null,null,null,null,null,null,"",null,null,null,2,0.75]
[null,"Embedded Data, Schedules and Specifications","The 'I' in BIM, the ability to embed all relevant data into the model, to extract and use for all design and documentation aspects.",null,null,null,"Expand node on the left to fill in Embedded Data, Schedules and Specifications section",null,null,{"$f":"IF(ISERROR(AVERAGE(J12:J16)),0,AVERAGE(J12:J16))","v":0},{"$f":"IF(ISERROR(AVERAGE(K12:K16)),0,AVERAGE(K12:K16))","v":0},{"$f":"IF(ISERROR(AVERAGE(L12:L16)),0,AVERAGE(L12:L16))","v":0},1,null,null,3,0.75]
[null,"Visualisation","Measures the extent of which model visualisation is used as a design communication tool","None considered","Basic screenshots taken from Model for reports etc","Model used to inform Design team through basic visualisations.","Model used to inform Design team through 3D walkthroughs.","Model used to inform Client through 3D presentations","Advanced photorealistic renderings/animations taken from Model",2,0,{"$f":"K18*M18","v":0},0.7,null,"",1,0.75]
[null,"4D (Construction Sequencing)","Extent of which the model is used to facilitate construction sequencing","None considered","Model used for simplified phasing using hide/show only","Design Model used for sequencing by internal project team only","Design model prepared by the design team to enable Contractor 4D operations",null,"Fully embedded link between information model and programme manager used to track project progress",2,0,0,0.7,null,""]
[null,"5D (Quantity and Cost)","To measure the extent of which the model is used to extract cost and quantity information.","Model not suitable for costing","Model used for some internal quantity information/checking","Schedules produced from Model, and Model informally shared with QS with caveat","Design model prepared by the design team to enable Contractor 5D operations","Model formally issued to QS and cross-checked by internal project team","Cost optimisation by linking cost data directly to the model",2,0,0,0.7,null,""]
[null,"Links to Design Analysis Tools","Measures the extent of which the model is used as part of the design analysis process","None considered",null,"One way export to or from Analysis & Design Tools",null,"Whole model linked bi-directionally to Analysis & Design Tools","Full round-tripping between Model and Analysis/Design tools, to optimise design",2,0,0,1,null,""]
[null,"Handover to Contractor","Measures the extent of which the model is developed to integrate with the project construction phase.","Not possible","Model for design team internal use only","Informal issue of model to Contractor with disclaimer","Formal issue of Model to Contractor with disclaimer, or BIM protocol where possible","Formal issue of Model to Contractor aligned with project BIM Protocol","Formal handover of Model to Contractor for use in Construction and FM.",3,0,0,0.9,null,""]
["HARDER!","Use in Operations and FM","Measures the extent of which the model is developed to support the Operations and FM phase.","None considered","Client requirements not implemented",null,"Client requirements implemented but Model not used for FM",null,"Model progressively matured with embedded attributed information suitable for Client handover for use in O&M",1,0,0,0.9,null,""]
[]
[]
[]
[null,null,null,null,null,null,null,null,null,null,"Scores"]
[null,null,null,null,null,null,null,null,null,null,0]
[null,null,null,null,null,null,null,null,null,null,1]
[null,null,null,null,null,null,null,null,null,null,2]
[null,null,null,null,null,null,null,null,null,null,3]
[null,null,null,null,null,null,null,null,null,null,4]
[null,null,null,null,null,null,null,null,null,null,5]

{"sheet":"Mgmt Consulting","index":31,"n_rows":33,"n_cols":17,"rows_kept":33,"cut":false,"hidden":true,"merged":[[5,3,5,8],[11,1,15,1]]}
[]
[null,null,{"$f":"JobNumber","v":"123456"},{"$f":"JOB_TITLE","v":"Project XXXXXXXXXXX"}]
[]
[]
[null,null,null,{"$f":"CONCATENATE(RIGHT(CELL(\"Filename\",D1),LEN(CELL(\"Filename\",D1))-SEARCH(\"]\",CELL(\"Filename\",D1),1))&\" BIM Maturity\")","v":"Mgmt Consulting BIM Maturity"},null,null,null,null,null,null,null,{"$f":"AVERAGE(L8:L11,L17:L23)","v":0},{"$f":"(SUM(L8:L11,L17:L23)/(5*SUM(M8:M23)))","v":0}]
[]
[null,null,"the Mission, Vision, Goals, and Objectives, along with management support, BIM Champions.","0\nNon-Existent","1\nInitial","2\nManaged","3\nDefined","4\nMeasured","5\nOptimizing","Target Level","Current Level","Adjusted Score","Weighting",null,null,null,0.75]
["EASY WINS","3D Coordination","Measures the extent of which the Model is used as part of design coordination during Design and Construction phases","None considered",null,"Majority of Project 3D, adhoc 3D coordination","Majority of Project 3D, 3D coordination reviews held regularly & recorded",null,"Whole project 3D, all components modelled & coordinated between disciplines",2,0,{"$f":"K8*M8","v":0},0.9,null,{"$f":"IF(OFFSET(D8,0,K8)=\"\",\"Score Not Allowed - Try Again!\",\"\")","v":""},{"$f":"IF(J8=0,$Q$7+J8,J8)","v":2},{"$f":"IF(K8=0,$Q$7+K8,K8)","v":0.75}]
[null,"Drawings","Measues the extent of which documentation, including drawings are derived directly from the model.","Model not Linked to Drawings","Model partially Linked to Drawings (some 2D)","Model used for some GAs, Sections, etc.","Model Used for majority of GAs, Sections etc.","Model used for all GAs, Sections, etc.","Models used for all GAs, Sections and Schedules",4,0,0,0.9,null,"",{"$f":"IF(J9=0,$Q$7+J9,J9)","v":4},0.75]
[null,"Level of Information/Detail","Measure the extent of which design outputs are controlled to only deliver the relevant information to a defined level of detail for each project stage.","None considered","Loosely defined level of information and detail adopted by a specific discipline only. Client nominally defines requirements.",null,"Company defined and adopted Level of information and Detail aligned to a defined Digital Plan of Works (dPOW)","Delivered level of information and detail in accordance with client requirements from some but not all parties..","All parties, including design team, contractor and supply chain deliver to planned level of information and detail aligned to industry standards and in accordance with client requirements.",3,0,0,1,null,"",3,0.75]
[null,"Discipline Model Reviews","Measures the extent of which approriate checking and validation has been applied as part of the information exchange process.","No checking of models","Self-checking of models by technicians only","Engineer checking of parts of models","Engineer-led reviewing whole of models","Full checking and QA verification of models as part of the collaboration process","Full QA cross checking of model and any documentation including verification signoff",4,0,0,1,null,"",4,0.75]
[null,"Discipline Specific Target & Current Level to be\nfilledin for all lines\nLine below provides average of section","To be determined",null,null,null,null,null,null,null,null,{"$f":"IF(K12=\"\",\"\",K12)","v":""},null,null,null,{"$f":"IF(J17=0,$Q$7+J17,J17)","v":0.75},{"$f":"IF(K17=0,$Q$7+K17,K17)","v":0.75}]
[null,null,"To be determined",null,null,null,null,null,null,null,null,"",null,null,null,{"$f":"IF(J18=0,$Q$7+J18,J18)","v":2},0.75]
[null,null,"To be determined",null,null,null,null,null,null,null,null,"",null,null,null,2,0.75]
[null,null,"To be determined",null,null,null,null,null,null,null,null,"",null,null,null,2,0.75]
[null,null,"To be determined",null,null,null,null,null,null,null,null,"",null,null,null,2,0.75]
[null,"Embedded Data, Schedules and Specifications","The 'I' in BIM, the ability to embed all relevant data into the model, to extract and use for all design and documentation aspects.",null,null,null,"Expand node on the left to fill in Embedded Data, Schedules and Specifications section",null,null,{"$f":"IF(ISERROR(AVERAGE(J12:J16)),0,AVERAGE(J12:J16))","v":0},{"$f":"IF(ISERROR(AVERAGE(K12:K16)),0,AVERAGE(K12:K16))","v":0},{"$f":"IF(ISERROR(AVERAGE(L12:L16)),0,AVERAGE(L12:L16))","v":0},1,null,null,3,0.75]
[null,"Visualisation","Measures the extent of which model visualisation is used as a design communication tool","None considered","Basic screenshots taken from Model for reports etc","Model used to inform Design team through basic visualisations.","Model used to inform Design team through 3D walkthroughs.","Model used to inform Client through 3D presentations","Advanced photorealistic renderings/animations taken from Model",2,0,{"$f":"K18*M18","v":0},0.7,null,"",1,0.75]
[null,"4D (Construction Sequencing)","Extent of which the model is used to facilitate construction sequencing","None considered","Model used for simplified phasing using hide/show only","Design Model used for sequencing by internal project team only","Design model prepared by the design team to enable Contractor 4D operations",null,"Fully embedded link between information model and programme manager used to track project progress",2,0,0,0.7,null,""]
[null,"5D (Quantity and Cost)","To measure the extent of which the model is used to extract cost and quantity information.","Model not suitable for costing","Model used for some internal quantity information/checking","Schedules produced from Model, and Model informally shared with QS with caveat","Design model prepared by the design team to enable Contractor 5D operations","Model formally issued to QS and cross-checked by internal project team","Cost optimisation by linking cost data directly to the model",2,0,0,0.7,null,""]
[null,"Links to Design Analysis Tools","Measures the extent of which the model is used as part of the design analysis process","None considered",null,"One way export to or from Analysis & Design Tools",null,"Whole model linked bi-directionally to Analysis & Design Tools","Full round-tripping between Model and Analysis/Design tools, to optimise design",2,0,0,1,null,""]
[null,"Handover to Contractor","Measures the extent of which the model is developed to integrate with the project construction phase.","Not possible","Model for design team internal use only","Informal issue of model to Contractor with disclaimer","Formal issue of Model to Contractor with disclaimer, or BIM protocol where possible","Formal issue of Model to Contractor aligned with project BIM Protocol","Formal handover of Model to Contractor for use in Construction and FM.",3,0,0,0.9,null,""]
["HARDER!","Use in Operations and FM","Measures the extent of which the model is developed to support the Operations and FM phase.","None considered","Client requirements not implemented",null,"Client requirements implemented but Model not used for FM",null,"Model progressively matured with embedded attributed information suitable for Client handover for use in O&M",1,0,0,0.9,null,""]
[]
[]
[]
[null,null,null,null,null,null,null,null,null,null,"Scores"]
[null,null,null,null,null,null,null,null,null,null,0]
[null,null,null,null,null,null,null,null,null,null,1]
[null,null,null,null,null,null,null,null,null,null,2]
[null,null,null,null,null,null,null,null,null,null,3]
[null,null,null,null,null,null,null,null,null,null,4]
[null,null,null,null,null,null,null,null,null,null,5]

{"sheet":"Maritime","index":32,"n_rows":33,"n_cols":17,"rows_kept":33,"cut":false,"hidden":true,"merged":[[5,3,5,8],[11,1,15,1]]}
[]
[null,null,{"$f":"JobNumber","v":"123456"},{"$f":"JOB_TITLE","v":"Project XXXXXXXXXXX"}]
[]
[]
[null,null,null,{"$f":"CONCATENATE(RIGHT(CELL(\"Filename\",D1),LEN(CELL(\"Filename\",D1))-SEARCH(\"]\",CELL(\"Filename\",D1),1))&\" BIM Maturity\")","v":"Maritime BIM Maturity"},null,null,null,null,null,null,null,{"$f":"AVERAGE(L8:L11,L17:L23)","v":0},{"$f":"(SUM(L8:L11,L17:L23)/(5*SUM(M8:M23)))","v":0}]
[]
[null,null,"the Mission, Vision, Goals, and Objectives, along with management support, BIM Champions.","0\nNon-Existent","1\nInitial","2\nManaged","3\nDefined","4\nMeasured","5\nOptimizing","Target Level","Current Level","Adjusted Score","Weighting",null,null,null,0.75]
["EASY WINS","3D Coordination","Measures the extent of which the Model is used as part of design coordination during Design and Construction phases","None considered",null,"Majority of Project 3D, adhoc 3D coordination","Majority of Project 3D, 3D coordination reviews held regularly & recorded",null,"Whole project 3D, all components modelled & coordinated between disciplines",2,0,{"$f":"K8*M8","v":0},0.9,null,{"$f":"IF(OFFSET(D8,0,K8)=\"\",\"Score Not Allowed - Try Again!\",\"\")","v":""},{"$f":"IF(J8=0,$Q$7+J8,J8)","v":2},{"$f":"IF(K8=0,$Q$7+K8,K8)","v":0.75}]
[null,"Drawings","Measues the extent of which documentation, including drawings are derived directly from the model.","Model not Linked to Drawings","Model partially Linked to Drawings (some 2D)","Model used for some GAs, Sections, etc.","Model Used for majority of GAs, Sections etc.","Model used for all GAs, Sections, etc.","Models used for all GAs, Sections and Schedules",4,0,0,0.9,null,"",{"$f":"IF(J9=0,$Q$7+J9,J9)","v":4},0.75]
[null,"Level of Information/Detail","Measure the extent of which design outputs are controlled to only deliver the relevant information to a defined level of detail for each project stage.","None considered","Loosely defined level of information and detail adopted by a specific discipline only. Client nominally defines requirements.",null,"Company defined and adopted Level of information and Detail aligned to a defined Digital Plan of Works (dPOW)","Delivered level of information and detail in accordance with client requirements from some but not all parties..","All parties, including design team, contractor and supply chain deliver to planned level of information and detail aligned to industry standards and in accordance with client requirements.",3,0,0,1,null,"",3,0.75]
[null,"Discipline Model Reviews","Measures the extent of which approriate checking and validation has been applied as part of the information exchange process.","No checking of models","Self-checking of models by technicians only","Engineer checking of parts of models","Engineer-led reviewing whole of models","Full checking and QA verification of models as part of the collaboration process","Full QA cross checking of model and any documentation including verification signoff",4,0,0,1,null,"",4,0.75]
[null,"Discipline Specific Target & Current Level to be\nfilledin for all lines\nLine below provides average of section","To be determined",null,null,null,null,null,null,null,null,{"$f":"IF(K12=\"\",\"\",K12)","v":""},null,null,null,{"$f":"IF(J17=0,$Q$7+J17,J17)","v":0.75},{"$f":"IF(K17=0,$Q$7+K17,K17)","v":0.75}]
[null,null,"To be determined",null,null,null,null,null,null,null,null,"",null,null,null,{"$f":"IF(J18=0,$Q$7+J18,J18)","v":2},0.75]
[null,null,"To be determined",null,null,null,null,null,null,null,null,"",null,null,null,2,0.75]
[null,null,"To be determined",null,null,null,null,null,null,null,null,"",null,null,null,2,0.75]
[null,null,"To be determined",null,null,null,null,null,null,null,null,"",null,null,null,2,0.75]
[null,"Embedded Data, Schedules and Specifications","The 'I' in BIM, the ability to embed all relevant data into the model, to extract and use for all design and documentation aspects.",null,null,null,"Expand node on the left to fill in Embedded Data, Schedules and Specifications section",null,null,{"$f":"IF(ISERROR(AVERAGE(J12:J16)),0,AVERAGE(J12:J16))","v":0},{"$f":"IF(ISERROR(AVERAGE(K12:K16)),0,AVERAGE(K12:K16))","v":0},{"$f":"IF(ISERROR(AVERAGE(L12:L16)),0,AVERAGE(L12:L16))","v":0},1,null,null,3,0.75]
[null,"Visualisation","Measures the extent of which model visualisation is used as a design communication tool","None considered","Basic screenshots taken from Model for reports etc","Model used to inform Design team through basic visualisations.","Model used to inform Design team through 3D walkthroughs.","Model used to inform Client through 3D presentations","Advanced photorealistic renderings/animations taken from Model",2,0,{"$f":"K18*M18","v":0},0.7,null,"",1,0.75]
[null,"4D (Construction Sequencing)","Extent of which the model is used to facilitate construction sequencing","None considered","Model used for simplified phasing using hide/show only","Design Model used for sequencing by internal project team only","Design model prepared by the design team to enable Contractor 4D operations",null,"Fully embedded link between information model and programme manager used to track project progress",2,0,0,0.7,null,""]
[null,"5D (Quantity and Cost)","To measure the extent of which the model is used to extract cost and quantity information.","Model not suitable for costing","Model used for some internal quantity information/checking","Schedules produced from Model, and Model informally shared with QS with caveat","Design model prepared by the design team to enable Contractor 5D operations","Model formally issued to QS and cross-checked by internal project team","Cost optimisation by linking cost data directly to the model",2,0,0,0.7,null,""]
[null,"Links to Design Analysis Tools","Measures the extent of which the model is used as part of the design analysis process","None considered",null,"One way export to or from Analysis & Design Tools",null,"Whole model linked bi-directionally to Analysis & Design Tools","Full round-tripping between Model and Analysis/Design tools, to optimise design",2,0,0,1,null,""]
[null,"Handover to Contractor","Measures the extent of which the model is developed to integrate with the project construction phase.","Not possible","Model for design team internal use only","Informal issue of model to Contractor with disclaimer","Formal issue of Model to Contractor with disclaimer, or BIM protocol where possible","Formal issue of Model to Contractor aligned with project BIM Protocol","Formal handover of Model to Contractor for use in Construction and FM.",3,0,0,0.9,null,""]
["HARDER!","Use in Operations and FM","Measures the extent of which the model is developed to support the Operations and FM phase.","None considered","Client requirements not implemented",null,"Client requirements implemented but Model not used for FM",null,"Model progressively matured with embedded attributed information suitable for Client handover for use in O&M",1,0,0,0.9,null,""]
[]
[]
[]
[null,null,null,null,null,null,null,null,null,null,"Scores"]
[null,null,null,null,null,null,null,null,null,null,0]
[null,null,null,null,null,null,null,null,null,null,1]
[null,null,null,null,null,null,null,null,null,null,2]
[null,null,null,null,null,null,null,null,null,null,3]
[null,null,null,null,null,null,null,null,null,null,4]
[null,null,null,null,null,null,null,null,null,null,5]

{"sheet":"Masterplanning","index":33,"n_rows":33,"n_cols":17,"rows_kept":33,"cut":false,"hidden":true,"merged":[[5,3,5,8],[11,1,15,1]]}
[]
[null,null,{"$f":"JobNumber","v":"123456"},{"$f":"JOB_TITLE","v":"Project XXXXXXXXXXX"}]
[]
[]
[null,null,null,{"$f":"CONCATENATE(RIGHT(CELL(\"Filename\",D1),LEN(CELL(\"Filename\",D1))-SEARCH(\"]\",CELL(\"Filename\",D1),1))&\" BIM Maturity\")","v":"Masterplanning BIM Maturity"},null,null,null,null,null,null,null,{"$f":"AVERAGE(L8:L11,L17:L23)","v":0},{"$f":"(SUM(L8:L11,L17:L23)/(5*SUM(M8:M23)))","v":0}]
[]
[null,null,"the Mission, Vision, Goals, and Objectives, along with management support, BIM Champions.","0\nNon-Existent","1\nInitial","2\nManaged","3\nDefined","4\nMeasured","5\nOptimizing","Target Level","Current Level","Adjusted Score","Weighting",null,null,null,0.75]
["EASY WINS","3D Coordination","Measures the extent of which the Model is used as part of design coordination during Design and Construction phases","None considered",null,"Majority of Project 3D, adhoc 3D coordination","Majority of Project 3D, 3D coordination reviews held regularly & recorded",null,"Whole project 3D, all components modelled & coordinated between disciplines",2,0,{"$f":"K8*M8","v":0},0.9,null,{"$f":"IF(OFFSET(D8,0,K8)=\"\",\"Score Not Allowed - Try Again!\",\"\")","v":""},{"$f":"IF(J8=0,$Q$7+J8,J8)","v":2},{"$f":"IF(K8=0,$Q$7+K8,K8)","v":0.75}]
[null,"Drawings","Measues the extent of which documentation, including drawings are derived directly from the model.","Model not Linked to Drawings","Model partially Linked to Drawings (some 2D)","Model used for some GAs, Sections, etc.","Model Used for majority of GAs, Sections etc.","Model used for all GAs, Sections, etc.","Models used for all GAs, Sections and Schedules",4,0,0,0.9,null,"",{"$f":"IF(J9=0,$Q$7+J9,J9)","v":4},0.75]
[null,"Level of Information/Detail","Measure the extent of which design outputs are controlled to only deliver the relevant information to a defined level of detail for each project stage.","None considered","Loosely defined level of information and detail adopted by a specific discipline only. Client nominally defines requirements.",null,"Company defined and adopted Level of information and Detail aligned to a defined Digital Plan of Works (dPOW)","Delivered level of information and detail in accordance with client requirements from some but not all parties..","All parties, including design team, contractor and supply chain deliver to planned level of information and detail aligned to industry standards and in accordance with client requirements.",3,0,0,1,null,"",3,0.75]
[null,"Discipline Model Reviews","Measures the extent of which approriate checking and validation has been applied as part of the information exchange process.","No checking of models","Self-checking of models by technicians only","Engineer checking of parts of models","Engineer-led reviewing whole of models","Full checking and QA verification of models as part of the collaboration process","Full QA cross checking of model and any documentation including verification signoff",4,0,0,1,null,"",4,0.75]
[null,"Discipline Specific Target & Current Level to be\nfilledin for all lines\nLine below provides average of section","To be determined",null,null,null,null,null,null,null,null,{"$f":"IF(K12=\"\",\"\",K12)","v":""},null,null,null,{"$f":"IF(J17=0,$Q$7+J17,J17)","v":0.75},{"$f":"IF(K17=0,$Q$7+K17,K17)","v":0.75}]
[null,null,"To be determined",null,null,null,null,null,null,null,null,"",null,null,null,{"$f":"IF(J18=0,$Q$7+J18,J18)","v":2},0.75]
[null,null,"To be determined",null,null,null,null,null,null,null,null,"",null,null,null,2,0.75]
[null,null,"To be determined",null,null,null,null,null,null,null,null,"",null,null,null,2,0.75]
[null,null,"To be determined",null,null,null,null,null,null,null,null,"",null,null,null,2,0.75]
[null,"Embedded Data, Schedules and Specifications","The 'I' in BIM, the ability to embed all relevant data into the model, to extract and use for all design and documentation aspects.",null,null,null,"Expand node on the left to fill in Embedded Data, Schedules and Specifications section",null,null,{"$f":"IF(ISERROR(AVERAGE(J12:J16)),0,AVERAGE(J12:J16))","v":0},{"$f":"IF(ISERROR(AVERAGE(K12:K16)),0,AVERAGE(K12:K16))","v":0},{"$f":"IF(ISERROR(AVERAGE(L12:L16)),0,AVERAGE(L12:L16))","v":0},1,null,null,3,0.75]
[null,"Visualisation","Measures the extent of which model visualisation is used as a design communication tool","None considered","Basic screenshots taken from Model for reports etc","Model used to inform Design team through basic visualisations.","Model used to inform Design team through 3D walkthroughs.","Model used to inform Client through 3D presentations","Advanced photorealistic renderings/animations taken from Model",2,0,{"$f":"K18*M18","v":0},0.7,null,"",1,0.75]
[null,"4D (Construction Sequencing)","Extent of which the model is used to facilitate construction sequencing","None considered","Model used for simplified phasing using hide/show only","Design Model used for sequencing by internal project team only","Design model prepared by the design team to enable Contractor 4D operations",null,"Fully embedded link between information model and programme manager used to track project progress",2,0,0,0.7,null,""]
[null,"5D (Quantity and Cost)","To measure the extent of which the model is used to extract cost and quantity information.","Model not suitable for costing","Model used for some internal quantity information/checking","Schedules produced from Model, and Model informally shared with QS with caveat","Design model prepared by the design team to enable Contractor 5D operations","Model formally issued to QS and cross-checked by internal project team","Cost optimisation by linking cost data directly to the model",2,0,0,0.7,null,""]
[null,"Links to Design Analysis Tools","Measures the extent of which the model is used as part of the design analysis process","None considered",null,"One way export to or from Analysis & Design Tools",null,"Whole model linked bi-directionally to Analysis & Design Tools","Full round-tripping between Model and Analysis/Design tools, to optimise design",2,0,0,1,null,""]
[null,"Handover to Contractor","Measures the extent of which the model is developed to integrate with the project construction phase.","Not possible","Model for design team internal use only","Informal issue of model to Contractor with disclaimer","Formal issue of Model to Contractor with disclaimer, or BIM protocol where possible","Formal issue of Model to Contractor aligned with project BIM Protocol","Formal handover of Model to Contractor for use in Construction and FM.",3,0,0,0.9,null,""]
["HARDER!","Use in Operations and FM","Measures the extent of which the model is developed to support the Operations and FM phase.","None considered","Client requirements not implemented",null,"Client requirements implemented but Model not used for FM",null,"Model progressively matured with embedded attributed information suitable for Client handover for use in O&M",1,0,0,0.9,null,""]
[]
[]
[]
[null,null,null,null,null,null,null,null,null,null,"Scores"]
[null,null,null,null,null,null,null,null,null,null,0]
[null,null,null,null,null,null,null,null,null,null,1]
[null,null,null,null,null,null,null,null,null,null,2]
[null,null,null,null,null,null,null,null,null,null,3]
[null,null,null,null,null,null,null,null,null,null,4]
[null,null,null,null,null,null,null,null,null,null,5]

{"sheet":"Planning","index":34,"n_rows":33,"n_cols":17,"rows_kept":33,"cut":false,"hidden":true,"merged":[[5,3,5,8],[11,1,15,1]]}
[]
[null,null,{"$f":"JobNumber","v":"123456"},{"$f":"JOB_TITLE","v":"Project XXXXXXXXXXX"}]
[]
[]
[null,null,null,{"$f":"CONCATENATE(RIGHT(CELL(\"Filename\",D1),LEN(CELL(\"Filename\",D1))-SEARCH(\"]\",CELL(\"Filename\",D1),1))&\" BIM Maturity\")","v":"Planning BIM Maturity"},null,null,null,null,null,null,null,{"$f":"AVERAGE(L8:L11,L17:L23)","v":0},{"$f":"(SUM(L8:L11,L17:L23)/(5*SUM(M8:M23)))","v":0}]
[]
[null,null,"the Mission, Vision, Goals, and Objectives, along with management support, BIM Champions.","0\nNon-Existent","1\nInitial","2\nManaged","3\nDefined","4\nMeasured","5\nOptimizing","Target Level","Current Level","Adjusted Score","Weighting",null,null,null,0.75]
["EASY WINS","3D Coordination","Measures the extent of which the Model is used as part of design coordination during Design and Construction phases","None considered",null,"Majority of Project 3D, adhoc 3D coordination","Majority of Project 3D, 3D coordination reviews held regularly & recorded",null,"Whole project 3D, all components modelled & coordinated between disciplines",2,0,{"$f":"K8*M8","v":0},0.9,null,{"$f":"IF(OFFSET(D8,0,K8)=\"\",\"Score Not Allowed - Try Again!\",\"\")","v":""},{"$f":"IF(J8=0,$Q$7+J8,J8)","v":2},{"$f":"IF(K8=0,$Q$7+K8,K8)","v":0.75}]
[null,"Drawings","Measues the extent of which documentation, including drawings are derived directly from the model.","Model not Linked to Drawings","Model partially Linked to Drawings (some 2D)","Model used for some GAs, Sections, etc.","Model Used for majority of GAs, Sections etc.","Model used for all GAs, Sections, etc.","Models used for all GAs, Sections and Schedules",4,0,0,0.9,null,"",{"$f":"IF(J9=0,$Q$7+J9,J9)","v":4},0.75]
[null,"Level of Information/Detail","Measure the extent of which design outputs are controlled to only deliver the relevant information to a defined level of detail for each project stage.","None considered","Loosely defined level of information and detail adopted by a specific discipline only. Client nominally defines requirements.",null,"Company defined and adopted Level of information and Detail aligned to a defined Digital Plan of Works (dPOW)","Delivered level of information and detail in accordance with client requirements from some but not all parties..","All parties, including design team, contractor and supply chain deliver to planned level of information and detail aligned to industry standards and in accordance with client requirements.",3,0,0,1,null,"",3,0.75]
[null,"Discipline Model Reviews","Measures the extent of which approriate checking and validation has been applied as part of the information exchange process.","No checking of models","Self-checking of models by technicians only","Engineer checking of parts of models","Engineer-led reviewing whole of models","Full checking and QA verification of models as part of the collaboration process","Full QA cross checking of model and any documentation including verification signoff",4,0,0,1,null,"",4,0.75]
[null,"Discipline Specific Target & Current Level to be\nfilledin for all lines\nLine below provides average of section","To be determined",null,null,null,null,null,null,null,null,{"$f":"IF(K12=\"\",\"\",K12)","v":""},null,null,null,{"$f":"IF(J17=0,$Q$7+J17,J17)","v":0.75},{"$f":"IF(K17=0,$Q$7+K17,K17)","v":0.75}]
[null,null,"To be determined",null,null,null,null,null,null,null,null,"",null,null,null,{"$f":"IF(J18=0,$Q$7+J18,J18)","v":2},0.75]
[null,null,"To be determined",null,null,null,null,null,null,null,null,"",null,null,null,2,0.75]
[null,null,"To be determined",null,null,null,null,null,null,null,null,"",null,null,null,2,0.75]
[null,null,"To be determined",null,null,null,null,null,null,null,null,"",null,null,null,2,0.75]
[null,"Embedded Data, Schedules and Specifications","The 'I' in BIM, the ability to embed all relevant data into the model, to extract and use for all design and documentation aspects.",null,null,null,"Expand node on the left to fill in Embedded Data, Schedules and Specifications section",null,null,{"$f":"IF(ISERROR(AVERAGE(J12:J16)),0,AVERAGE(J12:J16))","v":0},{"$f":"IF(ISERROR(AVERAGE(K12:K16)),0,AVERAGE(K12:K16))","v":0},{"$f":"IF(ISERROR(AVERAGE(L12:L16)),0,AVERAGE(L12:L16))","v":0},1,null,null,3,0.75]
[null,"Visualisation","Measures the extent of which model visualisation is used as a design communication tool","None considered","Basic screenshots taken from Model for reports etc","Model used to inform Design team through basic visualisations.","Model used to inform Design team through 3D walkthroughs.","Model used to inform Client through 3D presentations","Advanced photorealistic renderings/animations taken from Model",2,0,{"$f":"K18*M18","v":0},0.7,null,"",1,0.75]
[null,"4D (Construction Sequencing)","Extent of which the model is used to facilitate construction sequencing","None considered","Model used for simplified phasing using hide/show only","Design Model used for sequencing by internal project team only","Design model prepared by the design team to enable Contractor 4D operations",null,"Fully embedded link between information model and programme manager used to track project progress",2,0,0,0.7,null,""]
[null,"5D (Quantity and Cost)","To measure the extent of which the model is used to extract cost and quantity information.","Model not suitable for costing","Model used for some internal quantity information/checking","Schedules produced from Model, and Model informally shared with QS with caveat","Design model prepared by the design team to enable Contractor 5D operations","Model formally issued to QS and cross-checked by internal project team","Cost optimisation by linking cost data directly to the model",2,0,0,0.7,null,""]
[null,"Links to Design Analysis Tools","Measures the extent of which the model is used as part of the design analysis process","None considered",null,"One way export to or from Analysis & Design Tools",null,"Whole model linked bi-directionally to Analysis & Design Tools","Full round-tripping between Model and Analysis/Design tools, to optimise design",2,0,0,1,null,""]
[null,"Handover to Contractor","Measures the extent of which the model is developed to integrate with the project construction phase.","Not possible","Model for design team internal use only","Informal issue of model to Contractor with disclaimer","Formal issue of Model to Contractor with disclaimer, or BIM protocol where possible","Formal issue of Model to Contractor aligned with project BIM Protocol","Formal handover of Model to Contractor for use in Construction and FM.",3,0,0,0.9,null,""]
["HARDER!","Use in Operations and FM","Measures the extent of which the model is developed to support the Operations and FM phase.","None considered","Client requirements not implemented",null,"Client requirements implemented but Model not used for FM",null,"Model progressively matured with embedded attributed information suitable for Client handover for use in O&M",1,0,0,0.9,null,""]
[]
[]
[]
[null,null,null,null,null,null,null,null,null,null,"Scores"]
[null,null,null,null,null,null,null,null,null,null,0]
[null,null,null,null,null,null,null,null,null,null,1]
[null,null,null,null,null,null,null,null,null,null,2]
[null,null,null,null,null,null,null,null,null,null,3]
[null,null,null,null,null,null,null,null,null,null,4]
[null,null,null,null,null,null,null,null,null,null,5]

{"sheet":"Rail","index":35,"n_rows":33,"n_cols":17,"rows_kept":33,"cut":false,"hidden":true,"merged":[[5,3,5,8],[11,1,15,1]]}
[]
[null,null,{"$f":"JobNumber","v":"123456"},{"$f":"JOB_TITLE","v":"Project XXXXXXXXXXX"}]
[]
[]
[null,null,null,{"$f":"CONCATENATE(RIGHT(CELL(\"Filename\",D1),LEN(CELL(\"Filename\",D1))-SEARCH(\"]\",CELL(\"Filename\",D1),1))&\" BIM Maturity\")","v":"Rail BIM Maturity"},null,null,null,null,null,null,null,{"$f":"AVERAGE(L8:L11,L17:L23)","v":0},{"$f":"(SUM(L8:L11,L17:L23)/(5*SUM(M8:M23)))","v":0}]
[]
[null,null,"the Mission, Vision, Goals, and Objectives, along with management support, BIM Champions.","0\nNon-Existent","1\nInitial","2\nManaged","3\nDefined","4\nMeasured","5\nOptimizing","Target Level","Current Level","Adjusted Score","Weighting",null,null,null,0.75]
["EASY WINS","3D Coordination","Measures the extent of which the Model is used as part of design coordination during Design and Construction phases","None considered",null,"Majority of Project 3D, adhoc 3D coordination","Majority of Project 3D, 3D coordination reviews held regularly & recorded",null,"Whole project 3D, all components modelled & coordinated between disciplines",2,0,{"$f":"K8*M8","v":0},0.9,null,{"$f":"IF(OFFSET(D8,0,K8)=\"\",\"Score Not Allowed - Try Again!\",\"\")","v":""},{"$f":"IF(J8=0,$Q$7+J8,J8)","v":2},{"$f":"IF(K8=0,$Q$7+K8,K8)","v":0.75}]
[null,"Drawings","Measues the extent of which documentation, including drawings are derived directly from the model.","Model not Linked to Drawings","Model partially Linked to Drawings (some 2D)","Model used for some GAs, Sections, etc.","Model Used for majority of GAs, Sections etc.","Model used for all GAs, Sections, etc.","Models used for all GAs, Sections and Schedules",4,0,0,0.9,null,"",{"$f":"IF(J9=0,$Q$7+J9,J9)","v":4},0.75]
[null,"Level of Information/Detail","Measure the extent of which design outputs are controlled to only deliver the relevant information to a defined level of detail for each project stage.","None considered","Loosely defined level of information and detail adopted by a specific discipline only. Client nominally defines requirements.",null,"Company defined and adopted Level of information and Detail aligned to a defined Digital Plan of Works (dPOW)","Delivered level of information and detail in accordance with client requirements from some but not all parties..","All parties, including design team, contractor and supply chain deliver to planned level of information and detail aligned to industry standards and in accordance with client requirements.",3,0,0,1,null,"",3,0.75]
[null,"Discipline Model Reviews","Measures the extent of which approriate checking and validation has been applied as part of the information exchange process.","No checking of models","Self-checking of models by technicians only","Engineer checking of parts of models","Engineer-led reviewing whole of models","Full checking and QA verification of models as part of the collaboration process","Full QA cross checking of model and any documentation including verification signoff",4,0,0,1,null,"",4,0.75]
[null,"Discipline Specific Target & Current Level to be\nfilledin for all lines\nLine below provides average of section","To be determined",null,null,null,null,null,null,null,null,{"$f":"IF(K12=\"\",\"\",K12)","v":""},null,null,null,{"$f":"IF(J17=0,$Q$7+J17,J17)","v":0.75},{"$f":"IF(K17=0,$Q$7+K17,K17)","v":0.75}]
[null,null,"To be determined",null,null,null,null,null,null,null,null,"",null,null,null,{"$f":"IF(J18=0,$Q$7+J18,J18)","v":2},0.75]
[null,null,"To be determined",null,null,null,null,null,null,null,null,"",null,null,null,2,0.75]
[null,null,"To be determined",null,null,null,null,null,null,null,null,"",null,null,null,2,0.75]
[null,null,"To be determined",null,null,null,null,null,null,null,null,"",null,null,null,2,0.75]
[null,"Embedded Data, Schedules and Specifications","The 'I' in BIM, the ability to embed all relevant data into the model, to extract and use for all design and documentation aspects.",null,null,null,"Expand node on the left to fill in Embedded Data, Schedules and Specifications section",null,null,{"$f":"IF(ISERROR(AVERAGE(J12:J16)),0,AVERAGE(J12:J16))","v":0},{"$f":"IF(ISERROR(AVERAGE(K12:K16)),0,AVERAGE(K12:K16))","v":0},{"$f":"IF(ISERROR(AVERAGE(L12:L16)),0,AVERAGE(L12:L16))","v":0},1,null,null,3,0.75]
[null,"Visualisation","Measures the extent of which model visualisation is used as a design communication tool","None considered","Basic screenshots taken from Model for reports etc","Model used to inform Design team through basic visualisations.","Model used to inform Design team through 3D walkthroughs.","Model used to inform Client through 3D presentations","Advanced photorealistic renderings/animations taken from Model",2,0,{"$f":"K18*M18","v":0},0.7,null,"",1,0.75]
[null,"4D (Construction Sequencing)","Extent of which the model is used to facilitate construction sequencing","None considered","Model used for simplified phasing using hide/show only","Design Model used for sequencing by internal project team only","Design model prepared by the design team to enable Contractor 4D operations",null,"Fully embedded link between information model and programme manager used to track project progress",2,0,0,0.7,null,""]
[null,"5D (Quantity and Cost)","To measure the extent of which the model is used to extract cost and quantity information.","Model not suitable for costing","Model used for some internal quantity information/checking","Schedules produced from Model, and Model informally shared with QS with caveat","Design model prepared by the design team to enable Contractor 5D operations","Model formally issued to QS and cross-checked by internal project team","Cost optimisation by linking cost data directly to the model",2,0,0,0.7,null,""]
[null,"Links to Design Analysis Tools","Measures the extent of which the model is used as part of the design analysis process","None considered",null,"One way export to or from Analysis & Design Tools",null,"Whole model linked bi-directionally to Analysis & Design Tools","Full round-tripping between Model and Analysis/Design tools, to optimise design",2,0,0,1,null,""]
[null,"Handover to Contractor","Measures the extent of which the model is developed to integrate with the project construction phase.","Not possible","Model for design team internal use only","Informal issue of model to Contractor with disclaimer","Formal issue of Model to Contractor with disclaimer, or BIM protocol where possible","Formal issue of Model to Contractor aligned with project BIM Protocol","Formal handover of Model to Contractor for use in Construction and FM.",3,0,0,0.9,null,""]
["HARDER!","Use in Operations and FM","Measures the extent of which the model is developed to support the Operations and FM phase.","None considered","Client requirements not implemented",null,"Client requirements implemented but Model not used for FM",null,"Model progressively matured with embedded attributed information suitable for Client handover for use in O&M",1,0,0,0.9,null,""]
[]
[]
[]
[null,null,null,null,null,null,null,null,null,null,"Scores"]
[null,null,null,null,null,null,null,null,null,null,0]
[null,null,null,null,null,null,null,null,null,null,1]
[null,null,null,null,null,null,null,null,null,null,2]
[null,null,null,null,null,null,null,null,null,null,3]
[null,null,null,null,null,null,null,null,null,null,4]
[null,null,null,null,null,null,null,null,null,null,5]

{"sheet":"Security","index":36,"n_rows":33,"n_cols":17,"rows_kept":33,"cut":false,"hidden":true,"merged":[[5,3,5,8],[11,1,15,1]]}
[]
[null,null,{"$f":"JobNumber","v":"123456"},{"$f":"JOB_TITLE","v":"Project XXXXXXXXXXX"}]
[]
[]
[null,null,null,{"$f":"CONCATENATE(RIGHT(CELL(\"Filename\",D1),LEN(CELL(\"Filename\",D1))-SEARCH(\"]\",CELL(\"Filename\",D1),1))&\" BIM Maturity\")","v":"Security BIM Maturity"},null,null,null,null,null,null,null,{"$f":"AVERAGE(L8:L11,L17:L23)","v":0},{"$f":"(SUM(L8:L11,L17:L23)/(5*SUM(M8:M23)))","v":0}]
[]
[null,null,"the Mission, Vision, Goals, and Objectives, along with management support, BIM Champions.","0\nNon-Existent","1\nInitial","2\nManaged","3\nDefined","4\nMeasured","5\nOptimizing","Target Level","Current Level","Adjusted Score","Weighting",null,null,null,0.75]
["EASY WINS","3D Coordination","Measures the extent of which the Model is used as part of design coordination during Design and Construction phases","None considered",null,"Majority of Project 3D, adhoc 3D coordination","Majority of Project 3D, 3D coordination reviews held regularly & recorded",null,"Whole project 3D, all components modelled & coordinated between disciplines",2,0,{"$f":"K8*M8","v":0},0.9,null,{"$f":"IF(OFFSET(D8,0,K8)=\"\",\"Score Not Allowed - Try Again!\",\"\")","v":""},{"$f":"IF(J8=0,$Q$7+J8,J8)","v":2},{"$f":"IF(K8=0,$Q$7+K8,K8)","v":0.75}]
[null,"Drawings","Measues the extent of which documentation, including drawings are derived directly from the model.","Model not Linked to Drawings","Model partially Linked to Drawings (some 2D)","Model used for some GAs, Sections, etc.","Model Used for majority of GAs, Sections etc.","Model used for all GAs, Sections, etc.","Models used for all GAs, Sections and Schedules",4,0,0,0.9,null,"",{"$f":"IF(J9=0,$Q$7+J9,J9)","v":4},0.75]
[null,"Level of Information/Detail","Measure the extent of which design outputs are controlled to only deliver the relevant information to a defined level of detail for each project stage.","None considered","Loosely defined level of information and detail adopted by a specific discipline only. Client nominally defines requirements.",null,"Company defined and adopted Level of information and Detail aligned to a defined Digital Plan of Works (dPOW)","Delivered level of information and detail in accordance with client requirements from some but not all parties..","All parties, including design team, contractor and supply chain deliver to planned level of information and detail aligned to industry standards and in accordance with client requirements.",3,0,0,1,null,"",3,0.75]
[null,"Discipline Model Reviews","Measures the extent of which approriate checking and validation has been applied as part of the information exchange process.","No checking of models","Self-checking of models by technicians only","Engineer checking of parts of models","Engineer-led reviewing whole of models","Full checking and QA verification of models as part of the collaboration process","Full QA cross checking of model and any documentation including verification signoff",4,0,0,1,null,"",4,0.75]
[null,"Discipline Specific Target & Current Level to be\nfilledin for all lines\nLine below provides average of section","To be determined",null,null,null,null,null,null,null,null,{"$f":"IF(K12=\"\",\"\",K12)","v":""},null,null,null,{"$f":"IF(J17=0,$Q$7+J17,J17)","v":0.75},{"$f":"IF(K17=0,$Q$7+K17,K17)","v":0.75}]
[null,null,"To be determined",null,null,null,null,null,null,null,null,"",null,null,null,{"$f":"IF(J18=0,$Q$7+J18,J18)","v":2},0.75]
[null,null,"To be determined",null,null,null,null,null,null,null,null,"",null,null,null,2,0.75]
[null,null,"To be determined",null,null,null,null,null,null,null,null,"",null,null,null,2,0.75]
[null,null,"To be determined",null,null,null,null,null,null,null,null,"",null,null,null,2,0.75]
[null,"Embedded Data, Schedules and Specifications","The 'I' in BIM, the ability to embed all relevant data into the model, to extract and use for all design and documentation aspects.",null,null,null,"Expand node on the left to fill in Embedded Data, Schedules and Specifications section",null,null,{"$f":"IF(ISERROR(AVERAGE(J12:J16)),0,AVERAGE(J12:J16))","v":0},{"$f":"IF(ISERROR(AVERAGE(K12:K16)),0,AVERAGE(K12:K16))","v":0},{"$f":"IF(ISERROR(AVERAGE(L12:L16)),0,AVERAGE(L12:L16))","v":0},1,null,null,3,0.75]
[null,"Visualisation","Measures the extent of which model visualisation is used as a design communication tool","None considered","Basic screenshots taken from Model for reports etc","Model used to inform Design team through basic visualisations.","Model used to inform Design team through 3D walkthroughs.","Model used to inform Client through 3D presentations","Advanced photorealistic renderings/animations taken from Model",2,0,{"$f":"K18*M18","v":0},0.7,null,"",1,0.75]
[null,"4D (Construction Sequencing)","Extent of which the model is used to facilitate construction sequencing","None considered","Model used for simplified phasing using hide/show only","Design Model used for sequencing by internal project team only","Design model prepared by the design team to enable Contractor 4D operations",null,"Fully embedded link between information model and programme manager used to track project progress",2,0,0,0.7,null,""]
[null,"5D (Quantity and Cost)","To measure the extent of which the model is used to extract cost and quantity information.","Model not suitable for costing","Model used for some internal quantity information/checking","Schedules produced from Model, and Model informally shared with QS with caveat","Design model prepared by the design team to enable Contractor 5D operations","Model formally issued to QS and cross-checked by internal project team","Cost optimisation by linking cost data directly to the model",2,0,0,0.7,null,""]
[null,"Links to Design Analysis Tools","Measures the extent of which the model is used as part of the design analysis process","None considered",null,"One way export to or from Analysis & Design Tools",null,"Whole model linked bi-directionally to Analysis & Design Tools","Full round-tripping between Model and Analysis/Design tools, to optimise design",2,0,0,1,null,""]
[null,"Handover to Contractor","Measures the extent of which the model is developed to integrate with the project construction phase.","Not possible","Model for design team internal use only","Informal issue of model to Contractor with disclaimer","Formal issue of Model to Contractor with disclaimer, or BIM protocol where possible","Formal issue of Model to Contractor aligned with project BIM Protocol","Formal handover of Model to Contractor for use in Construction and FM.",3,0,0,0.9,null,""]
["HARDER!","Use in Operations and FM","Measures the extent of which the model is developed to support the Operations and FM phase.","None considered","Client requirements not implemented",null,"Client requirements implemented but Model not used for FM",null,"Model progressively matured with embedded attributed information suitable for Client handover for use in O&M",1,0,0,0.9,null,""]
[]
[]
[]
[null,null,null,null,null,null,null,null,null,null,"Scores"]
[null,null,null,null,null,null,null,null,null,null,0]
[null,null,null,null,null,null,null,null,null,null,1]
[null,null,null,null,null,null,null,null,null,null,2]
[null,null,null,null,null,null,null,null,null,null,3]
[null,null,null,null,null,null,null,null,null,null,4]
[null,null,null,null,null,null,null,null,null,null,5]

{"sheet":"Tunnels","index":37,"n_rows":33,"n_cols":17,"rows_kept":33,"cut":false,"hidden":true,"merged":[[5,3,5,8],[11,1,15,1]]}
[]
[null,null,{"$f":"JobNumber","v":"123456"},{"$f":"JOB_TITLE","v":"Project XXXXXXXXXXX"}]
[]
[]
[null,null,null,{"$f":"CONCATENATE(RIGHT(CELL(\"Filename\",D1),LEN(CELL(\"Filename\",D1))-SEARCH(\"]\",CELL(\"Filename\",D1),1))&\" BIM Maturity\")","v":"Tunnels BIM Maturity"},null,null,null,null,null,null,null,{"$f":"AVERAGE(L8:L11,L17:L23)","v":0},{"$f":"(SUM(L8:L11,L17:L23)/(5*SUM(M8:M23)))","v":0}]
[]
[null,null,"the Mission, Vision, Goals, and Objectives, along with management support, BIM Champions.","0\nNon-Existent","1\nInitial","2\nManaged","3\nDefined","4\nMeasured","5\nOptimizing","Target Level","Current Level","Adjusted Score","Weighting",null,null,null,0.75]
["EASY WINS","3D Coordination","Measures the extent of which the Model is used as part of design coordination during Design and Construction phases","None considered",null,"Majority of Project 3D, adhoc 3D coordination","Majority of Project 3D, 3D coordination reviews held regularly & recorded",null,"Whole project 3D, all components modelled & coordinated between disciplines",2,0,{"$f":"K8*M8","v":0},0.9,null,{"$f":"IF(OFFSET(D8,0,K8)=\"\",\"Score Not Allowed - Try Again!\",\"\")","v":""},{"$f":"IF(J8=0,$Q$7+J8,J8)","v":2},{"$f":"IF(K8=0,$Q$7+K8,K8)","v":0.75}]
[null,"Drawings","Measues the extent of which documentation, including drawings are derived directly from the model.","Model not Linked to Drawings","Model partially Linked to Drawings (some 2D)","Model used for some GAs, Sections, etc.","Model Used for majority of GAs, Sections etc.","Model used for all GAs, Sections, etc.","Models used for all GAs, Sections and Schedules",4,0,0,0.9,null,"",{"$f":"IF(J9=0,$Q$7+J9,J9)","v":4},0.75]
[null,"Level of Information/Detail","Measure the extent of which design outputs are controlled to only deliver the relevant information to a defined level of detail for each project stage.","None considered","Loosely defined level of information and detail adopted by a specific discipline only. Client nominally defines requirements.",null,"Company defined and adopted Level of information and Detail aligned to a defined Digital Plan of Works (dPOW)","Delivered level of information and detail in accordance with client requirements from some but not all parties..","All parties, including design team, contractor and supply chain deliver to planned level of information and detail aligned to industry standards and in accordance with client requirements.",3,0,0,1,null,"",3,0.75]
[null,"Discipline Model Reviews","Measures the extent of which approriate checking and validation has been applied as part of the information exchange process.","No checking of models","Self-checking of models by technicians only","Engineer checking of parts of models","Engineer-led reviewing whole of models","Full checking and QA verification of models as part of the collaboration process","Full QA cross checking of model and any documentation including verification signoff",4,0,0,1,null,"",4,0.75]
[null,"Discipline Specific Target & Current Level to be\nfilledin for all lines\nLine below provides average of section","To be determined",null,null,null,null,null,null,null,null,{"$f":"IF(K12=\"\",\"\",K12)","v":""},null,null,null,{"$f":"IF(J17=0,$Q$7+J17,J17)","v":0.75},{"$f":"IF(K17=0,$Q$7+K17,K17)","v":0.75}]
[null,null,"To be determined",null,null,null,null,null,null,null,null,"",null,null,null,{"$f":"IF(J18=0,$Q$7+J18,J18)","v":2},0.75]
[null,null,"To be determined",null,null,null,null,null,null,null,null,"",null,null,null,2,0.75]
[null,null,"To be determined",null,null,null,null,null,null,null,null,"",null,null,null,2,0.75]
[null,null,"To be determined",null,null,null,null,null,null,null,null,"",null,null,null,2,0.75]
[null,"Embedded Data, Schedules and Specifications","The 'I' in BIM, the ability to embed all relevant data into the model, to extract and use for all design and documentation aspects.",null,null,null,"Expand node on the left to fill in Embedded Data, Schedules and Specifications section",null,null,{"$f":"IF(ISERROR(AVERAGE(J12:J16)),0,AVERAGE(J12:J16))","v":0},{"$f":"IF(ISERROR(AVERAGE(K12:K16)),0,AVERAGE(K12:K16))","v":0},{"$f":"IF(ISERROR(AVERAGE(L12:L16)),0,AVERAGE(L12:L16))","v":0},1,null,null,3,0.75]
[null,"Visualisation","Measures the extent of which model visualisation is used as a design communication tool","None considered","Basic screenshots taken from Model for reports etc","Model used to inform Design team through basic visualisations.","Model used to inform Design team through 3D walkthroughs.","Model used to inform Client through 3D presentations","Advanced photorealistic renderings/animations taken from Model",2,0,{"$f":"K18*M18","v":0},0.7,null,"",1,0.75]
[null,"4D (Construction Sequencing)","Extent of which the model is used to facilitate construction sequencing","None considered","Model used for simplified phasing using hide/show only","Design Model used for sequencing by internal project team only","Design model prepared by the design team to enable Contractor 4D operations",null,"Fully embedded link between information model and programme manager used to track project progress",2,0,0,0.7,null,""]
[null,"5D (Quantity and Cost)","To measure the extent of which the model is used to extract cost and quantity information.","Model not suitable for costing","Model used for some internal quantity information/checking","Schedules produced from Model, and Model informally shared with QS with caveat","Design model prepared by the design team to enable Contractor 5D operations","Model formally issued to QS and cross-checked by internal project team","Cost optimisation by linking cost data directly to the model",2,0,0,0.7,null,""]
[null,"Links to Design Analysis Tools","Measures the extent of which the model is used as part of the design analysis process","None considered",null,"One way export to or from Analysis & Design Tools",null,"Whole model linked bi-directionally to Analysis & Design Tools","Full round-tripping between Model and Analysis/Design tools, to optimise design",2,0,0,1,null,""]
[null,"Handover to Contractor","Measures the extent of which the model is developed to integrate with the project construction phase.","Not possible","Model for design team internal use only","Informal issue of model to Contractor with disclaimer","Formal issue of Model to Contractor with disclaimer, or BIM protocol where possible","Formal issue of Model to Contractor aligned with project BIM Protocol","Formal handover of Model to Contractor for use in Construction and FM.",3,0,0,0.9,null,""]
["HARDER!","Use in Operations and FM","Measures the extent of which the model is developed to support the Operations and FM phase.","None considered","Client requirements not implemented",null,"Client requirements implemented but Model not used for FM",null,"Model progressively matured with embedded attributed information suitable for Client handover for use in O&M",1,0,0,0.9,null,""]
[]
[]
[]
[null,null,null,null,null,null,null,null,null,null,"Scores"]
[null,null,null,null,null,null,null,null,null,null,0]
[null,null,null,null,null,null,null,null,null,null,1]
[null,null,null,null,null,null,null,null,null,null,2]
[null,null,null,null,null,null,null,null,null,null,3]
[null,null,null,null,null,null,null,null,null,null,4]
[null,null,null,null,null,null,null,null,null,null,5]

{"sheet":"Water","index":38,"n_rows":33,"n_cols":17,"rows_kept":33,"cut":false,"hidden":true,"merged":[[5,3,5,8],[11,1,15,1]]}
[]
[null,null,{"$f":"JobNumber","v":"123456"},{"$f":"JOB_TITLE","v":"Project XXXXXXXXXXX"}]
[]
[]
[null,null,null,{"$f":"CONCATENATE(RIGHT(CELL(\"Filename\",D1),LEN(CELL(\"Filename\",D1))-SEARCH(\"]\",CELL(\"Filename\",D1),1))&\" BIM Maturity\")","v":"Water BIM Maturity"},null,null,null,null,null,null,null,{"$f":"AVERAGE(L8:L11,L17:L23)","v":0},{"$f":"(SUM(L8:L11,L17:L23)/(5*SUM(M8:M23)))","v":0}]
[]
[null,null,"the Mission, Vision, Goals, and Objectives, along with management support, BIM Champions.","0\nNon-Existent","1\nInitial","2\nManaged","3\nDefined","4\nMeasured","5\nOptimizing","Target Level","Current Level","Adjusted Score","Weighting",null,null,null,0.75]
["EASY WINS","3D Coordination","Measures the extent of which the Model is used as part of design coordination during Design and Construction phases","None considered",null,"Majority of Project 3D, adhoc 3D coordination","Majority of Project 3D, 3D coordination reviews held regularly & recorded",null,"Whole project 3D, all components modelled & coordinated between disciplines",2,0,{"$f":"K8*M8","v":0},0.9,null,{"$f":"IF(OFFSET(D8,0,K8)=\"\",\"Score Not Allowed - Try Again!\",\"\")","v":""},{"$f":"IF(J8=0,$Q$7+J8,J8)","v":2},{"$f":"IF(K8=0,$Q$7+K8,K8)","v":0.75}]
[null,"Drawings","Measues the extent of which documentation, including drawings are derived directly from the model.","Model not Linked to Drawings","Model partially Linked to Drawings (some 2D)","Model used for some GAs, Sections, etc.","Model Used for majority of GAs, Sections etc.","Model used for all GAs, Sections, etc.","Models used for all GAs, Sections and Schedules",4,0,0,0.9,null,"",{"$f":"IF(J9=0,$Q$7+J9,J9)","v":4},0.75]
[null,"Level of Information/Detail","Measure the extent of which design outputs are controlled to only deliver the relevant information to a defined level of detail for each project stage.","None considered","Loosely defined level of information and detail adopted by a specific discipline only. Client nominally defines requirements.",null,"Company defined and adopted Level of information and Detail aligned to a defined Digital Plan of Works (dPOW)","Delivered level of information and detail in accordance with client requirements from some but not all parties..","All parties, including design team, contractor and supply chain deliver to planned level of information and detail aligned to industry standards and in accordance with client requirements.",3,0,0,1,null,"",3,0.75]
[null,"Discipline Model Reviews","Measures the extent of which approriate checking and validation has been applied as part of the information exchange process.","No checking of models","Self-checking of models by technicians only","Engineer checking of parts of models","Engineer-led reviewing whole of models","Full checking and QA verification of models as part of the collaboration process","Full QA cross checking of model and any documentation including verification signoff",4,0,0,1,null,"",4,0.75]
[null,"Discipline Specific Target & Current Level to be\nfilledin for all lines\nLine below provides average of section","To be determined",null,null,null,null,null,null,null,null,{"$f":"IF(K12=\"\",\"\",K12)","v":""},null,null,null,{"$f":"IF(J17=0,$Q$7+J17,J17)","v":0.75},{"$f":"IF(K17=0,$Q$7+K17,K17)","v":0.75}]
[null,null,"To be determined",null,null,null,null,null,null,null,null,"",null,null,null,{"$f":"IF(J18=0,$Q$7+J18,J18)","v":2},0.75]
[null,null,"To be determined",null,null,null,null,null,null,null,null,"",null,null,null,2,0.75]
[null,null,"To be determined",null,null,null,null,null,null,null,null,"",null,null,null,2,0.75]
[null,null,"To be determined",null,null,null,null,null,null,null,null,"",null,null,null,2,0.75]
[null,"Embedded Data, Schedules and Specifications","The 'I' in BIM, the ability to embed all relevant data into the model, to extract and use for all design and documentation aspects.",null,null,null,"Expand node on the left to fill in Embedded Data, Schedules and Specifications section",null,null,{"$f":"IF(ISERROR(AVERAGE(J12:J16)),0,AVERAGE(J12:J16))","v":0},{"$f":"IF(ISERROR(AVERAGE(K12:K16)),0,AVERAGE(K12:K16))","v":0},{"$f":"IF(ISERROR(AVERAGE(L12:L16)),0,AVERAGE(L12:L16))","v":0},1,null,null,3,0.75]
[null,"Visualisation","Measures the extent of which model visualisation is used as a design communication tool","None considered","Basic screenshots taken from Model for reports etc","Model used to inform Design team through basic visualisations.","Model used to inform Design team through 3D walkthroughs.","Model used to inform Client through 3D presentations","Advanced photorealistic renderings/animations taken from Model",2,0,{"$f":"K18*M18","v":0},0.7,null,"",1,0.75]
[null,"4D (Construction Sequencing)","Extent of which the model is used to facilitate construction sequencing","None considered","Model used for simplified phasing using hide/show only","Design Model used for sequencing by internal project team only","Design model prepared by the design team to enable Contractor 4D operations",null,"Fully embedded link between information model and programme manager used to track project progress",2,0,0,0.7,null,""]
[null,"5D (Quantity and Cost)","To measure the extent of which the model is used to extract cost and quantity information.","Model not suitable for costing","Model used for some internal quantity information/checking","Schedules produced from Model, and Model informally shared with QS with caveat","Design model prepared by the design team to enable Contractor 5D operations","Model formally issued to QS and cross-checked by internal project team","Cost optimisation by linking cost data directly to the model",2,0,0,0.7,null,""]
[null,"Links to Design Analysis Tools","Measures the extent of which the model is used as part of the design analysis process","None considered",null,"One way export to or from Analysis & Design Tools",null,"Whole model linked bi-directionally to Analysis & Design Tools","Full round-tripping between Model and Analysis/Design tools, to optimise design",2,0,0,1,null,""]
[null,"Handover to Contractor","Measures the extent of which the model is developed to integrate with the project construction phase.","Not possible","Model for design team internal use only","Informal issue of model to Contractor with disclaimer","Formal issue of Model to Contractor with disclaimer, or BIM protocol where possible","Formal issue of Model to Contractor aligned with project BIM Protocol","Formal handover of Model to Contractor for use in Construction and FM.",3,0,0,0.9,null,""]
["HARDER!","Use in Operations and FM","Measures the extent of which the model is developed to support the Operations and FM phase.","None considered","Client requirements not implemented",null,"Client requirements implemented but Model not used for FM",null,"Model progressively matured with embedded attributed information suitable for Client handover for use in O&M",1,0,0,0.9,null,""]
[]
[]
[]
[null,null,null,null,null,null,null,null,null,null,"Scores"]
[null,null,null,null,null,null,null,null,null,null,0]
[null,null,null,null,null,null,null,null,null,null,1]
[null,null,null,null,null,null,null,null,null,null,2]
[null,null,null,null,null,null,null,null,null,null,3]
[null,null,null,null,null,null,null,null,null,null,4]
[null,null,null,null,null,null,null,null,null,null,5]

{"sheet":"Wind","index":39,"n_rows":33,"n_cols":17,"rows_kept":33,"cut":false,"hidden":true,"merged":[[5,3,5,8],[11,1,15,1]]}
[]
[null,null,{"$f":"JobNumber","v":"123456"},{"$f":"JOB_TITLE","v":"Project XXXXXXXXXXX"}]
[]
[]
[null,null,null,{"$f":"CONCATENATE(RIGHT(CELL(\"Filename\",D1),LEN(CELL(\"Filename\",D1))-SEARCH(\"]\",CELL(\"Filename\",D1),1))&\" BIM Maturity\")","v":"Wind BIM Maturity"},null,null,null,null,null,null,null,{"$f":"AVERAGE(L8:L11,L17:L23)","v":0},{"$f":"(SUM(L8:L11,L17:L23)/(5*SUM(M8:M23)))","v":0}]
[]
[null,null,"the Mission, Vision, Goals, and Objectives, along with management support, BIM Champions.","0\nNon-Existent","1\nInitial","2\nManaged","3\nDefined","4\nMeasured","5\nOptimizing","Target Level","Current Level","Adjusted Score","Weighting",null,null,null,0.75]
["EASY WINS","3D Coordination","Measures the extent of which the Model is used as part of design coordination during Design and Construction phases","None considered",null,"Majority of Project 3D, adhoc 3D coordination","Majority of Project 3D, 3D coordination reviews held regularly & recorded",null,"Whole project 3D, all components modelled & coordinated between disciplines",2,0,{"$f":"K8*M8","v":0},0.9,null,{"$f":"IF(OFFSET(D8,0,K8)=\"\",\"Score Not Allowed - Try Again!\",\"\")","v":""},{"$f":"IF(J8=0,$Q$7+J8,J8)","v":2},{"$f":"IF(K8=0,$Q$7+K8,K8)","v":0.75}]
[null,"Drawings","Measues the extent of which documentation, including drawings are derived directly from the model.","Model not Linked to Drawings","Model partially Linked to Drawings (some 2D)","Model used for some GAs, Sections, etc.","Model Used for majority of GAs, Sections etc.","Model used for all GAs, Sections, etc.","Models used for all GAs, Sections and Schedules",4,0,0,0.9,null,"",{"$f":"IF(J9=0,$Q$7+J9,J9)","v":4},0.75]
[null,"Level of Information/Detail","Measure the extent of which design outputs are controlled to only deliver the relevant information to a defined level of detail for each project stage.","None considered","Loosely defined level of information and detail adopted by a specific discipline only. Client nominally defines requirements.",null,"Company defined and adopted Level of information and Detail aligned to a defined Digital Plan of Works (dPOW)","Delivered level of information and detail in accordance with client requirements from some but not all parties..","All parties, including design team, contractor and supply chain deliver to planned level of information and detail aligned to industry standards and in accordance with client requirements.",3,0,0,1,null,"",3,0.75]
[null,"Discipline Model Reviews","Measures the extent of which approriate checking and validation has been applied as part of the information exchange process.","No checking of models","Self-checking of models by technicians only","Engineer checking of parts of models","Engineer-led reviewing whole of models","Full checking and QA verification of models as part of the collaboration process","Full QA cross checking of model and any documentation including verification signoff",4,0,0,1,null,"",4,0.75]
[null,"Discipline Specific Target & Current Level to be\nfilledin for all lines\nLine below provides average of section","To be determined",null,null,null,null,null,null,null,null,{"$f":"IF(K12=\"\",\"\",K12)","v":""},null,null,null,{"$f":"IF(J17=0,$Q$7+J17,J17)","v":0.75},{"$f":"IF(K17=0,$Q$7+K17,K17)","v":0.75}]
[null,null,"To be determined",null,null,null,null,null,null,null,null,"",null,null,null,{"$f":"IF(J18=0,$Q$7+J18,J18)","v":2},0.75]
[null,null,"To be determined",null,null,null,null,null,null,null,null,"",null,null,null,2,0.75]
[null,null,"To be determined",null,null,null,null,null,null,null,null,"",null,null,null,2,0.75]
[null,null,"To be determined",null,null,null,null,null,null,null,null,"",null,null,null,2,0.75]
[null,"Embedded Data, Schedules and Specifications","The 'I' in BIM, the ability to embed all relevant data into the model, to extract and use for all design and documentation aspects.",null,null,null,"Expand node on the left to fill in Embedded Data, Schedules and Specifications section",null,null,{"$f":"IF(ISERROR(AVERAGE(J12:J16)),0,AVERAGE(J12:J16))","v":0},{"$f":"IF(ISERROR(AVERAGE(K12:K16)),0,AVERAGE(K12:K16))","v":0},{"$f":"IF(ISERROR(AVERAGE(L12:L16)),0,AVERAGE(L12:L16))","v":0},1,null,null,3,0.75]
[null,"Visualisation","Measures the extent of which model visualisation is used as a design communication tool","None considered","Basic screenshots taken from Model for reports etc","Model used to inform Design team through basic visualisations.","Model used to inform Design team through 3D walkthroughs.","Model used to inform Client through 3D presentations","Advanced photorealistic renderings/animations taken from Model",2,0,{"$f":"K18*M18","v":0},0.7,null,"",1,0.75]
[null,"4D (Construction Sequencing)","Extent of which the model is used to facilitate construction sequencing","None considered","Model used for simplified phasing using hide/show only","Design Model used for sequencing by internal project team only","Design model prepared by the design team to enable Contractor 4D operations",null,"Fully embedded link between information model and programme manager used to track project progress",2,0,0,0.7,null,""]
[null,"5D (Quantity and Cost)","To measure the extent of which the model is used to extract cost and quantity information.","Model not suitable for costing","Model used for some internal quantity information/checking","Schedules produced from Model, and Model informally shared with QS with caveat","Design model prepared by the design team to enable Contractor 5D operations","Model formally issued to QS and cross-checked by internal project team","Cost optimisation by linking cost data directly to the model",2,0,0,0.7,null,""]
[null,"Links to Design Analysis Tools","Measures the extent of which the model is used as part of the design analysis process","None considered",null,"One way export to or from Analysis & Design Tools",null,"Whole model linked bi-directionally to Analysis & Design Tools","Full round-tripping between Model and Analysis/Design tools, to optimise design",2,0,0,1,null,""]
[null,"Handover to Contractor","Measures the extent of which the model is developed to integrate with the project construction phase.","Not possible","Model for design team internal use only","Informal issue of model to Contractor with disclaimer","Formal issue of Model to Contractor with disclaimer, or BIM protocol where possible","Formal issue of Model to Contractor aligned with project BIM Protocol","Formal handover of Model to Contractor for use in Construction and FM.",3,0,0,0.9,null,""]
["HARDER!","Use in Operations and FM","Measures the extent of which the model is developed to support the Operations and FM phase.","None considered","Client requirements not implemented",null,"Client requirements implemented but Model not used for FM",null,"Model progressively matured with embedded attributed information suitable for Client handover for use in O&M",1,0,0,0.9,null,""]
[]
[]
[]
[null,null,null,null,null,null,null,null,null,null,"Scores"]
[null,null,null,null,null,null,null,null,null,null,0]
[null,null,null,null,null,null,null,null,null,null,1]
[null,null,null,null,null,null,null,null,null,null,2]
[null,null,null,null,null,null,null,null,null,null,3]
[null,null,null,null,null,null,null,null,null,null,4]
[null,null,null,null,null,null,null,null,null,null,5]